{"text_format":"1","workbook":"xlsx","n_sheets":9,"sheets":["Summary","Table 10","Table 11","Table 12","Remarks","Param","Formulas","Parameter_mapping","Parameters"],"not_rendered":{"charts":0,"images":2,"macros":1,"external_links":0,"defined_names":64,"comments":1,"pivot_tables":0},"unopened":[],"bounds":{"document_bytes":16777216,"sheet_cells":100000,"rows_first":2000,"rows_last":500,"rows_between":2000,"halvings":0,"cell_chars":16384,"cell_head_chars":4096},"cells_cut":0,"cells_raw":0,"read":"whole","date_system":"1900"}

{"sheet":"Summary","index":0,"n_rows":55,"n_cols":10,"rows_kept":55,"cut":false,"hidden":false,"merged":[[12,5,12,6]]}
[]
[]
[]
[]
[]
[]
[]
[null,null,null,{"$f":"\"Monthly Gas Questionnaire - \" & Quest","v":"Monthly Gas Questionnaire - MOS GAS"}]
[]
[]
[null,null,null,"Questionnaire",null,"MOS GAS",null,"JODI GAS"]
[null,null,null,"Version 2020.1"]
[null,null,null,"Country",null,"(select country)"]
[null,null,null,"Month of data",null,"January",2020]
[]
[null,null,null,"Status of data (final/provisional)",null,"Final"]
[null,null,null,"Prepared by"]
[null,null,null,"Date of transmission"]
[]
[]
[null,null,null,"All data should be entered with 3 decimal places. "]
[null,null,null,"Please round data before calculating the totals."]
[null,null,null,"All opening stock levels should equal closing stock levels of the previous month."]
[null,null,null,"Before submitting this report, please ensure that there are no discrepancies left. "]
[null,null,null,"A summary table of main discrepancies is shown below on this page."]
[null,null,null,"You can address your questions to the MOS section:",null,null,null,null,null,"mos@iea.org"]
[null,null,null,"and to Eurostat:",null,null,null,null,null,"estat-energy-monthly@ec.europa.eu"]
[]
[null,"A summary of main discrepancies found in the tables: "]
[]
[null,{"$f":"'Table 10'!A2","v":"Table 10: SUPPLY OF NATURAL GAS"}]
[null,{"$f":"IF('Table 10'!E28=0,\"\",\"Imports (Entries) in Table 10 is not equal to Total Imports (Entries) in Table 11 for cubic metres.\")","v":""}]
[null,{"$f":"IF('Table 10'!E29=0,\"\",\"Imports (Entries) in Table 10 is not equal to Total Imports (Entries) in Table 11 for terajoules.\")","v":""}]
[null,{"$f":"IF('Table 10'!E30=0,\"\",\"Exports (Exits) in Table 10 is not equal to Total Exports (Exits) in Table 12 for cubic metres.\")","v":""}]
[null,{"$f":"IF('Table 10'!E31=0,\"\",\"Exports (Exits) in Table 10 is not equal to Total Exports (Exits) of Table 12 for terajoules.\")","v":""}]
[null,{"$f":"IF('Table 10'!D33=0,\"\",\"Stock Changes (National territory) is not equal to Closing stock level minus Opening stock level in cubic metres.\")","v":""}]
[null,{"$f":"IF('Table 10'!E33=0,\"\",\"Stock Changes (National territory) is not equal to Closing stock level minus Opening stock level in terajoules.\")","v":""}]
[null,{"$f":"IF(OR('Table 10'!C21>'Table 10'!C15,'Table 10'!D21>'Table 10'!D15),\"Deliveries to power generation should not exceed Gross inland deliveries (Observed).\",\"\")","v":""}]
[null,{"$f":"IF(MIN('Table 10'!C7:'Table 10'!D10,'Table 10'!C15:D21)<0, \"There are some NEGATIVE numbers\",\"\")","v":""}]
[null,{"$f":"'Table 11'!A2","v":"Table 11: IMPORTS (ENTRIES) OF NATURAL GAS BY ORIGIN"}]
[null,{"$f":"IF('Table 11'!G175=0,\"\",\"Total Imports (Entries) in Table 11 is not equal to Imports (Entries) in Table 10 for cubic metres.\")","v":""}]
[null,{"$f":"IF('Table 11'!G176=0,\"\",\"Total Imports (Entries) in Table 11 is not equal to Imports (Entries) in Table 10 for terajoules.\")","v":""}]
[null,{"$f":"IF('Table 11'!G177=0,\"\",\"Total Imports (Entries) in Table 11 is not equal to the sum of its components for cubic metres.\")","v":""}]
[null,{"$f":"IF('Table 11'!G178=0,\"\",\"Total Imports (Entries) in Table 11 is not equal to the sum of its components for terajoules.\")","v":""}]
[null,{"$f":"IF('Table 11'!G179=0,\"\",\"Total Imports (Entries) in Table 11 is not equal to the sum of its components for LNG for cubic metres.\")","v":""}]
[null,{"$f":"IF('Table 11'!G180=0,\"\",\"Total Imports (Entries) in Table 11 is not equal to the sum of its components for LNG for terajoules.\")","v":""}]
[null,{"$f":"IF(MIN('Table 11'!C8:E172)<0, \"There are some NEGATIVE numbers.\",\"\")","v":""}]
[null,{"$f":"'Table 12'!A2","v":"Table 12:  EXPORTS (EXITS) OF NATURAL GAS BY DESTINATION"}]
[null,{"$f":"IF('Table 12'!G176=0,\"\",\"Total Exports (Exits) in Table 12 is not equal to Exports (Exits) in Table 10 for cubic metres.\")","v":""}]
[null,{"$f":"IF('Table 12'!G177=0,\"\",\"Total Exports (Exits) in Table 12 is not equal to Exports (Exits) in Table 10 for terajoules.\")","v":""}]
[null,{"$f":"IF('Table 12'!G178=0,\"\",\"Total Exports (Exits) in Table 12 is not equal to the sum of its components for cubic metres.\")","v":""}]
[null,{"$f":"IF('Table 12'!G179=0,\"\",\"Total Exports (Exits) in Table 12 is not equal to the sum of its components for terajoules.\")","v":""}]
[null,{"$f":"IF('Table 12'!G180=0,\"\",\"Total Exports (Exits) in Table 12 is not equal to the sum of its components for LNG for cubic metres.\")","v":""}]
[null,{"$f":"IF('Table 12'!G181=0,\"\",\"Total Exports (Exits) in Table 12 is not equal to the sum of its components for LNG for terajoules.\")","v":""}]
[null,{"$f":"IF(MIN('Table 12'!C8:E172)<0, \"There are some NEGATIVE numbers.\",\"\")","v":""}]

{"sheet":"Table 10","index":1,"n_rows":1002,"n_cols":135,"rows_kept":1002,"cut":false,"hidden":false,"merged":[]}
[{"$f":"Quest & \" QUESTIONNAIRE\"","v":"MOS GAS QUESTIONNAIRE"},null,null,null,null,null,null,null,null,null,null,null,null,null,null,null,null,null,null,null,null,null,null,null,null,null,null,null,null,null,null,null,null,null,null,null,null,null,null,null,null,null,null,null,"Datatype"]
["Table 10: SUPPLY OF NATURAL GAS",null,null,null,null,null,null,null,null,null,null,null,null,null,null,null,null,null,null,null,null,null,null,null,null,null,null,null,null,null,null,null,null,null,null,null,null,null,null,null,null,null,null,null,"BALANCE"]
[{"$f":"IF(Summary!F13=0,\"\",Summary!F13)","v":"(select country)"}]
[{"$f":"IF(Summary!F14=0,\"\",Summary!F14 & \" \" & QuestYear)","v":"January 2020"}]
[null,null,"Natural gas \nMillion m3 (at\n15°C, 760 mm Hg)","Natural gas \nTerajoules\n(Gross calor. value)","Natural gas \nGross calorific value\n(Calculated)",null,null,null,null,null,null,null,null,null,null,null,null,null,null,null,null,null,null,null,null,null,null,null,null,null,null,null,null,null,null,null,null,null,null,null,null,null,null,null,null,null,null,null,null,null,null,null,null,null,null,null,null,null,null,null,null,null,null,null,null,null,null,null,null,null,null,null,null,null,null,null,null,null,null,null,null,null,null,null,null,null,null,null,null,null,null,null,null,null,null,null,null,null,null,null,null,null,null,null,null,null,null,null,null,null,null,null,null,null,null,null,null,null,null,null,null,null,"*** DSD codes ***"]
[null,null,"A","B","C",null,null,null,null,null,null,null,null,null,null,null,null,null,null,null,null,null,null,null,null,null,null,null,null,null,null,null,null,null,null,null,null,null,null,null,null,null,null,null,"Item1 ê",null,null,null,null,null,null,null,null,null,null,null,null,null,null,null,null,null,null,null,null,null,null,null,null,null,null,null,null,null,null,null,null,null,null,null,null,null,null,null,null,null,null,null,null,null,null,null,null,null,null,null,null,null,null,null,null,null,null,null,null,null,null,null,null,null,null,null,null,null,null,null,null,null,null,null,null,null,"REF_AREA","ENERGY_PRODUCT","MAIN_FLOW","FLOW_BREAKDOWN","PLANT_TECH","PLANT_TYPE","STOCKS","INFRASTRUCTURE_IND","VIS_A_VIS_AREA","MEASURE_VALUE_TYPE","FACILITY_ID","UNIT_MEASURE","TIME_PERIOD"]
["Indigenous production",1,null,null,{"$f":"IF(OR(D7=0,C7=0),\"\",ROUND((D7/C7)*1000,0))","v":""},null,null,null,null,null,null,null,null,null,null,null,null,null,null,null,null,null,null,null,null,null,null,null,null,null,null,null,null,null,null,null,null,null,null,null,null,null,null,null,"INDPROD",null,null,null,null,null,null,null,null,null,null,null,null,null,null,null,null,null,null,null,null,null,null,null,null,null,null,null,null,null,null,null,null,null,null,null,null,null,null,null,null,null,null,null,null,null,null,null,null,null,null,null,null,null,null,null,null,null,null,null,null,null,null,null,null,null,null,null,null,null,null,null,null,null,null,null,null,null,{"$f":"VLOOKUP(CountryUser, Param!$C$9:$E$65, 3, 0)","v":{"$error":"#N/A"}},"Row 1000","PRODUCT","INDPROD","_Z","_Z","_Z","_Z","_Z","Row 1001","_Z","Row 1002",{"$f":"QuestYear&\"-\"&TEXT(MATCH(FirstMonth, Param!C70:C81,0), \"00\")","v":"2020-01"}]
["Receipts from other sources",2,null,null,{"$f":"IF(OR(D8=0,C8=0),\"\",ROUND((D8/C8)*1000,0))","v":""},null,null,null,null,null,null,null,null,null,null,null,null,null,null,null,null,null,null,null,null,null,null,null,null,null,null,null,null,null,null,null,null,null,null,null,null,null,null,null,"OSOURCES",null,null,null,null,null,null,null,null,null,null,null,null,null,null,null,null,null,null,null,null,null,null,null,null,null,null,null,null,null,null,null,null,null,null,null,null,null,null,null,null,null,null,null,null,null,null,null,null,null,null,null,null,null,null,null,null,null,null,null,null,null,null,null,null,null,null,null,null,null,null,null,null,null,null,null,null,null,null,null,"SUPPLY","OSOURCES","_Z","_Z","_Z","_Z","_Z",null,"_Z"]
["Imports (Entries)1",3,null,null,{"$f":"IF(OR(D9=0,C9=0),\"\",ROUND((D9/C9)*1000,0))","v":""},null,null,null,null,null,null,null,null,null,null,null,null,null,null,null,null,null,null,null,null,null,null,null,null,null,null,null,null,null,null,null,null,null,null,null,null,null,null,null,"TOTENTSB",null,null,null,null,null,null,null,null,null,null,null,null,null,null,null,null,null,null,null,null,null,null,null,null,null,null,null,null,null,null,null,null,null,null,null,null,null,null,null,null,null,null,null,null,null,null,null,null,null,null,null,null,null,null,null,null,null,null,null,null,null,null,null,null,null,null,null,null,null,null,null,null,null,null,null,null,null,null,null,"IMPORTS","TOTIMPSB","_Z","_Z","_Z","_Z","_Z",null,"_Z"]
["Exports (Exits)2",4,null,null,"",null,null,null,null,null,null,null,null,null,null,null,null,null,null,null,null,null,null,null,null,null,null,null,null,null,null,null,null,null,null,null,null,null,null,null,null,null,null,null,"TOTEXTSB",null,null,null,null,null,null,null,null,null,null,null,null,null,null,null,null,null,null,null,null,null,null,null,null,null,null,null,null,null,null,null,null,null,null,null,null,null,null,null,null,null,null,null,null,null,null,null,null,null,null,null,null,null,null,null,null,null,null,null,null,null,null,null,null,null,null,null,null,null,null,null,null,null,null,null,null,null,null,null,"EXPORTS","TOTEXPSB","_Z","_Z","_Z","_Z","_Z",null,"_Z"]
["International marine bunkers",5,null,null,"",null,null,null,null,null,null,null,null,null,null,null,null,null,null,null,null,null,null,null,null,null,null,null,null,null,null,null,null,null,null,null,null,null,null,null,null,null,null,null,"BUNKERS",null,null,null,null,null,null,null,null,null,null,null,null,null,null,null,null,null,null,null,null,null,null,null,null,null,null,null,null,null,null,null,null,null,null,null,null,null,null,null,null,null,null,null,null,null,null,null,null,null,null,null,null,null,null,null,null,null,null,null,null,null,null,null,null,null,null,null,null,null,null,null,null,null,null,null,null,null,null,null,"MARBUNK","_Z","_Z","_Z","_Z","_Z","_Z",null,"_Z"]
["Stock changes (National territory)3",6,null,null,"",null,null,null,null,null,null,null,null,null,null,null,null,null,null,null,null,null,null,null,null,null,null,null,null,null,null,null,null,null,null,null,null,null,null,null,null,null,null,null,"STCHANAT",null,null,null,null,null,null,null,null,null,null,null,null,null,null,null,null,null,null,null,null,null,null,null,null,null,null,null,null,null,null,null,null,null,null,null,null,null,null,null,null,null,null,null,null,null,null,null,null,null,null,null,null,null,null,null,null,null,null,null,null,null,null,null,null,null,null,null,null,null,null,null,null,null,null,null,null,null,null,null,"STOCKS","STOCKCHMG","_Z","_Z","NATTER","_Z","_Z",null,"_Z"]
["Gross inland deliveries (Calculated)",7,{"$f":"ROUND(C7+C8+C9-C10-C11-C12,3)","v":0},{"$f":"ROUND(D7+D8+D9-D10-D11-D12,3)","v":0},"",null,null,null,null,null,null,null,null,null,null,null,null,null,null,null,null,null,null,null,null,null,null,null,null,null,null,null,null,null,null,null,null,null,null,null,null,null,null,null,"GDINCTRC",null,null,null,null,null,null,null,null,null,null,null,null,null,null,null,null,null,null,null,null,null,null,null,null,null,null,null,null,null,null,null,null,null,null,null,null,null,null,null,null,null,null,null,null,null,null,null,null,null,null,null,null,null,null,null,null,null,null,null,null,null,null,null,null,null,null,null,null,null,null,null,null,null,null,null,null,null,null,null,"SUPPLY","INLDEMCMG","_Z","_Z","_Z","_Z","_Z",null,"_Z"]
["Statistical difference",8,{"$f":"ROUND(C13-C15,3)","v":0},{"$f":"ROUND(D13-D15,3)","v":0},"",null,null,null,null,null,null,null,null,null,null,null,null,null,null,null,null,null,null,null,null,null,null,null,null,null,null,null,null,null,null,null,null,null,null,null,null,null,null,null,"STATDIFF",null,null,null,null,null,null,null,null,null,null,null,null,null,null,null,null,null,null,null,null,null,null,null,null,null,null,null,null,null,null,null,null,null,null,null,null,null,null,null,null,null,null,null,null,null,null,null,null,null,null,null,null,null,null,null,null,null,null,null,null,null,null,null,null,null,null,null,null,null,null,null,null,null,null,null,null,null,null,null,"STATDIFF","_Z","_Z","_Z","_Z","_Z","_Z",null,"_Z"]
["Gross inland deliveries (Observed)",9,null,null,"",null,null,null,null,null,null,null,null,null,null,null,null,null,null,null,null,null,null,null,null,null,null,null,null,null,null,null,null,null,null,null,null,null,null,null,null,null,null,null,"GDINCTRO",null,null,null,null,null,null,null,null,null,null,null,null,null,null,null,null,null,null,null,null,null,null,null,null,null,null,null,null,null,null,null,null,null,null,null,null,null,null,null,null,null,null,null,null,null,null,null,null,null,null,null,null,null,null,null,null,null,null,null,null,null,null,null,null,null,null,null,null,null,null,null,null,null,null,null,null,null,null,null,"DEMAND","INLDEMO","_Z","_Z","_Z","_Z","_Z",null,"_Z"]
["Opening stock level (National territory)4",10,null,null,"",null,null,null,null,null,null,null,null,null,null,null,null,null,null,null,null,null,null,null,null,null,null,null,null,null,null,null,null,null,null,null,null,null,null,null,null,null,null,null,"OSNATTER",null,null,null,null,null,null,null,null,null,null,null,null,null,null,null,null,null,null,null,null,null,null,null,null,null,null,null,null,null,null,null,null,null,null,null,null,null,null,null,null,null,null,null,null,null,null,null,null,null,null,null,null,null,null,null,null,null,null,null,null,null,null,null,null,null,null,null,null,null,null,null,null,null,null,null,null,null,null,null,"STOCKS","OPESTLV","_Z","_Z","NATTER","_Z","_Z",null,"_Z"]
["Closing stock level (National territory)",11,null,null,"",null,null,null,null,null,null,null,null,null,null,null,null,null,null,null,null,null,null,null,null,null,null,null,null,null,null,null,null,null,null,null,null,null,null,null,null,null,null,null,"CSNATTER",null,null,null,null,null,null,null,null,null,null,null,null,null,null,null,null,null,null,null,null,null,null,null,null,null,null,null,null,null,null,null,null,null,null,null,null,null,null,null,null,null,null,null,null,null,null,null,null,null,null,null,null,null,null,null,null,null,null,null,null,null,null,null,null,null,null,null,null,null,null,null,null,null,null,null,null,null,null,null,"STOCKS","CLOSTLV","_Z","_Z","NATTER","_Z","_Z",null,"_Z"]
["Opening stock level (Held abroad)5",12,null,null,"",null,null,null,null,null,null,null,null,null,null,null,null,null,null,null,null,null,null,null,null,null,null,null,null,null,null,null,null,null,null,null,null,null,null,null,null,null,null,null,"OSABR",null,null,null,null,null,null,null,null,null,null,null,null,null,null,null,null,null,null,null,null,null,null,null,null,null,null,null,null,null,null,null,null,null,null,null,null,null,null,null,null,null,null,null,null,null,null,null,null,null,null,null,null,null,null,null,null,null,null,null,null,null,null,null,null,null,null,null,null,null,null,null,null,null,null,null,null,null,null,null,"STOCKS","OPESTLV","_Z","_Z","ABROAD","_Z","_Z",null,"_Z"]
["Closing stock level (Held abroad)",13,null,null,"",null,null,null,null,null,null,null,null,null,null,null,null,null,null,null,null,null,null,null,null,null,null,null,null,null,null,null,null,null,null,null,null,null,null,null,null,null,null,null,"CSABR",null,null,null,null,null,null,null,null,null,null,null,null,null,null,null,null,null,null,null,null,null,null,null,null,null,null,null,null,null,null,null,null,null,null,null,null,null,null,null,null,null,null,null,null,null,null,null,null,null,null,null,null,null,null,null,null,null,null,null,null,null,null,null,null,null,null,null,null,null,null,null,null,null,null,null,null,null,null,null,"STOCKS","CLOSTLV","_Z","_Z","ABROAD","_Z","_Z",null,"_Z"]
["Own use and losses of the natural gas industry",14,null,null,{"$f":"IF(OR(D20=0,C20=0),\"\",ROUND((D20/C20)*1000,0))","v":""},null,null,null,null,null,null,null,null,null,null,null,null,null,null,null,null,null,null,null,null,null,null,null,null,null,null,null,null,null,null,null,null,null,null,null,null,null,null,null,"OWNUSE",null,null,null,null,null,null,null,null,null,null,null,null,null,null,null,null,null,null,null,null,null,null,null,null,null,null,null,null,null,null,null,null,null,null,null,null,null,null,null,null,null,null,null,null,null,null,null,null,null,null,null,null,null,null,null,null,null,null,null,null,null,null,null,null,null,null,null,null,null,null,null,null,null,null,null,null,null,null,null,"DEMAND","OWNULOSS","_Z","_Z","_Z","_Z","_Z",null,"_Z"]
["Deliveries to power and heat generation6",15,null,null,"",null,null,null,null,null,null,null,null,null,null,null,null,null,null,null,null,null,null,null,null,null,null,null,null,null,null,null,null,null,null,null,null,null,null,null,null,null,null,null,"DELPOWER",null,null,null,null,null,null,null,null,null,null,null,null,null,null,null,null,null,null,null,null,null,null,null,null,null,null,null,null,null,null,null,null,null,null,null,null,null,null,null,null,null,null,null,null,null,null,null,null,null,null,null,null,null,null,null,null,null,null,null,null,null,null,null,null,null,null,null,null,null,null,null,null,null,null,null,null,null,null,null,"TRANSFOR","_Z","_Z","MAINTOT","_Z","_Z","_Z",null,"_Z"]
[]
["Memo:"]
["Gas vented",16,null,null,null,null,null,null,null,null,null,null,null,null,null,null,null,null,null,null,null,null,null,null,null,null,null,null,null,null,null,null,null,null,null,null,null,null,null,null,null,null,null,null,"VENTED",null,null,null,null,null,null,null,null,null,null,null,null,null,null,null,null,null,null,null,null,null,null,null,null,null,null,null,null,null,null,null,null,null,null,null,null,null,null,null,null,null,null,null,null,null,null,null,null,null,null,null,null,null,null,null,null,null,null,null,null,null,null,null,null,null,null,null,null,null,null,null,null,null,null,null,null,null,null,null,"LOSSES","VENTED","_Z","_Z","_Z","_Z","_Z",null,"_Z"]
["Gas flared",17,null,null,null,null,null,null,null,null,null,null,null,null,null,null,null,null,null,null,null,null,null,null,null,null,null,null,null,null,null,null,null,null,null,null,null,null,null,null,null,null,null,null,"FLARED",null,null,null,null,null,null,null,null,null,null,null,null,null,null,null,null,null,null,null,null,null,null,null,null,null,null,null,null,null,null,null,null,null,null,null,null,null,null,null,null,null,null,null,null,null,null,null,null,null,null,null,null,null,null,null,null,null,null,null,null,null,null,null,null,null,null,null,null,null,null,null,null,null,null,null,null,null,null,null,"LOSSES","FLARED","_Z","_Z","_Z","_Z","_Z",null,"_Z"]
[null,null,{"$f":"IF(MIN(C24:C25,C15:C21,C13,C7:C11)<0,\"Negative number\",\"\")","v":""},{"$f":"IF(MIN(D24:D25,D15:D21,D13,D7:D11)<0,\"Negative number\",\"\")","v":""}]
[]
["1. Line 3 should correspond to Total Imports (Entries) for cubic metres (reference A165)",null,null,null,{"$f":"ROUND(C9-'Table 11'!C172,3)","v":0},{"$f":"IF(E28=0,\"OK\",\"Imports (Entries) for Mcm is not equal to Total Imports (Entries) in Table 11\")","v":"OK"}]
["    and for terajoules (reference C165) in Table 11.",null,null,null,{"$f":"ROUND(D9-'Table 11'!E172,3)","v":0},{"$f":"IF(E29=0,\"OK\",\"Imports (Entries) for TJ is not equal to Total Imports (Entries) in Table 11.\")","v":"OK"}]
["2. Line 4 should correspond to Total Exports (Exits) for cubic metres (reference A165) ",null,null,null,{"$f":"ROUND(C10-'Table 12'!C172,3)","v":0},{"$f":"IF(E30=0,\"OK\",\"Exports (Exits) for Mcm is not equal to Total Exports (Exits) in Table 12.\")","v":"OK"}]
["    and for terajoules (reference C165) in Table 12.",null,null,null,{"$f":"ROUND(D10-'Table 12'!E172,3)","v":0},{"$f":"IF(E31=0,\"OK\",\"Exports (Exits) for TJ is not equal to Total Exports (Exits) in Table 12.\")","v":"OK"}]
["3. Line 6 should be equal to National territory closing stock level (line 11) minus National territory opening stock level (line 10) for cubic metres ",null,null,null,null,{"$f":"IF(D33=0,\"OK\",\"Stock changes (National territory) for Mcm is not equal to Closing level minus Opening level.\")","v":"OK"}]
["    and for terajoules.",null,null,{"$f":"ROUND((C17-C16)-C12,3)","v":0},{"$f":"ROUND((D17-D16)-D12,3)","v":0},{"$f":"IF(E33=0,\"OK\",\"Stock changes (National territory) for TJ does not equal Closing level minus Opening level.\")","v":"OK"}]
["4. National territory opening stock level (line 10) should be equal to closing level of previous month."]
["5. Held abroad opening stock level (line 12) should be equal to closing level of previous month."]
["6. Deliveries to power generation should not be greater than the Gross inland deliveries (Observed).",null,null,null,null,{"$f":"IF(OR(C21>C15,D21>D15),\"Deliveries to power generation should not exceed Gross inland deliveries (Observed).\",\"OK\")","v":"OK"}]
["7. Own use and losses should not be greater than the Gross inland deliveries (Observed).",null,null,null,null,{"$f":"IF(OR(C20>C15,D20>D15),\"Deliveries to power generation should not exceed Gross inland deliveries (Observed).\",\"OK\")","v":"OK"}]
[]
[]
[]
[]
[]
[]
[]
[]
[]
[]
[]
[]
[]
[]
[]
[]
[]
[]
[]
[]
[]
[]
[]
[]
[]
[]
[]
[]
[]
[]
[]
[]
[]
[]
[]
[]
[]
[]
[]
[]
[]
[]
[]
[]
[]
[]
[]
[]
[]
[]
[]
[]
[]
[]
[]
[]
[]
[]
[]
[]
[]
[]
[]
[]
[]
[]
[]
[]
[]
[]
[]
[]
[]
[]
[]
[]
[]
[]
[]
[]
[]
[]
[]
[]
[]
[]
[]
[]
[]
[]
[]
[]
[]
[]
[]
[]
[]
["Products è",null,"NATGASCM","NGASTJOU","NGASCV"]
[]
[]
[]
[]
[]
[]
[]
[]
[]
[]
[]
[]
[]
[]
[]
[]
[]
[]
[]
[]
[]
[]
[]
[]
[]
[]
[]
[]
[]
[]
[]
[]
[]
[]
[]
[]
[]
[]
[]
[]
[]
[]
[]
[]
[]
[]
[]
[]
[]
[]
[]
[]
[]
[]
[]
[]
[]
[]
[]
[]
[]
[]
[]
[]
[]
[]
[]
[]
[]
[]
[]
[]
[]
[]
[]
[]
[]
[]
[]
[]
[]
[]
[]
[]
[]
[]
[]
[]
[]
[]
[]
[]
[]
[]
[]
[]
[]
[]
[]
[]
[]
[]
[]
[]
[]
[]
[]
[]
[]
[]
[]
[]
[]
[]
[]
[]
[]
[]
[]
[]
[]
[]
[]
[]
[]
[]
[]
[]
[]
[]
[]
[]
[]
[]
[]
[]
[]
[]
[]
[]
[]
[]
[]
[]
[]
[]
[]
[]
[]
[]
[]
[]
[]
[]
[]
[]
[]
[]
[]
[]
[]
[]
[]
[]
[]
[]
[]
[]
[]
[]
[]
[]
[]
[]
[]
[]
[]
[]
[]
[]
[]
[]
[]
[]
[]
[]
[]
[]
[]
[]
[]
[]
[]
[]
[]
[]
[]
[]
[]
[]
[]
[]
[]
[]
[]
[]
[]
[]
[]
[]
[]
[]
[]
[]
[]
[]
[]
[]
[]
[]
[]
[]
[]
[]
[]
[]
[]
[]
[]
[]
[]
[]
[]
[]
[]
[]
[]
[]
[]
[]
[]
[]
[]
[]
[]
[]
[]
[]
[]
[]
[]
[]
[]
[]
[]
[]
[]
[]
[]
[]
[]
[]
[]
[]
[]
[]
[]
[]
[]
[]
[]
[]
[]
[]
[]
[]
[]
[]
[]
[]
[]
[]
[]
[]
[]
[]
[]
[]
[]
[]
[]
[]
[]
[]
[]
[]
[]
[]
[]
[]
[]
[]
[]
[]
[]
[]
[]
[]
[]
[]
[]
[]
[]
[]
[]
[]
[]
[]
[]
[]
[]
[]
[]
[]
[]
[]
[]
[]
[]
[]
[]
[]
[]
[]
[]
[]
[]
[]
[]
[]
[]
[]
[]
[]
[]
[]
[]
[]
[]
[]
[]
[]
[]
[]
[]
[]
[]
[]
[]
[]
[]
[]
[]
[]
[]
[]
[]
[]
[]
[]
[]
[]
[]
[]
[]
[]
[]
[]
[]
[]
[]
[]
[]
[]
[]
[]
[]
[]
[]
[]
[]
[]
[]
[]
[]
[]
[]
[]
[]
[]
[]
[]
[]
[]
[]
[]
[]
[]
[]
[]
[]
[]
[]
[]
[]
[]
[]
[]
[]
[]
[]
[]
[]
[]
[]
[]
[]
[]
[]
[]
[]
[]
[]
[]
[]
[]
[]
[]
[]
[]
[]
[]
[]
[]
[]
[]
[]
[]
[]
[]
[]
[]
[]
[]
[]
[]
[]
[]
[]
[]
[]
[]
[]
[]
[]
[]
[]
[]
[]
[]
[]
[]
[]
[]
[]
[]
[]
[]
[]
[]
[]
[]
[]
[]
[]
[]
[]
[]
[]
[]
[]
[]
[]
[]
[]
[]
[]
[]
[]
[]
[]
[]
[]
[]
[]
[]
[]
[]
[]
[]
[]
[]
[]
[]
[]
[]
[]
[]
[]
[]
[]
[]
[]
[]
[]
[]
[]
[]
[]
[]
[]
[]
[]
[]
[]
[]
[]
[]
[]
[]
[]
[]
[]
[]
[]
[]
[]
[]
[]
[]
[]
[]
[]
[]
[]
[]
[]
[]
[]
[]
[]
[]
[]
[]
[]
[]
[]
[]
[]
[]
[]
[]
[]
[]
[]
[]
[]
[]
[]
[]
[]
[]
[]
[]
[]
[]
[]
[]
[]
[]
[]
[]
[]
[]
[]
[]
[]
[]
[]
[]
[]
[]
[]
[]
[]
[]
[]
[]
[]
[]
[]
[]
[]
[]
[]
[]
[]
[]
[]
[]
[]
[]
[]
[]
[]
[]
[]
[]
[]
[]
[]
[]
[]
[]
[]
[]
[]
[]
[]
[]
[]
[]
[]
[]
[]
[]
[]
[]
[]
[]
[]
[]
[]
[]
[]
[]
[]
[]
[]
[]
[]
[]
[]
[]
[]
[]
[]
[]
[]
[]
[]
[]
[]
[]
[]
[]
[]
[]
[]
[]
[]
[]
[]
[]
[]
[]
[]
[]
[]
[]
[]
[]
[]
[]
[]
[]
[]
[]
[]
[]
[]
[]
[]
[]
[]
[]
[]
[]
[]
[]
[]
[]
[]
[]
[]
[]
[]
[]
[]
[]
[]
[]
[]
[]
[]
[]
[]
[]
[]
[]
[]
[]
[]
[]
[]
[]
[]
[]
[]
[]
[]
[]
[]
[]
[]
[]
[]
[]
[]
[]
[]
[]
[]
[]
[]
[]
[]
[]
[]
[]
[]
[]
[]
[]
[]
[]
[]
[]
[]
[]
[]
[]
[]
[]
[]
[]
[]
[]
[]
[]
[]
[]
[]
[]
[]
[]
[]
[]
[]
[]
[]
[]
[]
[]
[]
[]
[]
[]
[]
[]
[]
[]
[]
[]
[]
[]
[]
[]
[]
[]
[]
[]
[]
[]
[]
[]
[]
[]
[]
[]
[]
[]
[]
[]
[]
[]
[]
[]
[]
[]
[]
[]
[]
[]
[]
[]
[]
[]
[]
[]
[]
[]
[]
[]
[]
[]
[]
[]
[]
[]
[]
[]
[]
[]
[]
[]
[]
[]
[]
[]
[]
[]
[]
[]
["ENERGY_PRODUCT",null,"G3000","G3000","G3000"]
["MEASURE_VALUE_TYPE",null,"VOLUME","ENERGY","GCV"]
["UNIT_MEASURE",null,"MM3","TJ_GCV","KJ_M3"]

{"sheet":"Table 11","index":2,"n_rows":1002,"n_cols":135,"rows_kept":1002,"cut":false,"hidden":false,"merged":[[4,6,5,6],[4,8,5,8],[4,2,5,2],[4,4,5,4]]}
[{"$f":"Quest & \" QUESTIONNAIRE\"","v":"MOS GAS QUESTIONNAIRE"},null,null,null,null,null,null,null,null,null,null,null,null,null,null,null,null,null,null,null,null,null,null,null,null,null,null,null,null,null,null,null,null,null,null,null,null,null,null,null,null,null,null,null,"Datatype"]
["Table 11: IMPORTS (ENTRIES) OF NATURAL GAS BY ORIGIN",null,null,null,null,null,null,null,null,null,null,null,null,null,null,null,null,null,null,null,null,null,null,null,null,null,null,null,null,null,null,null,null,null,null,null,null,null,null,null,null,null,null,null,"ENTRIES"]
[{"$f":"IF(Summary!F13=0,\"\",Summary!F13)","v":"(select country)"}]
[{"$f":"IF(Summary!F14=0,\"\",Summary!F14 & \" \" & QuestYear)","v":"January 2020"}]
[null,null,"Natural gas \nMillion m3 (at\n15°C, 760 mm Hg)",null,"Natural gas \nTerajoules\n(Gross calor. value)",null,"Natural gas\nGross calorific value\n(Calculated)",null,"Probate",null,null,null,null,null,null,null,null,null,null,null,null,null,null,null,null,null,null,null,null,null,null,null,null,null,null,null,null,null,null,null,null,null,null,null,null,null,null,null,null,null,null,null,null,null,null,null,null,null,null,null,null,null,null,null,null,null,null,null,null,null,null,null,null,null,null,null,null,null,null,null,null,null,null,null,null,null,null,null,null,null,null,null,null,null,null,null,null,null,null,null,null,null,null,null,null,null,null,null,null,null,null,null,null,null,null,null,null,null,null,null,null,null,"*** DSD codes ***"]
[null,null,null,"Of which: LNG",null,"Of which: LNG",null,null,null,null,null,null,null,null,null,null,null,null,null,null,null,null,null,null,null,null,null,null,null,null,null,null,null,null,null,null,null,null,null,null,null,null,null,null,null,null,null,null,null,null,null,null,null,null,null,null,null,null,null,null,null,null,null,null,null,null,null,null,null,null,null,null,null,null,null,null,null,null,null,null,null,null,null,null,null,null,null,null,null,null,null,null,null,null,null,null,null,null,null,null,null,null,null,null,null,null,null,null,null,null,null,null,null,null,null,null,null,null,null,null,null,null,"REF_AREA","ENERGY_PRODUCT","MAIN_FLOW","FLOW_BREAKDOWN","PLANT_TECH","PLANT_TYPE","STOCKS","INFRASTRUCTURE_IND","VIS_A_VIS_AREA","MEASURE_VALUE_TYPE","FACILITY_ID","UNIT_MEASURE","TIME_PERIOD"]
[null,null,"A","B","C","D","E",null,"F",null,null,null,null,null,null,null,null,null,null,null,null,null,null,null,null,null,null,null,null,null,null,null,null,null,null,null,null,null,null,null,null,null,null,null,"Item1 ê",null,null,null,null,null,null,null,null,null,null,null,null,null,null,null,null,null,null,null,null,null,null,null,null,null,null,null,null,null,null,null,null,null,null,null,null,null,null,null,null,null,null,null,null,null,null,null,null,null,null,null,null,null,null,null,null,null,null,null,null,null,null,null,null,null,null,null,null,null,null,null,null,null,null,null,null,null,{"$f":"VLOOKUP(CountryUser, Param!$C$9:$E$65, 3, 0)","v":{"$error":"#N/A"}},"Row 1000",null,null,null,null,null,null,null,"Row 1001",null,"Row 1002",{"$f":"QuestYear&\"-\"&TEXT(MATCH(FirstMonth, Param!C70:C81,0), \"00\")","v":"2020-01"}]
["Albania",1,null,null,null,null,{"$f":"IF(OR(E8=0,C8=0),\"\",ROUND((E8/C8)*1000,0))","v":""},{"$f":"IF(MIN(C8:F8)<0,1,0)+IF(OR(C8<D8,E8<F8),1,0)","v":0},{"$f":"IF(H8=0,\" \",IF(H8=1,\"Error: \",\"2 errors: \"))&IF(MIN(C8:F8)<0,\"Imports data should not be negative. \",\"\")&IF(OR(C8<D8,E8<F8),\"'Of which: LNG' greater than Total.\",\"\")","v":" "},null,null,null,null,null,null,null,null,null,null,null,null,null,null,null,null,null,null,null,null,null,null,null,null,null,null,null,null,null,null,null,null,null,null,"AL","ALBANIA",null,null,null,null,null,null,null,null,null,null,null,null,null,null,null,null,null,null,null,null,null,null,null,null,null,null,null,null,null,null,null,null,null,null,null,null,null,null,null,null,null,null,null,null,null,null,null,null,null,null,null,null,null,null,null,null,null,null,null,null,null,null,null,null,null,null,null,null,null,null,null,null,null,null,null,null,null,null,null,"IMPORTS","_Z","_Z","_Z","_Z","_Z","AL",null,"_Z"]
["Algeria",2,null,null,null,null,{"$f":"IF(OR(E9=0,C9=0),\"\",ROUND((E9/C9)*1000,0))","v":""},0," ",null,null,null,null,null,null,null,null,null,null,null,null,null,null,null,null,null,null,null,null,null,null,null,null,null,null,null,null,null,null,null,null,null,null,"DZ","ALGERIA",null,null,null,null,null,null,null,null,null,null,null,null,null,null,null,null,null,null,null,null,null,null,null,null,null,null,null,null,null,null,null,null,null,null,null,null,null,null,null,null,null,null,null,null,null,null,null,null,null,null,null,null,null,null,null,null,null,null,null,null,null,null,null,null,null,null,null,null,null,null,null,null,null,null,null,null,null,null,null,"IMPORTS","_Z","_Z","_Z","_Z","_Z","DZ",null,"_Z"]
["Andorra",3,null,null,null,null,"",0," ",null,null,null,null,null,null,null,null,null,null,null,null,null,null,null,null,null,null,null,null,null,null,null,null,null,null,null,null,null,null,null,null,null,null,"AD","ANDORRA",null,null,null,null,null,null,null,null,null,null,null,null,null,null,null,null,null,null,null,null,null,null,null,null,null,null,null,null,null,null,null,null,null,null,null,null,null,null,null,null,null,null,null,null,null,null,null,null,null,null,null,null,null,null,null,null,null,null,null,null,null,null,null,null,null,null,null,null,null,null,null,null,null,null,null,null,null,null,null,"IMPORTS","_Z","_Z","_Z","_Z","_Z","AD",null,"_Z"]
["Angola",4,null,null,null,null,"",0," ",null,null,null,null,null,null,null,null,null,null,null,null,null,null,null,null,null,null,null,null,null,null,null,null,null,null,null,null,null,null,null,null,null,null,"AO","ANGOLA",null,null,null,null,null,null,null,null,null,null,null,null,null,null,null,null,null,null,null,null,null,null,null,null,null,null,null,null,null,null,null,null,null,null,null,null,null,null,null,null,null,null,null,null,null,null,null,null,null,null,null,null,null,null,null,null,null,null,null,null,null,null,null,null,null,null,null,null,null,null,null,null,null,null,null,null,null,null,null,"IMPORTS","_Z","_Z","_Z","_Z","_Z","AO",null,"_Z"]
["Argentina",5,null,null,null,null,"",0," ",null,null,null,null,null,null,null,null,null,null,null,null,null,null,null,null,null,null,null,null,null,null,null,null,null,null,null,null,null,null,null,null,null,null,"AR","ARGENTINA",null,null,null,null,null,null,null,null,null,null,null,null,null,null,null,null,null,null,null,null,null,null,null,null,null,null,null,null,null,null,null,null,null,null,null,null,null,null,null,null,null,null,null,null,null,null,null,null,null,null,null,null,null,null,null,null,null,null,null,null,null,null,null,null,null,null,null,null,null,null,null,null,null,null,null,null,null,null,null,"IMPORTS","_Z","_Z","_Z","_Z","_Z","AR",null,"_Z"]
["Armenia",6,null,null,null,null,"",0," ",null,null,null,null,null,null,null,null,null,null,null,null,null,null,null,null,null,null,null,null,null,null,null,null,null,null,null,null,null,null,null,null,null,null,"AM","ARMENIA",null,null,null,null,null,null,null,null,null,null,null,null,null,null,null,null,null,null,null,null,null,null,null,null,null,null,null,null,null,null,null,null,null,null,null,null,null,null,null,null,null,null,null,null,null,null,null,null,null,null,null,null,null,null,null,null,null,null,null,null,null,null,null,null,null,null,null,null,null,null,null,null,null,null,null,null,null,null,null,"IMPORTS","_Z","_Z","_Z","_Z","_Z","AM",null,"_Z"]
["Aruba",7,null,null,null,null,"",0," ",null,null,null,null,null,null,null,null,null,null,null,null,null,null,null,null,null,null,null,null,null,null,null,null,null,null,null,null,null,null,null,null,null,null,"AW","ARUBA",null,null,null,null,null,null,null,null,null,null,null,null,null,null,null,null,null,null,null,null,null,null,null,null,null,null,null,null,null,null,null,null,null,null,null,null,null,null,null,null,null,null,null,null,null,null,null,null,null,null,null,null,null,null,null,null,null,null,null,null,null,null,null,null,null,null,null,null,null,null,null,null,null,null,null,null,null,null,null,"IMPORTS","_Z","_Z","_Z","_Z","_Z","AW",null,"_Z"]
["Australia",8,null,null,null,null,"",0," ",null,null,null,null,null,null,null,null,null,null,null,null,null,null,null,null,null,null,null,null,null,null,null,null,null,null,null,null,null,null,null,null,null,null,"AU","AUSTRALI",null,null,null,null,null,null,null,null,null,null,null,null,null,null,null,null,null,null,null,null,null,null,null,null,null,null,null,null,null,null,null,null,null,null,null,null,null,null,null,null,null,null,null,null,null,null,null,null,null,null,null,null,null,null,null,null,null,null,null,null,null,null,null,null,null,null,null,null,null,null,null,null,null,null,null,null,null,null,null,"IMPORTS","_Z","_Z","_Z","_Z","_Z","AU",null,"_Z"]
["Austria",9,null,null,null,null,{"$f":"IF(OR(E16=0,C16=0),\"\",ROUND((E16/C16)*1000,0))","v":""},{"$f":"IF(MIN(C16:F16)<0,1,0)+IF(OR(C16<D16,E16<F16),1,0)","v":0},{"$f":"IF(H16=0,\" \",IF(H16=1,\"Error: \",\"2 errors: \"))&IF(MIN(C16:F16)<0,\"Imports data should not be negative. \",\"\")&IF(OR(C16<D16,E16<F16),\"'Of which: LNG' greater than Total.\",\"\")","v":" "},null,null,null,null,null,null,null,null,null,null,null,null,null,null,null,null,null,null,null,null,null,null,null,null,null,null,null,null,null,null,null,null,null,null,"AT","AUSTRIA",null,null,null,null,null,null,null,null,null,null,null,null,null,null,null,null,null,null,null,null,null,null,null,null,null,null,null,null,null,null,null,null,null,null,null,null,null,null,null,null,null,null,null,null,null,null,null,null,null,null,null,null,null,null,null,null,null,null,null,null,null,null,null,null,null,null,null,null,null,null,null,null,null,null,null,null,null,null,null,"IMPORTS","_Z","_Z","_Z","_Z","_Z","AT",null,"_Z"]
["Azerbaijan",10,null,null,null,null,"",0," ",null,null,null,null,null,null,null,null,null,null,null,null,null,null,null,null,null,null,null,null,null,null,null,null,null,null,null,null,null,null,null,null,null,null,"AZ","AZERBAIJAN",null,null,null,null,null,null,null,null,null,null,null,null,null,null,null,null,null,null,null,null,null,null,null,null,null,null,null,null,null,null,null,null,null,null,null,null,null,null,null,null,null,null,null,null,null,null,null,null,null,null,null,null,null,null,null,null,null,null,null,null,null,null,null,null,null,null,null,null,null,null,null,null,null,null,null,null,null,null,null,"IMPORTS","_Z","_Z","_Z","_Z","_Z","AZ",null,"_Z"]
["Bahamas",11,null,null,null,null,"",0," ",null,null,null,null,null,null,null,null,null,null,null,null,null,null,null,null,null,null,null,null,null,null,null,null,null,null,null,null,null,null,null,null,null,null,"BS","BAHAMAS",null,null,null,null,null,null,null,null,null,null,null,null,null,null,null,null,null,null,null,null,null,null,null,null,null,null,null,null,null,null,null,null,null,null,null,null,null,null,null,null,null,null,null,null,null,null,null,null,null,null,null,null,null,null,null,null,null,null,null,null,null,null,null,null,null,null,null,null,null,null,null,null,null,null,null,null,null,null,null,"IMPORTS","_Z","_Z","_Z","_Z","_Z","BS",null,"_Z"]
["Bahrain",12,null,null,null,null,"",0," ",null,null,null,null,null,null,null,null,null,null,null,null,null,null,null,null,null,null,null,null,null,null,null,null,null,null,null,null,null,null,null,null,null,null,"BH","BAHRAIN",null,null,null,null,null,null,null,null,null,null,null,null,null,null,null,null,null,null,null,null,null,null,null,null,null,null,null,null,null,null,null,null,null,null,null,null,null,null,null,null,null,null,null,null,null,null,null,null,null,null,null,null,null,null,null,null,null,null,null,null,null,null,null,null,null,null,null,null,null,null,null,null,null,null,null,null,null,null,null,"IMPORTS","_Z","_Z","_Z","_Z","_Z","BH",null,"_Z"]
["Bangladesh",13,null,null,null,null,"",0," ",null,null,null,null,null,null,null,null,null,null,null,null,null,null,null,null,null,null,null,null,null,null,null,null,null,null,null,null,null,null,null,null,null,null,"BD","BANGLADESH",null,null,null,null,null,null,null,null,null,null,null,null,null,null,null,null,null,null,null,null,null,null,null,null,null,null,null,null,null,null,null,null,null,null,null,null,null,null,null,null,null,null,null,null,null,null,null,null,null,null,null,null,null,null,null,null,null,null,null,null,null,null,null,null,null,null,null,null,null,null,null,null,null,null,null,null,null,null,null,"IMPORTS","_Z","_Z","_Z","_Z","_Z","BD",null,"_Z"]
["Barbados",14,null,null,null,null,"",0," ",null,null,null,null,null,null,null,null,null,null,null,null,null,null,null,null,null,null,null,null,null,null,null,null,null,null,null,null,null,null,null,null,null,null,"BB","BARBADOS",null,null,null,null,null,null,null,null,null,null,null,null,null,null,null,null,null,null,null,null,null,null,null,null,null,null,null,null,null,null,null,null,null,null,null,null,null,null,null,null,null,null,null,null,null,null,null,null,null,null,null,null,null,null,null,null,null,null,null,null,null,null,null,null,null,null,null,null,null,null,null,null,null,null,null,null,null,null,null,"IMPORTS","_Z","_Z","_Z","_Z","_Z","BB",null,"_Z"]
["Belarus",15,null,null,null,null,"",0," ",null,null,null,null,null,null,null,null,null,null,null,null,null,null,null,null,null,null,null,null,null,null,null,null,null,null,null,null,null,null,null,null,null,null,"BY","BELARUS",null,null,null,null,null,null,null,null,null,null,null,null,null,null,null,null,null,null,null,null,null,null,null,null,null,null,null,null,null,null,null,null,null,null,null,null,null,null,null,null,null,null,null,null,null,null,null,null,null,null,null,null,null,null,null,null,null,null,null,null,null,null,null,null,null,null,null,null,null,null,null,null,null,null,null,null,null,null,null,"IMPORTS","_Z","_Z","_Z","_Z","_Z","BY",null,"_Z"]
["Belgium",16,null,null,null,null,"",0," ",null,null,null,null,null,null,null,null,null,null,null,null,null,null,null,null,null,null,null,null,null,null,null,null,null,null,null,null,null,null,null,null,null,null,"BE","BELGIUM",null,null,null,null,null,null,null,null,null,null,null,null,null,null,null,null,null,null,null,null,null,null,null,null,null,null,null,null,null,null,null,null,null,null,null,null,null,null,null,null,null,null,null,null,null,null,null,null,null,null,null,null,null,null,null,null,null,null,null,null,null,null,null,null,null,null,null,null,null,null,null,null,null,null,null,null,null,null,null,"IMPORTS","_Z","_Z","_Z","_Z","_Z","BE",null,"_Z"]
["Belize",17,null,null,null,null,"",0," ",null,null,null,null,null,null,null,null,null,null,null,null,null,null,null,null,null,null,null,null,null,null,null,null,null,null,null,null,null,null,null,null,null,null,"BZ","BELIZE",null,null,null,null,null,null,null,null,null,null,null,null,null,null,null,null,null,null,null,null,null,null,null,null,null,null,null,null,null,null,null,null,null,null,null,null,null,null,null,null,null,null,null,null,null,null,null,null,null,null,null,null,null,null,null,null,null,null,null,null,null,null,null,null,null,null,null,null,null,null,null,null,null,null,null,null,null,null,null,"IMPORTS","_Z","_Z","_Z","_Z","_Z","BZ",null,"_Z"]
["Benin",18,null,null,null,null,"",0," ",null,null,null,null,null,null,null,null,null,null,null,null,null,null,null,null,null,null,null,null,null,null,null,null,null,null,null,null,null,null,null,null,null,null,"BJ","BENIN",null,null,null,null,null,null,null,null,null,null,null,null,null,null,null,null,null,null,null,null,null,null,null,null,null,null,null,null,null,null,null,null,null,null,null,null,null,null,null,null,null,null,null,null,null,null,null,null,null,null,null,null,null,null,null,null,null,null,null,null,null,null,null,null,null,null,null,null,null,null,null,null,null,null,null,null,null,null,null,"IMPORTS","_Z","_Z","_Z","_Z","_Z","BJ",null,"_Z"]
["Bolivia",19,null,null,null,null,"",0," ",null,null,null,null,null,null,null,null,null,null,null,null,null,null,null,null,null,null,null,null,null,null,null,null,null,null,null,null,null,null,null,null,null,null,"BO","BOLIVIA",null,null,null,null,null,null,null,null,null,null,null,null,null,null,null,null,null,null,null,null,null,null,null,null,null,null,null,null,null,null,null,null,null,null,null,null,null,null,null,null,null,null,null,null,null,null,null,null,null,null,null,null,null,null,null,null,null,null,null,null,null,null,null,null,null,null,null,null,null,null,null,null,null,null,null,null,null,null,null,"IMPORTS","_Z","_Z","_Z","_Z","_Z","BO",null,"_Z"]
["Bosnia and Herzegovina",20,null,null,null,null,"",0," ",null,null,null,null,null,null,null,null,null,null,null,null,null,null,null,null,null,null,null,null,null,null,null,null,null,null,null,null,null,null,null,null,null,null,"BA","BOSNIAHERZ",null,null,null,null,null,null,null,null,null,null,null,null,null,null,null,null,null,null,null,null,null,null,null,null,null,null,null,null,null,null,null,null,null,null,null,null,null,null,null,null,null,null,null,null,null,null,null,null,null,null,null,null,null,null,null,null,null,null,null,null,null,null,null,null,null,null,null,null,null,null,null,null,null,null,null,null,null,null,null,"IMPORTS","_Z","_Z","_Z","_Z","_Z","BA",null,"_Z"]
["Brazil",21,null,null,null,null,"",0," ",null,null,null,null,null,null,null,null,null,null,null,null,null,null,null,null,null,null,null,null,null,null,null,null,null,null,null,null,null,null,null,null,null,null,"BR","BRAZIL",null,null,null,null,null,null,null,null,null,null,null,null,null,null,null,null,null,null,null,null,null,null,null,null,null,null,null,null,null,null,null,null,null,null,null,null,null,null,null,null,null,null,null,null,null,null,null,null,null,null,null,null,null,null,null,null,null,null,null,null,null,null,null,null,null,null,null,null,null,null,null,null,null,null,null,null,null,null,null,"IMPORTS","_Z","_Z","_Z","_Z","_Z","BR",null,"_Z"]
["British Virgin Islands",22,null,null,null,null,"",0," ",null,null,null,null,null,null,null,null,null,null,null,null,null,null,null,null,null,null,null,null,null,null,null,null,null,null,null,null,null,null,null,null,null,null,"VG","BRITVIRGIN",null,null,null,null,null,null,null,null,null,null,null,null,null,null,null,null,null,null,null,null,null,null,null,null,null,null,null,null,null,null,null,null,null,null,null,null,null,null,null,null,null,null,null,null,null,null,null,null,null,null,null,null,null,null,null,null,null,null,null,null,null,null,null,null,null,null,null,null,null,null,null,null,null,null,null,null,null,null,null,"IMPORTS","_Z","_Z","_Z","_Z","_Z","VG",null,"_Z"]
["Brunei Darussalam",23,null,null,null,null,"",0," ",null,null,null,null,null,null,null,null,null,null,null,null,null,null,null,null,null,null,null,null,null,null,null,null,null,null,null,null,null,null,null,null,null,null,"BN","BRUNEI",null,null,null,null,null,null,null,null,null,null,null,null,null,null,null,null,null,null,null,null,null,null,null,null,null,null,null,null,null,null,null,null,null,null,null,null,null,null,null,null,null,null,null,null,null,null,null,null,null,null,null,null,null,null,null,null,null,null,null,null,null,null,null,null,null,null,null,null,null,null,null,null,null,null,null,null,null,null,null,"IMPORTS","_Z","_Z","_Z","_Z","_Z","BN",null,"_Z"]
["Bulgaria",24,null,null,null,null,"",0," ",null,null,null,null,null,null,null,null,null,null,null,null,null,null,null,null,null,null,null,null,null,null,null,null,null,null,null,null,null,null,null,null,null,null,"BG","BULGARIA",null,null,null,null,null,null,null,null,null,null,null,null,null,null,null,null,null,null,null,null,null,null,null,null,null,null,null,null,null,null,null,null,null,null,null,null,null,null,null,null,null,null,null,null,null,null,null,null,null,null,null,null,null,null,null,null,null,null,null,null,null,null,null,null,null,null,null,null,null,null,null,null,null,null,null,null,null,null,null,"IMPORTS","_Z","_Z","_Z","_Z","_Z","BG",null,"_Z"]
["Cambodia",25,null,null,null,null,"",0," ",null,null,null,null,null,null,null,null,null,null,null,null,null,null,null,null,null,null,null,null,null,null,null,null,null,null,null,null,null,null,null,null,null,null,"KH","CAMBODIA",null,null,null,null,null,null,null,null,null,null,null,null,null,null,null,null,null,null,null,null,null,null,null,null,null,null,null,null,null,null,null,null,null,null,null,null,null,null,null,null,null,null,null,null,null,null,null,null,null,null,null,null,null,null,null,null,null,null,null,null,null,null,null,null,null,null,null,null,null,null,null,null,null,null,null,null,null,null,null,"IMPORTS","_Z","_Z","_Z","_Z","_Z","KH",null,"_Z"]
["Cameroon",26,null,null,null,null,"",0," ",null,null,null,null,null,null,null,null,null,null,null,null,null,null,null,null,null,null,null,null,null,null,null,null,null,null,null,null,null,null,null,null,null,null,"CM","CAMEROON",null,null,null,null,null,null,null,null,null,null,null,null,null,null,null,null,null,null,null,null,null,null,null,null,null,null,null,null,null,null,null,null,null,null,null,null,null,null,null,null,null,null,null,null,null,null,null,null,null,null,null,null,null,null,null,null,null,null,null,null,null,null,null,null,null,null,null,null,null,null,null,null,null,null,null,null,null,null,null,"IMPORTS","_Z","_Z","_Z","_Z","_Z","CM",null,"_Z"]
["Canada",27,null,null,null,null,"",0," ",null,null,null,null,null,null,null,null,null,null,null,null,null,null,null,null,null,null,null,null,null,null,null,null,null,null,null,null,null,null,null,null,null,null,"CA","CANADA",null,null,null,null,null,null,null,null,null,null,null,null,null,null,null,null,null,null,null,null,null,null,null,null,null,null,null,null,null,null,null,null,null,null,null,null,null,null,null,null,null,null,null,null,null,null,null,null,null,null,null,null,null,null,null,null,null,null,null,null,null,null,null,null,null,null,null,null,null,null,null,null,null,null,null,null,null,null,null,"IMPORTS","_Z","_Z","_Z","_Z","_Z","CA",null,"_Z"]
["Cape Verde / Cabo Verde",28,null,null,null,null,"",0," ",null,null,null,null,null,null,null,null,null,null,null,null,null,null,null,null,null,null,null,null,null,null,null,null,null,null,null,null,null,null,null,null,null,null,"CV","CABOVERDE",null,null,null,null,null,null,null,null,null,null,null,null,null,null,null,null,null,null,null,null,null,null,null,null,null,null,null,null,null,null,null,null,null,null,null,null,null,null,null,null,null,null,null,null,null,null,null,null,null,null,null,null,null,null,null,null,null,null,null,null,null,null,null,null,null,null,null,null,null,null,null,null,null,null,null,null,null,null,null,"IMPORTS","_Z","_Z","_Z","_Z","_Z","CV",null,"_Z"]
["Chile",29,null,null,null,null,"",0," ",null,null,null,null,null,null,null,null,null,null,null,null,null,null,null,null,null,null,null,null,null,null,null,null,null,null,null,null,null,null,null,null,null,null,"CL","CHILE",null,null,null,null,null,null,null,null,null,null,null,null,null,null,null,null,null,null,null,null,null,null,null,null,null,null,null,null,null,null,null,null,null,null,null,null,null,null,null,null,null,null,null,null,null,null,null,null,null,null,null,null,null,null,null,null,null,null,null,null,null,null,null,null,null,null,null,null,null,null,null,null,null,null,null,null,null,null,null,"IMPORTS","_Z","_Z","_Z","_Z","_Z","CL",null,"_Z"]
["China, People's Republic of",30,null,null,null,null,"",0," ",null,null,null,null,null,null,null,null,null,null,null,null,null,null,null,null,null,null,null,null,null,null,null,null,null,null,null,null,null,null,null,null,null,null,"CN","CHINA",null,null,null,null,null,null,null,null,null,null,null,null,null,null,null,null,null,null,null,null,null,null,null,null,null,null,null,null,null,null,null,null,null,null,null,null,null,null,null,null,null,null,null,null,null,null,null,null,null,null,null,null,null,null,null,null,null,null,null,null,null,null,null,null,null,null,null,null,null,null,null,null,null,null,null,null,null,null,null,"IMPORTS","_Z","_Z","_Z","_Z","_Z","CN",null,"_Z"]
["Colombia",31,null,null,null,null,{"$f":"IF(OR(E38=0,C38=0),\"\",ROUND((E38/C38)*1000,0))","v":""},{"$f":"IF(MIN(C38:F38)<0,1,0)+IF(OR(C38<D38,E38<F38),1,0)","v":0},{"$f":"IF(H38=0,\" \",IF(H38=1,\"Error: \",\"2 errors: \"))&IF(MIN(C38:F38)<0,\"Imports data should not be negative. \",\"\")&IF(OR(C38<D38,E38<F38),\"'Of which: LNG' greater than Total.\",\"\")","v":" "},null,null,null,null,null,null,null,null,null,null,null,null,null,null,null,null,null,null,null,null,null,null,null,null,null,null,null,null,null,null,null,null,null,null,"CO","COLOMBIA",null,null,null,null,null,null,null,null,null,null,null,null,null,null,null,null,null,null,null,null,null,null,null,null,null,null,null,null,null,null,null,null,null,null,null,null,null,null,null,null,null,null,null,null,null,null,null,null,null,null,null,null,null,null,null,null,null,null,null,null,null,null,null,null,null,null,null,null,null,null,null,null,null,null,null,null,null,null,null,"IMPORTS","_Z","_Z","_Z","_Z","_Z","CO",null,"_Z"]
["Congo",32,null,null,null,null,"",0," ",null,null,null,null,null,null,null,null,null,null,null,null,null,null,null,null,null,null,null,null,null,null,null,null,null,null,null,null,null,null,null,null,null,null,"CG","CONGO",null,null,null,null,null,null,null,null,null,null,null,null,null,null,null,null,null,null,null,null,null,null,null,null,null,null,null,null,null,null,null,null,null,null,null,null,null,null,null,null,null,null,null,null,null,null,null,null,null,null,null,null,null,null,null,null,null,null,null,null,null,null,null,null,null,null,null,null,null,null,null,null,null,null,null,null,null,null,null,"IMPORTS","_Z","_Z","_Z","_Z","_Z","CG",null,"_Z"]
["Costa Rica",33,null,null,null,null,"",0," ",null,null,null,null,null,null,null,null,null,null,null,null,null,null,null,null,null,null,null,null,null,null,null,null,null,null,null,null,null,null,null,null,null,null,"CR","COSTARICA",null,null,null,null,null,null,null,null,null,null,null,null,null,null,null,null,null,null,null,null,null,null,null,null,null,null,null,null,null,null,null,null,null,null,null,null,null,null,null,null,null,null,null,null,null,null,null,null,null,null,null,null,null,null,null,null,null,null,null,null,null,null,null,null,null,null,null,null,null,null,null,null,null,null,null,null,null,null,null,"IMPORTS","_Z","_Z","_Z","_Z","_Z","CR",null,"_Z"]
["Côte d’Ivoire",34,null,null,null,null,"",0," ",null,null,null,null,null,null,null,null,null,null,null,null,null,null,null,null,null,null,null,null,null,null,null,null,null,null,null,null,null,null,null,null,null,null,"CI","COTEIVOIRE",null,null,null,null,null,null,null,null,null,null,null,null,null,null,null,null,null,null,null,null,null,null,null,null,null,null,null,null,null,null,null,null,null,null,null,null,null,null,null,null,null,null,null,null,null,null,null,null,null,null,null,null,null,null,null,null,null,null,null,null,null,null,null,null,null,null,null,null,null,null,null,null,null,null,null,null,null,null,null,"IMPORTS","_Z","_Z","_Z","_Z","_Z","CI",null,"_Z"]
["Croatia",35,null,null,null,null,"",0," ",null,null,null,null,null,null,null,null,null,null,null,null,null,null,null,null,null,null,null,null,null,null,null,null,null,null,null,null,null,null,null,null,null,null,"HR","CROATIA",null,null,null,null,null,null,null,null,null,null,null,null,null,null,null,null,null,null,null,null,null,null,null,null,null,null,null,null,null,null,null,null,null,null,null,null,null,null,null,null,null,null,null,null,null,null,null,null,null,null,null,null,null,null,null,null,null,null,null,null,null,null,null,null,null,null,null,null,null,null,null,null,null,null,null,null,null,null,null,"IMPORTS","_Z","_Z","_Z","_Z","_Z","HR",null,"_Z"]
["Cuba",36,null,null,null,null,"",0," ",null,null,null,null,null,null,null,null,null,null,null,null,null,null,null,null,null,null,null,null,null,null,null,null,null,null,null,null,null,null,null,null,null,null,"CU","CUBA",null,null,null,null,null,null,null,null,null,null,null,null,null,null,null,null,null,null,null,null,null,null,null,null,null,null,null,null,null,null,null,null,null,null,null,null,null,null,null,null,null,null,null,null,null,null,null,null,null,null,null,null,null,null,null,null,null,null,null,null,null,null,null,null,null,null,null,null,null,null,null,null,null,null,null,null,null,null,null,"IMPORTS","_Z","_Z","_Z","_Z","_Z","CU",null,"_Z"]
["Curaçao",37,null,null,null,null,"",0," ",null,null,null,null,null,null,null,null,null,null,null,null,null,null,null,null,null,null,null,null,null,null,null,null,null,null,null,null,null,null,null,null,null,null,"CW","CURACAO",null,null,null,null,null,null,null,null,null,null,null,null,null,null,null,null,null,null,null,null,null,null,null,null,null,null,null,null,null,null,null,null,null,null,null,null,null,null,null,null,null,null,null,null,null,null,null,null,null,null,null,null,null,null,null,null,null,null,null,null,null,null,null,null,null,null,null,null,null,null,null,null,null,null,null,null,null,null,null,"IMPORTS","_Z","_Z","_Z","_Z","_Z","CW",null,"_Z"]
["Cyprus",38,null,null,null,null,"",0," ",null,null,null,null,null,null,null,null,null,null,null,null,null,null,null,null,null,null,null,null,null,null,null,null,null,null,null,null,null,null,null,null,null,null,"CY","CYPRUS",null,null,null,null,null,null,null,null,null,null,null,null,null,null,null,null,null,null,null,null,null,null,null,null,null,null,null,null,null,null,null,null,null,null,null,null,null,null,null,null,null,null,null,null,null,null,null,null,null,null,null,null,null,null,null,null,null,null,null,null,null,null,null,null,null,null,null,null,null,null,null,null,null,null,null,null,null,null,null,"IMPORTS","_Z","_Z","_Z","_Z","_Z","CY",null,"_Z"]
["Czech Republic",39,null,null,null,null,"",0," ",null,null,null,null,null,null,null,null,null,null,null,null,null,null,null,null,null,null,null,null,null,null,null,null,null,null,null,null,null,null,null,null,null,null,"CZ","CZECH",null,null,null,null,null,null,null,null,null,null,null,null,null,null,null,null,null,null,null,null,null,null,null,null,null,null,null,null,null,null,null,null,null,null,null,null,null,null,null,null,null,null,null,null,null,null,null,null,null,null,null,null,null,null,null,null,null,null,null,null,null,null,null,null,null,null,null,null,null,null,null,null,null,null,null,null,null,null,null,"IMPORTS","_Z","_Z","_Z","_Z","_Z","CZ",null,"_Z"]
["Korea, Democratic People's Republic of",40,null,null,null,null,"",0," ",null,null,null,null,null,null,null,null,null,null,null,null,null,null,null,null,null,null,null,null,null,null,null,null,null,null,null,null,null,null,null,null,null,null,"KP","KOREADPR",null,null,null,null,null,null,null,null,null,null,null,null,null,null,null,null,null,null,null,null,null,null,null,null,null,null,null,null,null,null,null,null,null,null,null,null,null,null,null,null,null,null,null,null,null,null,null,null,null,null,null,null,null,null,null,null,null,null,null,null,null,null,null,null,null,null,null,null,null,null,null,null,null,null,null,null,null,null,null,"IMPORTS","_Z","_Z","_Z","_Z","_Z","KP",null,"_Z"]
["Congo, Democratic Republic of the",41,null,null,null,null,"",0," ",null,null,null,null,null,null,null,null,null,null,null,null,null,null,null,null,null,null,null,null,null,null,null,null,null,null,null,null,null,null,null,null,null,null,"CD","CONGOREP",null,null,null,null,null,null,null,null,null,null,null,null,null,null,null,null,null,null,null,null,null,null,null,null,null,null,null,null,null,null,null,null,null,null,null,null,null,null,null,null,null,null,null,null,null,null,null,null,null,null,null,null,null,null,null,null,null,null,null,null,null,null,null,null,null,null,null,null,null,null,null,null,null,null,null,null,null,null,null,"IMPORTS","_Z","_Z","_Z","_Z","_Z","CD",null,"_Z"]
["Denmark",42,null,null,null,null,"",0," ",null,null,null,null,null,null,null,null,null,null,null,null,null,null,null,null,null,null,null,null,null,null,null,null,null,null,null,null,null,null,null,null,null,null,"DK","DENMARK",null,null,null,null,null,null,null,null,null,null,null,null,null,null,null,null,null,null,null,null,null,null,null,null,null,null,null,null,null,null,null,null,null,null,null,null,null,null,null,null,null,null,null,null,null,null,null,null,null,null,null,null,null,null,null,null,null,null,null,null,null,null,null,null,null,null,null,null,null,null,null,null,null,null,null,null,null,null,null,"IMPORTS","_Z","_Z","_Z","_Z","_Z","DK",null,"_Z"]
["Djibouti",43,null,null,null,null,"",0," ",null,null,null,null,null,null,null,null,null,null,null,null,null,null,null,null,null,null,null,null,null,null,null,null,null,null,null,null,null,null,null,null,null,null,"DJ","DJIBOUTI",null,null,null,null,null,null,null,null,null,null,null,null,null,null,null,null,null,null,null,null,null,null,null,null,null,null,null,null,null,null,null,null,null,null,null,null,null,null,null,null,null,null,null,null,null,null,null,null,null,null,null,null,null,null,null,null,null,null,null,null,null,null,null,null,null,null,null,null,null,null,null,null,null,null,null,null,null,null,null,"IMPORTS","_Z","_Z","_Z","_Z","_Z","DJ",null,"_Z"]
["Dominican Republic",44,null,null,null,null,"",0," ",null,null,null,null,null,null,null,null,null,null,null,null,null,null,null,null,null,null,null,null,null,null,null,null,null,null,null,null,null,null,null,null,null,null,"DO","DOMINICANR",null,null,null,null,null,null,null,null,null,null,null,null,null,null,null,null,null,null,null,null,null,null,null,null,null,null,null,null,null,null,null,null,null,null,null,null,null,null,null,null,null,null,null,null,null,null,null,null,null,null,null,null,null,null,null,null,null,null,null,null,null,null,null,null,null,null,null,null,null,null,null,null,null,null,null,null,null,null,null,"IMPORTS","_Z","_Z","_Z","_Z","_Z","DO",null,"_Z"]
["Ecuador",45,null,null,null,null,"",0," ",null,null,null,null,null,null,null,null,null,null,null,null,null,null,null,null,null,null,null,null,null,null,null,null,null,null,null,null,null,null,null,null,null,null,"EC","ECUADOR",null,null,null,null,null,null,null,null,null,null,null,null,null,null,null,null,null,null,null,null,null,null,null,null,null,null,null,null,null,null,null,null,null,null,null,null,null,null,null,null,null,null,null,null,null,null,null,null,null,null,null,null,null,null,null,null,null,null,null,null,null,null,null,null,null,null,null,null,null,null,null,null,null,null,null,null,null,null,null,"IMPORTS","_Z","_Z","_Z","_Z","_Z","EC",null,"_Z"]
["Egypt",46,null,null,null,null,"",0," ",null,null,null,null,null,null,null,null,null,null,null,null,null,null,null,null,null,null,null,null,null,null,null,null,null,null,null,null,null,null,null,null,null,null,"EG","EGYPT",null,null,null,null,null,null,null,null,null,null,null,null,null,null,null,null,null,null,null,null,null,null,null,null,null,null,null,null,null,null,null,null,null,null,null,null,null,null,null,null,null,null,null,null,null,null,null,null,null,null,null,null,null,null,null,null,null,null,null,null,null,null,null,null,null,null,null,null,null,null,null,null,null,null,null,null,null,null,null,"IMPORTS","_Z","_Z","_Z","_Z","_Z","EG",null,"_Z"]
["Equatorial Guinea",47,null,null,null,null,"",0," ",null,null,null,null,null,null,null,null,null,null,null,null,null,null,null,null,null,null,null,null,null,null,null,null,null,null,null,null,null,null,null,null,null,null,"GQ","EQGUINEA",null,null,null,null,null,null,null,null,null,null,null,null,null,null,null,null,null,null,null,null,null,null,null,null,null,null,null,null,null,null,null,null,null,null,null,null,null,null,null,null,null,null,null,null,null,null,null,null,null,null,null,null,null,null,null,null,null,null,null,null,null,null,null,null,null,null,null,null,null,null,null,null,null,null,null,null,null,null,null,"IMPORTS","_Z","_Z","_Z","_Z","_Z","GQ",null,"_Z"]
["Eritrea",48,null,null,null,null,{"$f":"IF(OR(E55=0,C55=0),\"\",ROUND((E55/C55)*1000,0))","v":""},{"$f":"IF(MIN(C55:F55)<0,1,0)+IF(OR(C55<D55,E55<F55),1,0)","v":0},{"$f":"IF(H55=0,\" \",IF(H55=1,\"Error: \",\"2 errors: \"))&IF(MIN(C55:F55)<0,\"Imports data should not be negative. \",\"\")&IF(OR(C55<D55,E55<F55),\"'Of which: LNG' greater than Total.\",\"\")","v":" "},null,null,null,null,null,null,null,null,null,null,null,null,null,null,null,null,null,null,null,null,null,null,null,null,null,null,null,null,null,null,null,null,null,null,"ER","ERITREA",null,null,null,null,null,null,null,null,null,null,null,null,null,null,null,null,null,null,null,null,null,null,null,null,null,null,null,null,null,null,null,null,null,null,null,null,null,null,null,null,null,null,null,null,null,null,null,null,null,null,null,null,null,null,null,null,null,null,null,null,null,null,null,null,null,null,null,null,null,null,null,null,null,null,null,null,null,null,null,"IMPORTS","_Z","_Z","_Z","_Z","_Z","ER",null,"_Z"]
["Estonia",49,null,null,null,null,"",0," ",null,null,null,null,null,null,null,null,null,null,null,null,null,null,null,null,null,null,null,null,null,null,null,null,null,null,null,null,null,null,null,null,null,null,"EE","ESTONIA",null,null,null,null,null,null,null,null,null,null,null,null,null,null,null,null,null,null,null,null,null,null,null,null,null,null,null,null,null,null,null,null,null,null,null,null,null,null,null,null,null,null,null,null,null,null,null,null,null,null,null,null,null,null,null,null,null,null,null,null,null,null,null,null,null,null,null,null,null,null,null,null,null,null,null,null,null,null,null,"IMPORTS","_Z","_Z","_Z","_Z","_Z","EE",null,"_Z"]
["Ethiopia",50,null,null,null,null,"",0," ",null,null,null,null,null,null,null,null,null,null,null,null,null,null,null,null,null,null,null,null,null,null,null,null,null,null,null,null,null,null,null,null,null,null,"ET","ETHIOPIA",null,null,null,null,null,null,null,null,null,null,null,null,null,null,null,null,null,null,null,null,null,null,null,null,null,null,null,null,null,null,null,null,null,null,null,null,null,null,null,null,null,null,null,null,null,null,null,null,null,null,null,null,null,null,null,null,null,null,null,null,null,null,null,null,null,null,null,null,null,null,null,null,null,null,null,null,null,null,null,"IMPORTS","_Z","_Z","_Z","_Z","_Z","ET",null,"_Z"]
["Finland",51,null,null,null,null,"",0," ",null,null,null,null,null,null,null,null,null,null,null,null,null,null,null,null,null,null,null,null,null,null,null,null,null,null,null,null,null,null,null,null,null,null,"FI","FINLAND",null,null,null,null,null,null,null,null,null,null,null,null,null,null,null,null,null,null,null,null,null,null,null,null,null,null,null,null,null,null,null,null,null,null,null,null,null,null,null,null,null,null,null,null,null,null,null,null,null,null,null,null,null,null,null,null,null,null,null,null,null,null,null,null,null,null,null,null,null,null,null,null,null,null,null,null,null,null,null,"IMPORTS","_Z","_Z","_Z","_Z","_Z","FI",null,"_Z"]
["France",52,null,null,null,null,"",0," ",null,null,null,null,null,null,null,null,null,null,null,null,null,null,null,null,null,null,null,null,null,null,null,null,null,null,null,null,null,null,null,null,null,null,"FR","FRANCE",null,null,null,null,null,null,null,null,null,null,null,null,null,null,null,null,null,null,null,null,null,null,null,null,null,null,null,null,null,null,null,null,null,null,null,null,null,null,null,null,null,null,null,null,null,null,null,null,null,null,null,null,null,null,null,null,null,null,null,null,null,null,null,null,null,null,null,null,null,null,null,null,null,null,null,null,null,null,null,"IMPORTS","_Z","_Z","_Z","_Z","_Z","FR",null,"_Z"]
["Gabon",53,null,null,null,null,"",0," ",null,null,null,null,null,null,null,null,null,null,null,null,null,null,null,null,null,null,null,null,null,null,null,null,null,null,null,null,null,null,null,null,null,null,"GA","GABON",null,null,null,null,null,null,null,null,null,null,null,null,null,null,null,null,null,null,null,null,null,null,null,null,null,null,null,null,null,null,null,null,null,null,null,null,null,null,null,null,null,null,null,null,null,null,null,null,null,null,null,null,null,null,null,null,null,null,null,null,null,null,null,null,null,null,null,null,null,null,null,null,null,null,null,null,null,null,null,"IMPORTS","_Z","_Z","_Z","_Z","_Z","GA",null,"_Z"]
["Georgia",54,null,null,null,null,"",0," ",null,null,null,null,null,null,null,null,null,null,null,null,null,null,null,null,null,null,null,null,null,null,null,null,null,null,null,null,null,null,null,null,null,null,"GE","GEORGIA",null,null,null,null,null,null,null,null,null,null,null,null,null,null,null,null,null,null,null,null,null,null,null,null,null,null,null,null,null,null,null,null,null,null,null,null,null,null,null,null,null,null,null,null,null,null,null,null,null,null,null,null,null,null,null,null,null,null,null,null,null,null,null,null,null,null,null,null,null,null,null,null,null,null,null,null,null,null,null,"IMPORTS","_Z","_Z","_Z","_Z","_Z","GE",null,"_Z"]
["Germany",55,null,null,null,null,"",0," ",null,null,null,null,null,null,null,null,null,null,null,null,null,null,null,null,null,null,null,null,null,null,null,null,null,null,null,null,null,null,null,null,null,null,"DE","GERMANY",null,null,null,null,null,null,null,null,null,null,null,null,null,null,null,null,null,null,null,null,null,null,null,null,null,null,null,null,null,null,null,null,null,null,null,null,null,null,null,null,null,null,null,null,null,null,null,null,null,null,null,null,null,null,null,null,null,null,null,null,null,null,null,null,null,null,null,null,null,null,null,null,null,null,null,null,null,null,null,"IMPORTS","_Z","_Z","_Z","_Z","_Z","DE",null,"_Z"]
["Ghana",56,null,null,null,null,"",0," ",null,null,null,null,null,null,null,null,null,null,null,null,null,null,null,null,null,null,null,null,null,null,null,null,null,null,null,null,null,null,null,null,null,null,"GH","GHANA",null,null,null,null,null,null,null,null,null,null,null,null,null,null,null,null,null,null,null,null,null,null,null,null,null,null,null,null,null,null,null,null,null,null,null,null,null,null,null,null,null,null,null,null,null,null,null,null,null,null,null,null,null,null,null,null,null,null,null,null,null,null,null,null,null,null,null,null,null,null,null,null,null,null,null,null,null,null,null,"IMPORTS","_Z","_Z","_Z","_Z","_Z","GH",null,"_Z"]
["Gibraltar",57,null,null,null,null,"",0," ",null,null,null,null,null,null,null,null,null,null,null,null,null,null,null,null,null,null,null,null,null,null,null,null,null,null,null,null,null,null,null,null,null,null,"GI","GIBRALTAR",null,null,null,null,null,null,null,null,null,null,null,null,null,null,null,null,null,null,null,null,null,null,null,null,null,null,null,null,null,null,null,null,null,null,null,null,null,null,null,null,null,null,null,null,null,null,null,null,null,null,null,null,null,null,null,null,null,null,null,null,null,null,null,null,null,null,null,null,null,null,null,null,null,null,null,null,null,null,null,"IMPORTS","_Z","_Z","_Z","_Z","_Z","GI",null,"_Z"]
["Greece",58,null,null,null,null,"",0," ",null,null,null,null,null,null,null,null,null,null,null,null,null,null,null,null,null,null,null,null,null,null,null,null,null,null,null,null,null,null,null,null,null,null,"GR","GREECE",null,null,null,null,null,null,null,null,null,null,null,null,null,null,null,null,null,null,null,null,null,null,null,null,null,null,null,null,null,null,null,null,null,null,null,null,null,null,null,null,null,null,null,null,null,null,null,null,null,null,null,null,null,null,null,null,null,null,null,null,null,null,null,null,null,null,null,null,null,null,null,null,null,null,null,null,null,null,null,"IMPORTS","_Z","_Z","_Z","_Z","_Z","GR",null,"_Z"]
["Guatemala",59,null,null,null,null,"",0," ",null,null,null,null,null,null,null,null,null,null,null,null,null,null,null,null,null,null,null,null,null,null,null,null,null,null,null,null,null,null,null,null,null,null,"GT","GUATEMALA",null,null,null,null,null,null,null,null,null,null,null,null,null,null,null,null,null,null,null,null,null,null,null,null,null,null,null,null,null,null,null,null,null,null,null,null,null,null,null,null,null,null,null,null,null,null,null,null,null,null,null,null,null,null,null,null,null,null,null,null,null,null,null,null,null,null,null,null,null,null,null,null,null,null,null,null,null,null,null,"IMPORTS","_Z","_Z","_Z","_Z","_Z","GT",null,"_Z"]
["Guinea-Bissau",60,null,null,null,null,"",0," ",null,null,null,null,null,null,null,null,null,null,null,null,null,null,null,null,null,null,null,null,null,null,null,null,null,null,null,null,null,null,null,null,null,null,"GW","GUINEABIS",null,null,null,null,null,null,null,null,null,null,null,null,null,null,null,null,null,null,null,null,null,null,null,null,null,null,null,null,null,null,null,null,null,null,null,null,null,null,null,null,null,null,null,null,null,null,null,null,null,null,null,null,null,null,null,null,null,null,null,null,null,null,null,null,null,null,null,null,null,null,null,null,null,null,null,null,null,null,null,"IMPORTS","_Z","_Z","_Z","_Z","_Z","GW",null,"_Z"]
["Honduras",61,null,null,null,null,"",0," ",null,null,null,null,null,null,null,null,null,null,null,null,null,null,null,null,null,null,null,null,null,null,null,null,null,null,null,null,null,null,null,null,null,null,"HN","HONDURAS",null,null,null,null,null,null,null,null,null,null,null,null,null,null,null,null,null,null,null,null,null,null,null,null,null,null,null,null,null,null,null,null,null,null,null,null,null,null,null,null,null,null,null,null,null,null,null,null,null,null,null,null,null,null,null,null,null,null,null,null,null,null,null,null,null,null,null,null,null,null,null,null,null,null,null,null,null,null,null,"IMPORTS","_Z","_Z","_Z","_Z","_Z","HN",null,"_Z"]
["Hong Kong, China",62,null,null,null,null,"",0," ",null,null,null,null,null,null,null,null,null,null,null,null,null,null,null,null,null,null,null,null,null,null,null,null,null,null,null,null,null,null,null,null,null,null,"HK","HONGKONG",null,null,null,null,null,null,null,null,null,null,null,null,null,null,null,null,null,null,null,null,null,null,null,null,null,null,null,null,null,null,null,null,null,null,null,null,null,null,null,null,null,null,null,null,null,null,null,null,null,null,null,null,null,null,null,null,null,null,null,null,null,null,null,null,null,null,null,null,null,null,null,null,null,null,null,null,null,null,null,"IMPORTS","_Z","_Z","_Z","_Z","_Z","HK",null,"_Z"]
["Hungary",63,null,null,null,null,"",0," ",null,null,null,null,null,null,null,null,null,null,null,null,null,null,null,null,null,null,null,null,null,null,null,null,null,null,null,null,null,null,null,null,null,null,"HU","HUNGARY",null,null,null,null,null,null,null,null,null,null,null,null,null,null,null,null,null,null,null,null,null,null,null,null,null,null,null,null,null,null,null,null,null,null,null,null,null,null,null,null,null,null,null,null,null,null,null,null,null,null,null,null,null,null,null,null,null,null,null,null,null,null,null,null,null,null,null,null,null,null,null,null,null,null,null,null,null,null,null,"IMPORTS","_Z","_Z","_Z","_Z","_Z","HU",null,"_Z"]
["Iceland",64,null,null,null,null,"",0," ",null,null,null,null,null,null,null,null,null,null,null,null,null,null,null,null,null,null,null,null,null,null,null,null,null,null,null,null,null,null,null,null,null,null,"IS","ICELAND",null,null,null,null,null,null,null,null,null,null,null,null,null,null,null,null,null,null,null,null,null,null,null,null,null,null,null,null,null,null,null,null,null,null,null,null,null,null,null,null,null,null,null,null,null,null,null,null,null,null,null,null,null,null,null,null,null,null,null,null,null,null,null,null,null,null,null,null,null,null,null,null,null,null,null,null,null,null,null,"IMPORTS","_Z","_Z","_Z","_Z","_Z","IS",null,"_Z"]
["India",65,null,null,null,null,"",0," ",null,null,null,null,null,null,null,null,null,null,null,null,null,null,null,null,null,null,null,null,null,null,null,null,null,null,null,null,null,null,null,null,null,null,"IN","INDIA",null,null,null,null,null,null,null,null,null,null,null,null,null,null,null,null,null,null,null,null,null,null,null,null,null,null,null,null,null,null,null,null,null,null,null,null,null,null,null,null,null,null,null,null,null,null,null,null,null,null,null,null,null,null,null,null,null,null,null,null,null,null,null,null,null,null,null,null,null,null,null,null,null,null,null,null,null,null,null,"IMPORTS","_Z","_Z","_Z","_Z","_Z","IN",null,"_Z"]
["Indonesia",66,null,null,null,null,"",0," ",null,null,null,null,null,null,null,null,null,null,null,null,null,null,null,null,null,null,null,null,null,null,null,null,null,null,null,null,null,null,null,null,null,null,"ID","INDONESIA",null,null,null,null,null,null,null,null,null,null,null,null,null,null,null,null,null,null,null,null,null,null,null,null,null,null,null,null,null,null,null,null,null,null,null,null,null,null,null,null,null,null,null,null,null,null,null,null,null,null,null,null,null,null,null,null,null,null,null,null,null,null,null,null,null,null,null,null,null,null,null,null,null,null,null,null,null,null,null,"IMPORTS","_Z","_Z","_Z","_Z","_Z","ID",null,"_Z"]
["Iran, Islamic Republic of",67,null,null,null,null,"",0," ",null,null,null,null,null,null,null,null,null,null,null,null,null,null,null,null,null,null,null,null,null,null,null,null,null,null,null,null,null,null,null,null,null,null,"IR","IRAN",null,null,null,null,null,null,null,null,null,null,null,null,null,null,null,null,null,null,null,null,null,null,null,null,null,null,null,null,null,null,null,null,null,null,null,null,null,null,null,null,null,null,null,null,null,null,null,null,null,null,null,null,null,null,null,null,null,null,null,null,null,null,null,null,null,null,null,null,null,null,null,null,null,null,null,null,null,null,null,"IMPORTS","_Z","_Z","_Z","_Z","_Z","IR",null,"_Z"]
["Iraq",68,null,null,null,null,"",0," ",null,null,null,null,null,null,null,null,null,null,null,null,null,null,null,null,null,null,null,null,null,null,null,null,null,null,null,null,null,null,null,null,null,null,"IQ","IRAQ",null,null,null,null,null,null,null,null,null,null,null,null,null,null,null,null,null,null,null,null,null,null,null,null,null,null,null,null,null,null,null,null,null,null,null,null,null,null,null,null,null,null,null,null,null,null,null,null,null,null,null,null,null,null,null,null,null,null,null,null,null,null,null,null,null,null,null,null,null,null,null,null,null,null,null,null,null,null,null,"IMPORTS","_Z","_Z","_Z","_Z","_Z","IQ",null,"_Z"]
["Ireland",69,null,null,null,null,"",0," ",null,null,null,null,null,null,null,null,null,null,null,null,null,null,null,null,null,null,null,null,null,null,null,null,null,null,null,null,null,null,null,null,null,null,"IE","IRELAND",null,null,null,null,null,null,null,null,null,null,null,null,null,null,null,null,null,null,null,null,null,null,null,null,null,null,null,null,null,null,null,null,null,null,null,null,null,null,null,null,null,null,null,null,null,null,null,null,null,null,null,null,null,null,null,null,null,null,null,null,null,null,null,null,null,null,null,null,null,null,null,null,null,null,null,null,null,null,null,"IMPORTS","_Z","_Z","_Z","_Z","_Z","IE",null,"_Z"]
["Israel",70,null,null,null,null,"",0," ",null,null,null,null,null,null,null,null,null,null,null,null,null,null,null,null,null,null,null,null,null,null,null,null,null,null,null,null,null,null,null,null,null,null,"IL","ISRAEL",null,null,null,null,null,null,null,null,null,null,null,null,null,null,null,null,null,null,null,null,null,null,null,null,null,null,null,null,null,null,null,null,null,null,null,null,null,null,null,null,null,null,null,null,null,null,null,null,null,null,null,null,null,null,null,null,null,null,null,null,null,null,null,null,null,null,null,null,null,null,null,null,null,null,null,null,null,null,null,"IMPORTS","_Z","_Z","_Z","_Z","_Z","IL",null,"_Z"]
["Italy",71,null,null,null,null,"",0," ",null,null,null,null,null,null,null,null,null,null,null,null,null,null,null,null,null,null,null,null,null,null,null,null,null,null,null,null,null,null,null,null,null,null,"IT","ITALY",null,null,null,null,null,null,null,null,null,null,null,null,null,null,null,null,null,null,null,null,null,null,null,null,null,null,null,null,null,null,null,null,null,null,null,null,null,null,null,null,null,null,null,null,null,null,null,null,null,null,null,null,null,null,null,null,null,null,null,null,null,null,null,null,null,null,null,null,null,null,null,null,null,null,null,null,null,null,null,"IMPORTS","_Z","_Z","_Z","_Z","_Z","IT",null,"_Z"]
["Jamaica",72,null,null,null,null,"",0," ",null,null,null,null,null,null,null,null,null,null,null,null,null,null,null,null,null,null,null,null,null,null,null,null,null,null,null,null,null,null,null,null,null,null,"JM","JAMAICA",null,null,null,null,null,null,null,null,null,null,null,null,null,null,null,null,null,null,null,null,null,null,null,null,null,null,null,null,null,null,null,null,null,null,null,null,null,null,null,null,null,null,null,null,null,null,null,null,null,null,null,null,null,null,null,null,null,null,null,null,null,null,null,null,null,null,null,null,null,null,null,null,null,null,null,null,null,null,null,"IMPORTS","_Z","_Z","_Z","_Z","_Z","JM",null,"_Z"]
["Japan",73,null,null,null,null,{"$f":"IF(OR(E80=0,C80=0),\"\",ROUND((E80/C80)*1000,0))","v":""},0," ",null,null,null,null,null,null,null,null,null,null,null,null,null,null,null,null,null,null,null,null,null,null,null,null,null,null,null,null,null,null,null,null,null,null,"JP","JAPAN",null,null,null,null,null,null,null,null,null,null,null,null,null,null,null,null,null,null,null,null,null,null,null,null,null,null,null,null,null,null,null,null,null,null,null,null,null,null,null,null,null,null,null,null,null,null,null,null,null,null,null,null,null,null,null,null,null,null,null,null,null,null,null,null,null,null,null,null,null,null,null,null,null,null,null,null,null,null,null,"IMPORTS","_Z","_Z","_Z","_Z","_Z","JP",null,"_Z"]
["Jordan",74,null,null,null,null,"",0," ",null,null,null,null,null,null,null,null,null,null,null,null,null,null,null,null,null,null,null,null,null,null,null,null,null,null,null,null,null,null,null,null,null,null,"JO","JORDAN",null,null,null,null,null,null,null,null,null,null,null,null,null,null,null,null,null,null,null,null,null,null,null,null,null,null,null,null,null,null,null,null,null,null,null,null,null,null,null,null,null,null,null,null,null,null,null,null,null,null,null,null,null,null,null,null,null,null,null,null,null,null,null,null,null,null,null,null,null,null,null,null,null,null,null,null,null,null,null,"IMPORTS","_Z","_Z","_Z","_Z","_Z","JO",null,"_Z"]
["Kazakhstan",75,null,null,null,null,"",0," ",null,null,null,null,null,null,null,null,null,null,null,null,null,null,null,null,null,null,null,null,null,null,null,null,null,null,null,null,null,null,null,null,null,null,"KZ","KAZAKHSTAN",null,null,null,null,null,null,null,null,null,null,null,null,null,null,null,null,null,null,null,null,null,null,null,null,null,null,null,null,null,null,null,null,null,null,null,null,null,null,null,null,null,null,null,null,null,null,null,null,null,null,null,null,null,null,null,null,null,null,null,null,null,null,null,null,null,null,null,null,null,null,null,null,null,null,null,null,null,null,null,"IMPORTS","_Z","_Z","_Z","_Z","_Z","KZ",null,"_Z"]
["Kenya",76,null,null,null,null,"",0," ",null,null,null,null,null,null,null,null,null,null,null,null,null,null,null,null,null,null,null,null,null,null,null,null,null,null,null,null,null,null,null,null,null,null,"KE","KENYA",null,null,null,null,null,null,null,null,null,null,null,null,null,null,null,null,null,null,null,null,null,null,null,null,null,null,null,null,null,null,null,null,null,null,null,null,null,null,null,null,null,null,null,null,null,null,null,null,null,null,null,null,null,null,null,null,null,null,null,null,null,null,null,null,null,null,null,null,null,null,null,null,null,null,null,null,null,null,null,"IMPORTS","_Z","_Z","_Z","_Z","_Z","KE",null,"_Z"]
["Korea",77,null,null,null,null,"",0," ",null,null,null,null,null,null,null,null,null,null,null,null,null,null,null,null,null,null,null,null,null,null,null,null,null,null,null,null,null,null,null,null,null,null,"KR","KOREA",null,null,null,null,null,null,null,null,null,null,null,null,null,null,null,null,null,null,null,null,null,null,null,null,null,null,null,null,null,null,null,null,null,null,null,null,null,null,null,null,null,null,null,null,null,null,null,null,null,null,null,null,null,null,null,null,null,null,null,null,null,null,null,null,null,null,null,null,null,null,null,null,null,null,null,null,null,null,null,"IMPORTS","_Z","_Z","_Z","_Z","_Z","KR",null,"_Z"]
["Kosovo*",78,null,null,null,null,"",0," ",null,null,null,null,null,null,null,null,null,null,null,null,null,null,null,null,null,null,null,null,null,null,null,null,null,null,null,null,null,null,null,null,null,null,"XK","KOSOVO",null,null,null,null,null,null,null,null,null,null,null,null,null,null,null,null,null,null,null,null,null,null,null,null,null,null,null,null,null,null,null,null,null,null,null,null,null,null,null,null,null,null,null,null,null,null,null,null,null,null,null,null,null,null,null,null,null,null,null,null,null,null,null,null,null,null,null,null,null,null,null,null,null,null,null,null,null,null,null,"IMPORTS","_Z","_Z","_Z","_Z","_Z","XK",null,"_Z"]
["Kuwait",79,null,null,null,null,"",0," ",null,null,null,null,null,null,null,null,null,null,null,null,null,null,null,null,null,null,null,null,null,null,null,null,null,null,null,null,null,null,null,null,null,null,"KW","KUWAIT",null,null,null,null,null,null,null,null,null,null,null,null,null,null,null,null,null,null,null,null,null,null,null,null,null,null,null,null,null,null,null,null,null,null,null,null,null,null,null,null,null,null,null,null,null,null,null,null,null,null,null,null,null,null,null,null,null,null,null,null,null,null,null,null,null,null,null,null,null,null,null,null,null,null,null,null,null,null,null,"IMPORTS","_Z","_Z","_Z","_Z","_Z","KW",null,"_Z"]
["Kyrgyzstan",80,null,null,null,null,"",0," ",null,null,null,null,null,null,null,null,null,null,null,null,null,null,null,null,null,null,null,null,null,null,null,null,null,null,null,null,null,null,null,null,null,null,"KG","KYRGYZSTAN",null,null,null,null,null,null,null,null,null,null,null,null,null,null,null,null,null,null,null,null,null,null,null,null,null,null,null,null,null,null,null,null,null,null,null,null,null,null,null,null,null,null,null,null,null,null,null,null,null,null,null,null,null,null,null,null,null,null,null,null,null,null,null,null,null,null,null,null,null,null,null,null,null,null,null,null,null,null,null,"IMPORTS","_Z","_Z","_Z","_Z","_Z","KG",null,"_Z"]
["Lao People's Democratic Republic",81,null,null,null,null,"",0," ",null,null,null,null,null,null,null,null,null,null,null,null,null,null,null,null,null,null,null,null,null,null,null,null,null,null,null,null,null,null,null,null,null,null,"LA","LAO",null,null,null,null,null,null,null,null,null,null,null,null,null,null,null,null,null,null,null,null,null,null,null,null,null,null,null,null,null,null,null,null,null,null,null,null,null,null,null,null,null,null,null,null,null,null,null,null,null,null,null,null,null,null,null,null,null,null,null,null,null,null,null,null,null,null,null,null,null,null,null,null,null,null,null,null,null,null,null,"IMPORTS","_Z","_Z","_Z","_Z","_Z","LA",null,"_Z"]
["Latvia",82,null,null,null,null,"",0," ",null,null,null,null,null,null,null,null,null,null,null,null,null,null,null,null,null,null,null,null,null,null,null,null,null,null,null,null,null,null,null,null,null,null,"LV","LATVIA",null,null,null,null,null,null,null,null,null,null,null,null,null,null,null,null,null,null,null,null,null,null,null,null,null,null,null,null,null,null,null,null,null,null,null,null,null,null,null,null,null,null,null,null,null,null,null,null,null,null,null,null,null,null,null,null,null,null,null,null,null,null,null,null,null,null,null,null,null,null,null,null,null,null,null,null,null,null,null,"IMPORTS","_Z","_Z","_Z","_Z","_Z","LV",null,"_Z"]
["Lebanon",83,null,null,null,null,{"$f":"IF(OR(E90=0,C90=0),\"\",ROUND((E90/C90)*1000,0))","v":""},0," ",null,null,null,null,null,null,null,null,null,null,null,null,null,null,null,null,null,null,null,null,null,null,null,null,null,null,null,null,null,null,null,null,null,null,"LB","LEBANON",null,null,null,null,null,null,null,null,null,null,null,null,null,null,null,null,null,null,null,null,null,null,null,null,null,null,null,null,null,null,null,null,null,null,null,null,null,null,null,null,null,null,null,null,null,null,null,null,null,null,null,null,null,null,null,null,null,null,null,null,null,null,null,null,null,null,null,null,null,null,null,null,null,null,null,null,null,null,null,"IMPORTS","_Z","_Z","_Z","_Z","_Z","LB",null,"_Z"]
["Liberia",84,null,null,null,null,"",0," ",null,null,null,null,null,null,null,null,null,null,null,null,null,null,null,null,null,null,null,null,null,null,null,null,null,null,null,null,null,null,null,null,null,null,"LR","LIBERIA",null,null,null,null,null,null,null,null,null,null,null,null,null,null,null,null,null,null,null,null,null,null,null,null,null,null,null,null,null,null,null,null,null,null,null,null,null,null,null,null,null,null,null,null,null,null,null,null,null,null,null,null,null,null,null,null,null,null,null,null,null,null,null,null,null,null,null,null,null,null,null,null,null,null,null,null,null,null,null,"IMPORTS","_Z","_Z","_Z","_Z","_Z","LR",null,"_Z"]
["Libya",85,null,null,null,null,"",0," ",null,null,null,null,null,null,null,null,null,null,null,null,null,null,null,null,null,null,null,null,null,null,null,null,null,null,null,null,null,null,null,null,null,null,"LY","LIBYA",null,null,null,null,null,null,null,null,null,null,null,null,null,null,null,null,null,null,null,null,null,null,null,null,null,null,null,null,null,null,null,null,null,null,null,null,null,null,null,null,null,null,null,null,null,null,null,null,null,null,null,null,null,null,null,null,null,null,null,null,null,null,null,null,null,null,null,null,null,null,null,null,null,null,null,null,null,null,null,"IMPORTS","_Z","_Z","_Z","_Z","_Z","LY",null,"_Z"]
["Liechtenstein",86,null,null,null,null,"",{"$f":"IF(MIN(C93:F93)<0,1,0)+IF(OR(C93<D93,E93<F93),1,0)","v":0},{"$f":"IF(H93=0,\" \",IF(H93=1,\"Error: \",\"2 errors: \"))&IF(MIN(C93:F93)<0,\"Imports data should not be negative. \",\"\")&IF(OR(C93<D93,E93<F93),\"'Of which: LNG' greater than Total.\",\"\")","v":" "},null,null,null,null,null,null,null,null,null,null,null,null,null,null,null,null,null,null,null,null,null,null,null,null,null,null,null,null,null,null,null,null,null,null,"LI","LIECHTENST",null,null,null,null,null,null,null,null,null,null,null,null,null,null,null,null,null,null,null,null,null,null,null,null,null,null,null,null,null,null,null,null,null,null,null,null,null,null,null,null,null,null,null,null,null,null,null,null,null,null,null,null,null,null,null,null,null,null,null,null,null,null,null,null,null,null,null,null,null,null,null,null,null,null,null,null,null,null,null,"IMPORTS","_Z","_Z","_Z","_Z","_Z","LI",null,"_Z"]
["Lithuania",87,null,null,null,null,"",0," ",null,null,null,null,null,null,null,null,null,null,null,null,null,null,null,null,null,null,null,null,null,null,null,null,null,null,null,null,null,null,null,null,null,null,"LT","LITHUANIA",null,null,null,null,null,null,null,null,null,null,null,null,null,null,null,null,null,null,null,null,null,null,null,null,null,null,null,null,null,null,null,null,null,null,null,null,null,null,null,null,null,null,null,null,null,null,null,null,null,null,null,null,null,null,null,null,null,null,null,null,null,null,null,null,null,null,null,null,null,null,null,null,null,null,null,null,null,null,null,"IMPORTS","_Z","_Z","_Z","_Z","_Z","LT",null,"_Z"]
["Luxembourg",88,null,null,null,null,"",0," ",null,null,null,null,null,null,null,null,null,null,null,null,null,null,null,null,null,null,null,null,null,null,null,null,null,null,null,null,null,null,null,null,null,null,"LU","LUXEMBOU",null,null,null,null,null,null,null,null,null,null,null,null,null,null,null,null,null,null,null,null,null,null,null,null,null,null,null,null,null,null,null,null,null,null,null,null,null,null,null,null,null,null,null,null,null,null,null,null,null,null,null,null,null,null,null,null,null,null,null,null,null,null,null,null,null,null,null,null,null,null,null,null,null,null,null,null,null,null,null,"IMPORTS","_Z","_Z","_Z","_Z","_Z","LU",null,"_Z"]
["Madagascar",89,null,null,null,null,"",0," ",null,null,null,null,null,null,null,null,null,null,null,null,null,null,null,null,null,null,null,null,null,null,null,null,null,null,null,null,null,null,null,null,null,null,"MG","MADAGASCAR",null,null,null,null,null,null,null,null,null,null,null,null,null,null,null,null,null,null,null,null,null,null,null,null,null,null,null,null,null,null,null,null,null,null,null,null,null,null,null,null,null,null,null,null,null,null,null,null,null,null,null,null,null,null,null,null,null,null,null,null,null,null,null,null,null,null,null,null,null,null,null,null,null,null,null,null,null,null,null,"IMPORTS","_Z","_Z","_Z","_Z","_Z","MG",null,"_Z"]
["Malaysia",90,null,null,null,null,"",0," ",null,null,null,null,null,null,null,null,null,null,null,null,null,null,null,null,null,null,null,null,null,null,null,null,null,null,null,null,null,null,null,null,null,null,"MY","MALAYSIA",null,null,null,null,null,null,null,null,null,null,null,null,null,null,null,null,null,null,null,null,null,null,null,null,null,null,null,null,null,null,null,null,null,null,null,null,null,null,null,null,null,null,null,null,null,null,null,null,null,null,null,null,null,null,null,null,null,null,null,null,null,null,null,null,null,null,null,null,null,null,null,null,null,null,null,null,null,null,null,"IMPORTS","_Z","_Z","_Z","_Z","_Z","MY",null,"_Z"]
["Malta",91,null,null,null,null,"",0," ",null,null,null,null,null,null,null,null,null,null,null,null,null,null,null,null,null,null,null,null,null,null,null,null,null,null,null,null,null,null,null,null,null,null,"MT","MALTA",null,null,null,null,null,null,null,null,null,null,null,null,null,null,null,null,null,null,null,null,null,null,null,null,null,null,null,null,null,null,null,null,null,null,null,null,null,null,null,null,null,null,null,null,null,null,null,null,null,null,null,null,null,null,null,null,null,null,null,null,null,null,null,null,null,null,null,null,null,null,null,null,null,null,null,null,null,null,null,"IMPORTS","_Z","_Z","_Z","_Z","_Z","MT",null,"_Z"]
["Marshall Islands",92,null,null,null,null,"",0," ",null,null,null,null,null,null,null,null,null,null,null,null,null,null,null,null,null,null,null,null,null,null,null,null,null,null,null,null,null,null,null,null,null,null,"MH","MARSHALL",null,null,null,null,null,null,null,null,null,null,null,null,null,null,null,null,null,null,null,null,null,null,null,null,null,null,null,null,null,null,null,null,null,null,null,null,null,null,null,null,null,null,null,null,null,null,null,null,null,null,null,null,null,null,null,null,null,null,null,null,null,null,null,null,null,null,null,null,null,null,null,null,null,null,null,null,null,null,null,"IMPORTS","_Z","_Z","_Z","_Z","_Z","MH",null,"_Z"]
["Mauritania",93,null,null,null,null,"",0," ",null,null,null,null,null,null,null,null,null,null,null,null,null,null,null,null,null,null,null,null,null,null,null,null,null,null,null,null,null,null,null,null,null,null,"MR","MAURITANIA",null,null,null,null,null,null,null,null,null,null,null,null,null,null,null,null,null,null,null,null,null,null,null,null,null,null,null,null,null,null,null,null,null,null,null,null,null,null,null,null,null,null,null,null,null,null,null,null,null,null,null,null,null,null,null,null,null,null,null,null,null,null,null,null,null,null,null,null,null,null,null,null,null,null,null,null,null,null,null,"IMPORTS","_Z","_Z","_Z","_Z","_Z","MR",null,"_Z"]
["Mauritius",94,null,null,null,null,"",0," ",null,null,null,null,null,null,null,null,null,null,null,null,null,null,null,null,null,null,null,null,null,null,null,null,null,null,null,null,null,null,null,null,null,null,"MU","MAURITIUS",null,null,null,null,null,null,null,null,null,null,null,null,null,null,null,null,null,null,null,null,null,null,null,null,null,null,null,null,null,null,null,null,null,null,null,null,null,null,null,null,null,null,null,null,null,null,null,null,null,null,null,null,null,null,null,null,null,null,null,null,null,null,null,null,null,null,null,null,null,null,null,null,null,null,null,null,null,null,null,"IMPORTS","_Z","_Z","_Z","_Z","_Z","MU",null,"_Z"]
["Mexico",95,null,null,null,null,"",0," ",null,null,null,null,null,null,null,null,null,null,null,null,null,null,null,null,null,null,null,null,null,null,null,null,null,null,null,null,null,null,null,null,null,null,"MX","MEXICO",null,null,null,null,null,null,null,null,null,null,null,null,null,null,null,null,null,null,null,null,null,null,null,null,null,null,null,null,null,null,null,null,null,null,null,null,null,null,null,null,null,null,null,null,null,null,null,null,null,null,null,null,null,null,null,null,null,null,null,null,null,null,null,null,null,null,null,null,null,null,null,null,null,null,null,null,null,null,null,"IMPORTS","_Z","_Z","_Z","_Z","_Z","MX",null,"_Z"]
["Moldova, Republic of",96,null,null,null,null,"",0," ",null,null,null,null,null,null,null,null,null,null,null,null,null,null,null,null,null,null,null,null,null,null,null,null,null,null,null,null,null,null,null,null,null,null,"MD","MOLDOVA",null,null,null,null,null,null,null,null,null,null,null,null,null,null,null,null,null,null,null,null,null,null,null,null,null,null,null,null,null,null,null,null,null,null,null,null,null,null,null,null,null,null,null,null,null,null,null,null,null,null,null,null,null,null,null,null,null,null,null,null,null,null,null,null,null,null,null,null,null,null,null,null,null,null,null,null,null,null,null,"IMPORTS","_Z","_Z","_Z","_Z","_Z","MD",null,"_Z"]
["Mongolia",97,null,null,null,null,"",0," ",null,null,null,null,null,null,null,null,null,null,null,null,null,null,null,null,null,null,null,null,null,null,null,null,null,null,null,null,null,null,null,null,null,null,"MN","MONGOLIA",null,null,null,null,null,null,null,null,null,null,null,null,null,null,null,null,null,null,null,null,null,null,null,null,null,null,null,null,null,null,null,null,null,null,null,null,null,null,null,null,null,null,null,null,null,null,null,null,null,null,null,null,null,null,null,null,null,null,null,null,null,null,null,null,null,null,null,null,null,null,null,null,null,null,null,null,null,null,null,"IMPORTS","_Z","_Z","_Z","_Z","_Z","MN",null,"_Z"]
["Montenegro",98,null,null,null,null,"",0," ",null,null,null,null,null,null,null,null,null,null,null,null,null,null,null,null,null,null,null,null,null,null,null,null,null,null,null,null,null,null,null,null,null,null,"ME","MONTENEGRO",null,null,null,null,null,null,null,null,null,null,null,null,null,null,null,null,null,null,null,null,null,null,null,null,null,null,null,null,null,null,null,null,null,null,null,null,null,null,null,null,null,null,null,null,null,null,null,null,null,null,null,null,null,null,null,null,null,null,null,null,null,null,null,null,null,null,null,null,null,null,null,null,null,null,null,null,null,null,null,"IMPORTS","_Z","_Z","_Z","_Z","_Z","ME",null,"_Z"]
["Morocco",99,null,null,null,null,"",0," ",null,null,null,null,null,null,null,null,null,null,null,null,null,null,null,null,null,null,null,null,null,null,null,null,null,null,null,null,null,null,null,null,null,null,"MA","MOROCCO",null,null,null,null,null,null,null,null,null,null,null,null,null,null,null,null,null,null,null,null,null,null,null,null,null,null,null,null,null,null,null,null,null,null,null,null,null,null,null,null,null,null,null,null,null,null,null,null,null,null,null,null,null,null,null,null,null,null,null,null,null,null,null,null,null,null,null,null,null,null,null,null,null,null,null,null,null,null,null,"IMPORTS","_Z","_Z","_Z","_Z","_Z","MA",null,"_Z"]
["Mozambique",100,null,null,null,null,"",0," ",null,null,null,null,null,null,null,null,null,null,null,null,null,null,null,null,null,null,null,null,null,null,null,null,null,null,null,null,null,null,null,null,null,null,"MZ","MOZAMBIQUE",null,null,null,null,null,null,null,null,null,null,null,null,null,null,null,null,null,null,null,null,null,null,null,null,null,null,null,null,null,null,null,null,null,null,null,null,null,null,null,null,null,null,null,null,null,null,null,null,null,null,null,null,null,null,null,null,null,null,null,null,null,null,null,null,null,null,null,null,null,null,null,null,null,null,null,null,null,null,null,"IMPORTS","_Z","_Z","_Z","_Z","_Z","MZ",null,"_Z"]
["Myanmar",101,null,null,null,null,"",0," ",null,null,null,null,null,null,null,null,null,null,null,null,null,null,null,null,null,null,null,null,null,null,null,null,null,null,null,null,null,null,null,null,null,null,"MM","MYANMAR",null,null,null,null,null,null,null,null,null,null,null,null,null,null,null,null,null,null,null,null,null,null,null,null,null,null,null,null,null,null,null,null,null,null,null,null,null,null,null,null,null,null,null,null,null,null,null,null,null,null,null,null,null,null,null,null,null,null,null,null,null,null,null,null,null,null,null,null,null,null,null,null,null,null,null,null,null,null,null,"IMPORTS","_Z","_Z","_Z","_Z","_Z","MM",null,"_Z"]
["Namibia",102,null,null,null,null,"",0," ",null,null,null,null,null,null,null,null,null,null,null,null,null,null,null,null,null,null,null,null,null,null,null,null,null,null,null,null,null,null,null,null,null,null,"NA","NAMIBIA",null,null,null,null,null,null,null,null,null,null,null,null,null,null,null,null,null,null,null,null,null,null,null,null,null,null,null,null,null,null,null,null,null,null,null,null,null,null,null,null,null,null,null,null,null,null,null,null,null,null,null,null,null,null,null,null,null,null,null,null,null,null,null,null,null,null,null,null,null,null,null,null,null,null,null,null,null,null,null,"IMPORTS","_Z","_Z","_Z","_Z","_Z","NA",null,"_Z"]
["Nepal",103,null,null,null,null,"",0," ",null,null,null,null,null,null,null,null,null,null,null,null,null,null,null,null,null,null,null,null,null,null,null,null,null,null,null,null,null,null,null,null,null,null,"NP","NEPAL",null,null,null,null,null,null,null,null,null,null,null,null,null,null,null,null,null,null,null,null,null,null,null,null,null,null,null,null,null,null,null,null,null,null,null,null,null,null,null,null,null,null,null,null,null,null,null,null,null,null,null,null,null,null,null,null,null,null,null,null,null,null,null,null,null,null,null,null,null,null,null,null,null,null,null,null,null,null,null,"IMPORTS","_Z","_Z","_Z","_Z","_Z","NP",null,"_Z"]
["Netherlands",104,null,null,null,null,"",0," ",null,null,null,null,null,null,null,null,null,null,null,null,null,null,null,null,null,null,null,null,null,null,null,null,null,null,null,null,null,null,null,null,null,null,"NL","NETHLAND",null,null,null,null,null,null,null,null,null,null,null,null,null,null,null,null,null,null,null,null,null,null,null,null,null,null,null,null,null,null,null,null,null,null,null,null,null,null,null,null,null,null,null,null,null,null,null,null,null,null,null,null,null,null,null,null,null,null,null,null,null,null,null,null,null,null,null,null,null,null,null,null,null,null,null,null,null,null,null,"IMPORTS","_Z","_Z","_Z","_Z","_Z","NL",null,"_Z"]
["New Caledonia",105,null,null,null,null,"",0," ",null,null,null,null,null,null,null,null,null,null,null,null,null,null,null,null,null,null,null,null,null,null,null,null,null,null,null,null,null,null,null,null,null,null,"NC","NEWCALEDON",null,null,null,null,null,null,null,null,null,null,null,null,null,null,null,null,null,null,null,null,null,null,null,null,null,null,null,null,null,null,null,null,null,null,null,null,null,null,null,null,null,null,null,null,null,null,null,null,null,null,null,null,null,null,null,null,null,null,null,null,null,null,null,null,null,null,null,null,null,null,null,null,null,null,null,null,null,null,null,"IMPORTS","_Z","_Z","_Z","_Z","_Z","NC",null,"_Z"]
["New Zealand",106,null,null,null,null,"",0," ",null,null,null,null,null,null,null,null,null,null,null,null,null,null,null,null,null,null,null,null,null,null,null,null,null,null,null,null,null,null,null,null,null,null,"NZ","NZ",null,null,null,null,null,null,null,null,null,null,null,null,null,null,null,null,null,null,null,null,null,null,null,null,null,null,null,null,null,null,null,null,null,null,null,null,null,null,null,null,null,null,null,null,null,null,null,null,null,null,null,null,null,null,null,null,null,null,null,null,null,null,null,null,null,null,null,null,null,null,null,null,null,null,null,null,null,null,null,"IMPORTS","_Z","_Z","_Z","_Z","_Z","NZ",null,"_Z"]
["Niger",107,null,null,null,null,"",null," ",null,null,null,null,null,null,null,null,null,null,null,null,null,null,null,null,null,null,null,null,null,null,null,null,null,null,null,null,null,null,null,null,null,null,"NE","NIGER",null,null,null,null,null,null,null,null,null,null,null,null,null,null,null,null,null,null,null,null,null,null,null,null,null,null,null,null,null,null,null,null,null,null,null,null,null,null,null,null,null,null,null,null,null,null,null,null,null,null,null,null,null,null,null,null,null,null,null,null,null,null,null,null,null,null,null,null,null,null,null,null,null,null,null,null,null,null,null,"IMPORTS","_Z","_Z","_Z","_Z","_Z","NE",null,"_Z"]
["Nigeria",108,null,null,null,null,"",0," ",null,null,null,null,null,null,null,null,null,null,null,null,null,null,null,null,null,null,null,null,null,null,null,null,null,null,null,null,null,null,null,null,null,null,"NG","NIGERIA",null,null,null,null,null,null,null,null,null,null,null,null,null,null,null,null,null,null,null,null,null,null,null,null,null,null,null,null,null,null,null,null,null,null,null,null,null,null,null,null,null,null,null,null,null,null,null,null,null,null,null,null,null,null,null,null,null,null,null,null,null,null,null,null,null,null,null,null,null,null,null,null,null,null,null,null,null,null,null,"IMPORTS","_Z","_Z","_Z","_Z","_Z","NG",null,"_Z"]
["North Macedonia",109,null,null,null,null,{"$f":"IF(OR(E116=0,C116=0),\"\",ROUND((E116/C116)*1000,0))","v":""},{"$f":"IF(MIN(C116:F116)<0,1,0)+IF(OR(C116<D116,E116<F116),1,0)","v":0},{"$f":"IF(H116=0,\" \",IF(H116=1,\"Error: \",\"2 errors: \"))&IF(MIN(C116:F116)<0,\"Imports data should not be negative. \",\"\")&IF(OR(C116<D116,E116<F116),\"'Of which: LNG' greater than Total.\",\"\")","v":" "},null,null,null,null,null,null,null,null,null,null,null,null,null,null,null,null,null,null,null,null,null,null,null,null,null,null,null,null,null,null,null,null,null,null,"MK","NORTHMACED",null,null,null,null,null,null,null,null,null,null,null,null,null,null,null,null,null,null,null,null,null,null,null,null,null,null,null,null,null,null,null,null,null,null,null,null,null,null,null,null,null,null,null,null,null,null,null,null,null,null,null,null,null,null,null,null,null,null,null,null,null,null,null,null,null,null,null,null,null,null,null,null,null,null,null,null,null,null,null,"IMPORTS","_Z","_Z","_Z","_Z","_Z","MK",null,"_Z"]
["Norway",110,null,null,null,null,"",0," ",null,null,null,null,null,null,null,null,null,null,null,null,null,null,null,null,null,null,null,null,null,null,null,null,null,null,null,null,null,null,null,null,null,null,"NO","NORWAY",null,null,null,null,null,null,null,null,null,null,null,null,null,null,null,null,null,null,null,null,null,null,null,null,null,null,null,null,null,null,null,null,null,null,null,null,null,null,null,null,null,null,null,null,null,null,null,null,null,null,null,null,null,null,null,null,null,null,null,null,null,null,null,null,null,null,null,null,null,null,null,null,null,null,null,null,null,null,null,"IMPORTS","_Z","_Z","_Z","_Z","_Z","NO",null,"_Z"]
["Oman",111,null,null,null,null,"",0," ",null,null,null,null,null,null,null,null,null,null,null,null,null,null,null,null,null,null,null,null,null,null,null,null,null,null,null,null,null,null,null,null,null,null,"OM","OMAN",null,null,null,null,null,null,null,null,null,null,null,null,null,null,null,null,null,null,null,null,null,null,null,null,null,null,null,null,null,null,null,null,null,null,null,null,null,null,null,null,null,null,null,null,null,null,null,null,null,null,null,null,null,null,null,null,null,null,null,null,null,null,null,null,null,null,null,null,null,null,null,null,null,null,null,null,null,null,null,"IMPORTS","_Z","_Z","_Z","_Z","_Z","OM",null,"_Z"]
["Other Africa",112,null,null,null,null,"",0," ",null,null,null,null,null,null,null,null,null,null,null,null,null,null,null,null,null,null,null,null,null,null,null,null,null,null,null,null,null,null,null,null,null,null,"O1","OTHERAFRIC",null,null,null,null,null,null,null,null,null,null,null,null,null,null,null,null,null,null,null,null,null,null,null,null,null,null,null,null,null,null,null,null,null,null,null,null,null,null,null,null,null,null,null,null,null,null,null,null,null,null,null,null,null,null,null,null,null,null,null,null,null,null,null,null,null,null,null,null,null,null,null,null,null,null,null,null,null,null,null,"IMPORTS","_Z","_Z","_Z","_Z","_Z","OX1",null,"_Z"]
["Other Asia Oceania",113,null,null,null,null,"",0," ",null,null,null,null,null,null,null,null,null,null,null,null,null,null,null,null,null,null,null,null,null,null,null,null,null,null,null,null,null,null,null,null,null,null,"O4","OTHERASIA",null,null,null,null,null,null,null,null,null,null,null,null,null,null,null,null,null,null,null,null,null,null,null,null,null,null,null,null,null,null,null,null,null,null,null,null,null,null,null,null,null,null,null,null,null,null,null,null,null,null,null,null,null,null,null,null,null,null,null,null,null,null,null,null,null,null,null,null,null,null,null,null,null,null,null,null,null,null,null,"IMPORTS","_Z","_Z","_Z","_Z","_Z","OX2",null,"_Z"]
["Other Europe",114,null,null,null,null,"",0," ",null,null,null,null,null,null,null,null,null,null,null,null,null,null,null,null,null,null,null,null,null,null,null,null,null,null,null,null,null,null,null,null,null,null,"O8","OTHEREUROP",null,null,null,null,null,null,null,null,null,null,null,null,null,null,null,null,null,null,null,null,null,null,null,null,null,null,null,null,null,null,null,null,null,null,null,null,null,null,null,null,null,null,null,null,null,null,null,null,null,null,null,null,null,null,null,null,null,null,null,null,null,null,null,null,null,null,null,null,null,null,null,null,null,null,null,null,null,null,null,"IMPORTS","_Z","_Z","_Z","_Z","_Z","OX3",null,"_Z"]
["Other Former Soviet Union",115,null,null,null,null,"",0," ",null,null,null,null,null,null,null,null,null,null,null,null,null,null,null,null,null,null,null,null,null,null,null,null,null,null,null,null,null,null,null,null,null,null,"P8","OTHFUSSR",null,null,null,null,null,null,null,null,null,null,null,null,null,null,null,null,null,null,null,null,null,null,null,null,null,null,null,null,null,null,null,null,null,null,null,null,null,null,null,null,null,null,null,null,null,null,null,null,null,null,null,null,null,null,null,null,null,null,null,null,null,null,null,null,null,null,null,null,null,null,null,null,null,null,null,null,null,null,null,"IMPORTS","_Z","_Z","_Z","_Z","_Z","OX4",null,"_Z"]
["Other Near and Middle East",116,null,null,null,null,"",0," ",null,null,null,null,null,null,null,null,null,null,null,null,null,null,null,null,null,null,null,null,null,null,null,null,null,null,null,null,null,null,null,null,null,null,"P4","OTHERNEARM",null,null,null,null,null,null,null,null,null,null,null,null,null,null,null,null,null,null,null,null,null,null,null,null,null,null,null,null,null,null,null,null,null,null,null,null,null,null,null,null,null,null,null,null,null,null,null,null,null,null,null,null,null,null,null,null,null,null,null,null,null,null,null,null,null,null,null,null,null,null,null,null,null,null,null,null,null,null,null,"IMPORTS","_Z","_Z","_Z","_Z","_Z","OX5",null,"_Z"]
["Other Non-OECD Americas",117,null,null,null,null,"",{"$f":"IF(MIN(C124:F124)<0,1,0)+IF(OR(C124<D124,E124<F124),1,0)","v":0},{"$f":"IF(H124=0,\" \",IF(H124=1,\"Error: \",\"2 errors: \"))&IF(MIN(C124:F124)<0,\"Imports data should not be negative. \",\"\")&IF(OR(C124<D124,E124<F124),\"'Of which: LNG' greater than Total.\",\"\")","v":" "},null,null,null,null,null,null,null,null,null,null,null,null,null,null,null,null,null,null,null,null,null,null,null,null,null,null,null,null,null,null,null,null,null,null,"P1","OTHERLATIN",null,null,null,null,null,null,null,null,null,null,null,null,null,null,null,null,null,null,null,null,null,null,null,null,null,null,null,null,null,null,null,null,null,null,null,null,null,null,null,null,null,null,null,null,null,null,null,null,null,null,null,null,null,null,null,null,null,null,null,null,null,null,null,null,null,null,null,null,null,null,null,null,null,null,null,null,null,null,null,"IMPORTS","_Z","_Z","_Z","_Z","_Z","OX6",null,"_Z"]
["Pakistan",118,null,null,null,null,{"$f":"IF(OR(E125=0,C125=0),\"\",ROUND((E125/C125)*1000,0))","v":""},{"$f":"IF(MIN(C125:F125)<0,1,0)+IF(OR(C125<D125,E125<F125),1,0)","v":0},{"$f":"IF(H125=0,\" \",IF(H125=1,\"Error: \",\"2 errors: \"))&IF(MIN(C125:F125)<0,\"Imports data should not be negative. \",\"\")&IF(OR(C125<D125,E125<F125),\"'Of which: LNG' greater than Total.\",\"\")","v":" "},null,null,null,null,null,null,null,null,null,null,null,null,null,null,null,null,null,null,null,null,null,null,null,null,null,null,null,null,null,null,null,null,null,null,"PK","PAKISTAN",null,null,null,null,null,null,null,null,null,null,null,null,null,null,null,null,null,null,null,null,null,null,null,null,null,null,null,null,null,null,null,null,null,null,null,null,null,null,null,null,null,null,null,null,null,null,null,null,null,null,null,null,null,null,null,null,null,null,null,null,null,null,null,null,null,null,null,null,null,null,null,null,null,null,null,null,null,null,null,"IMPORTS","_Z","_Z","_Z","_Z","_Z","PK",null,"_Z"]
["Panama",119,null,null,null,null,"",0," ",null,null,null,null,null,null,null,null,null,null,null,null,null,null,null,null,null,null,null,null,null,null,null,null,null,null,null,null,null,null,null,null,null,null,"PA","PANAMA",null,null,null,null,null,null,null,null,null,null,null,null,null,null,null,null,null,null,null,null,null,null,null,null,null,null,null,null,null,null,null,null,null,null,null,null,null,null,null,null,null,null,null,null,null,null,null,null,null,null,null,null,null,null,null,null,null,null,null,null,null,null,null,null,null,null,null,null,null,null,null,null,null,null,null,null,null,null,null,"IMPORTS","_Z","_Z","_Z","_Z","_Z","PA",null,"_Z"]
["Papua New Guinea",120,null,null,null,null,"",0," ",null,null,null,null,null,null,null,null,null,null,null,null,null,null,null,null,null,null,null,null,null,null,null,null,null,null,null,null,null,null,null,null,null,null,"PG","PAPUANEWGU",null,null,null,null,null,null,null,null,null,null,null,null,null,null,null,null,null,null,null,null,null,null,null,null,null,null,null,null,null,null,null,null,null,null,null,null,null,null,null,null,null,null,null,null,null,null,null,null,null,null,null,null,null,null,null,null,null,null,null,null,null,null,null,null,null,null,null,null,null,null,null,null,null,null,null,null,null,null,null,"IMPORTS","_Z","_Z","_Z","_Z","_Z","PG",null,"_Z"]
["Peru",121,null,null,null,null,"",0," ",null,null,null,null,null,null,null,null,null,null,null,null,null,null,null,null,null,null,null,null,null,null,null,null,null,null,null,null,null,null,null,null,null,null,"PE","PERU",null,null,null,null,null,null,null,null,null,null,null,null,null,null,null,null,null,null,null,null,null,null,null,null,null,null,null,null,null,null,null,null,null,null,null,null,null,null,null,null,null,null,null,null,null,null,null,null,null,null,null,null,null,null,null,null,null,null,null,null,null,null,null,null,null,null,null,null,null,null,null,null,null,null,null,null,null,null,null,"IMPORTS","_Z","_Z","_Z","_Z","_Z","PE",null,"_Z"]
["Philippines",122,null,null,null,null,"",0," ",null,null,null,null,null,null,null,null,null,null,null,null,null,null,null,null,null,null,null,null,null,null,null,null,null,null,null,null,null,null,null,null,null,null,"PH","PHILIPPINE",null,null,null,null,null,null,null,null,null,null,null,null,null,null,null,null,null,null,null,null,null,null,null,null,null,null,null,null,null,null,null,null,null,null,null,null,null,null,null,null,null,null,null,null,null,null,null,null,null,null,null,null,null,null,null,null,null,null,null,null,null,null,null,null,null,null,null,null,null,null,null,null,null,null,null,null,null,null,null,"IMPORTS","_Z","_Z","_Z","_Z","_Z","PH",null,"_Z"]
["Poland",123,null,null,null,null,"",0," ",null,null,null,null,null,null,null,null,null,null,null,null,null,null,null,null,null,null,null,null,null,null,null,null,null,null,null,null,null,null,null,null,null,null,"PL","POLAND",null,null,null,null,null,null,null,null,null,null,null,null,null,null,null,null,null,null,null,null,null,null,null,null,null,null,null,null,null,null,null,null,null,null,null,null,null,null,null,null,null,null,null,null,null,null,null,null,null,null,null,null,null,null,null,null,null,null,null,null,null,null,null,null,null,null,null,null,null,null,null,null,null,null,null,null,null,null,null,"IMPORTS","_Z","_Z","_Z","_Z","_Z","PL",null,"_Z"]
["Portugal",124,null,null,null,null,"",0," ",null,null,null,null,null,null,null,null,null,null,null,null,null,null,null,null,null,null,null,null,null,null,null,null,null,null,null,null,null,null,null,null,null,null,"PT","PORTUGAL",null,null,null,null,null,null,null,null,null,null,null,null,null,null,null,null,null,null,null,null,null,null,null,null,null,null,null,null,null,null,null,null,null,null,null,null,null,null,null,null,null,null,null,null,null,null,null,null,null,null,null,null,null,null,null,null,null,null,null,null,null,null,null,null,null,null,null,null,null,null,null,null,null,null,null,null,null,null,null,"IMPORTS","_Z","_Z","_Z","_Z","_Z","PT",null,"_Z"]
["Qatar",125,null,null,null,null,"",0," ",null,null,null,null,null,null,null,null,null,null,null,null,null,null,null,null,null,null,null,null,null,null,null,null,null,null,null,null,null,null,null,null,null,null,"QA","QATAR",null,null,null,null,null,null,null,null,null,null,null,null,null,null,null,null,null,null,null,null,null,null,null,null,null,null,null,null,null,null,null,null,null,null,null,null,null,null,null,null,null,null,null,null,null,null,null,null,null,null,null,null,null,null,null,null,null,null,null,null,null,null,null,null,null,null,null,null,null,null,null,null,null,null,null,null,null,null,null,"IMPORTS","_Z","_Z","_Z","_Z","_Z","QA",null,"_Z"]
["Romania",126,null,null,null,null,"",0," ",null,null,null,null,null,null,null,null,null,null,null,null,null,null,null,null,null,null,null,null,null,null,null,null,null,null,null,null,null,null,null,null,null,null,"RO","ROMANIA",null,null,null,null,null,null,null,null,null,null,null,null,null,null,null,null,null,null,null,null,null,null,null,null,null,null,null,null,null,null,null,null,null,null,null,null,null,null,null,null,null,null,null,null,null,null,null,null,null,null,null,null,null,null,null,null,null,null,null,null,null,null,null,null,null,null,null,null,null,null,null,null,null,null,null,null,null,null,null,"IMPORTS","_Z","_Z","_Z","_Z","_Z","RO",null,"_Z"]
["Russian Federation",127,null,null,null,null,"",0," ",null,null,null,null,null,null,null,null,null,null,null,null,null,null,null,null,null,null,null,null,null,null,null,null,null,null,null,null,null,null,null,null,null,null,"RU","RUSSIA",null,null,null,null,null,null,null,null,null,null,null,null,null,null,null,null,null,null,null,null,null,null,null,null,null,null,null,null,null,null,null,null,null,null,null,null,null,null,null,null,null,null,null,null,null,null,null,null,null,null,null,null,null,null,null,null,null,null,null,null,null,null,null,null,null,null,null,null,null,null,null,null,null,null,null,null,null,null,null,"IMPORTS","_Z","_Z","_Z","_Z","_Z","RU",null,"_Z"]
["Sao Tome and Principe",128,null,null,null,null,"",0," ",null,null,null,null,null,null,null,null,null,null,null,null,null,null,null,null,null,null,null,null,null,null,null,null,null,null,null,null,null,null,null,null,null,null,"ST","SAOTOME",null,null,null,null,null,null,null,null,null,null,null,null,null,null,null,null,null,null,null,null,null,null,null,null,null,null,null,null,null,null,null,null,null,null,null,null,null,null,null,null,null,null,null,null,null,null,null,null,null,null,null,null,null,null,null,null,null,null,null,null,null,null,null,null,null,null,null,null,null,null,null,null,null,null,null,null,null,null,null,"IMPORTS","_Z","_Z","_Z","_Z","_Z","ST",null,"_Z"]
["Saudi Arabia",129,null,null,null,null,"",0," ",null,null,null,null,null,null,null,null,null,null,null,null,null,null,null,null,null,null,null,null,null,null,null,null,null,null,null,null,null,null,null,null,null,null,"SA","SAUDIARABI",null,null,null,null,null,null,null,null,null,null,null,null,null,null,null,null,null,null,null,null,null,null,null,null,null,null,null,null,null,null,null,null,null,null,null,null,null,null,null,null,null,null,null,null,null,null,null,null,null,null,null,null,null,null,null,null,null,null,null,null,null,null,null,null,null,null,null,null,null,null,null,null,null,null,null,null,null,null,null,"IMPORTS","_Z","_Z","_Z","_Z","_Z","SA",null,"_Z"]
["Senegal",130,null,null,null,null,"",0," ",null,null,null,null,null,null,null,null,null,null,null,null,null,null,null,null,null,null,null,null,null,null,null,null,null,null,null,null,null,null,null,null,null,null,"SN","SENEGAL",null,null,null,null,null,null,null,null,null,null,null,null,null,null,null,null,null,null,null,null,null,null,null,null,null,null,null,null,null,null,null,null,null,null,null,null,null,null,null,null,null,null,null,null,null,null,null,null,null,null,null,null,null,null,null,null,null,null,null,null,null,null,null,null,null,null,null,null,null,null,null,null,null,null,null,null,null,null,null,"IMPORTS","_Z","_Z","_Z","_Z","_Z","SN",null,"_Z"]
["Serbia",131,null,null,null,null,"",0," ",null,null,null,null,null,null,null,null,null,null,null,null,null,null,null,null,null,null,null,null,null,null,null,null,null,null,null,null,null,null,null,null,null,null,"RS","SERBIA",null,null,null,null,null,null,null,null,null,null,null,null,null,null,null,null,null,null,null,null,null,null,null,null,null,null,null,null,null,null,null,null,null,null,null,null,null,null,null,null,null,null,null,null,null,null,null,null,null,null,null,null,null,null,null,null,null,null,null,null,null,null,null,null,null,null,null,null,null,null,null,null,null,null,null,null,null,null,null,"IMPORTS","_Z","_Z","_Z","_Z","_Z","RS",null,"_Z"]
["Sierra Leone",132,null,null,null,null,"",0," ",null,null,null,null,null,null,null,null,null,null,null,null,null,null,null,null,null,null,null,null,null,null,null,null,null,null,null,null,null,null,null,null,null,null,"SL","SIERRALEON",null,null,null,null,null,null,null,null,null,null,null,null,null,null,null,null,null,null,null,null,null,null,null,null,null,null,null,null,null,null,null,null,null,null,null,null,null,null,null,null,null,null,null,null,null,null,null,null,null,null,null,null,null,null,null,null,null,null,null,null,null,null,null,null,null,null,null,null,null,null,null,null,null,null,null,null,null,null,null,"IMPORTS","_Z","_Z","_Z","_Z","_Z","SL",null,"_Z"]
["Singapore",133,null,null,null,null,"",0," ",null,null,null,null,null,null,null,null,null,null,null,null,null,null,null,null,null,null,null,null,null,null,null,null,null,null,null,null,null,null,null,null,null,null,"SG","SINGAPORE",null,null,null,null,null,null,null,null,null,null,null,null,null,null,null,null,null,null,null,null,null,null,null,null,null,null,null,null,null,null,null,null,null,null,null,null,null,null,null,null,null,null,null,null,null,null,null,null,null,null,null,null,null,null,null,null,null,null,null,null,null,null,null,null,null,null,null,null,null,null,null,null,null,null,null,null,null,null,null,"IMPORTS","_Z","_Z","_Z","_Z","_Z","SG",null,"_Z"]
["Slovak Republic",134,null,null,null,null,{"$f":"IF(OR(E141=0,C141=0),\"\",ROUND((E141/C141)*1000,0))","v":""},{"$f":"IF(MIN(C141:F141)<0,1,0)+IF(OR(C141<D141,E141<F141),1,0)","v":0},{"$f":"IF(H141=0,\" \",IF(H141=1,\"Error: \",\"2 errors: \"))&IF(MIN(C141:F141)<0,\"Imports data should not be negative. \",\"\")&IF(OR(C141<D141,E141<F141),\"'Of which: LNG' greater than Total.\",\"\")","v":" "},null,null,null,null,null,null,null,null,null,null,null,null,null,null,null,null,null,null,null,null,null,null,null,null,null,null,null,null,null,null,null,null,null,null,"SK","SLOVAKIA",null,null,null,null,null,null,null,null,null,null,null,null,null,null,null,null,null,null,null,null,null,null,null,null,null,null,null,null,null,null,null,null,null,null,null,null,null,null,null,null,null,null,null,null,null,null,null,null,null,null,null,null,null,null,null,null,null,null,null,null,null,null,null,null,null,null,null,null,null,null,null,null,null,null,null,null,null,null,null,"IMPORTS","_Z","_Z","_Z","_Z","_Z","SK",null,"_Z"]
["Slovenia",135,null,null,null,null,{"$f":"IF(OR(E142=0,C142=0),\"\",ROUND((E142/C142)*1000,0))","v":""},{"$f":"IF(MIN(C142:F142)<0,1,0)+IF(OR(C142<D142,E142<F142),1,0)","v":0},{"$f":"IF(H142=0,\" \",IF(H142=1,\"Error: \",\"2 errors: \"))&IF(MIN(C142:F142)<0,\"Imports data should not be negative. \",\"\")&IF(OR(C142<D142,E142<F142),\"'Of which: LNG' greater than Total.\",\"\")","v":" "},null,null,null,null,null,null,null,null,null,null,null,null,null,null,null,null,null,null,null,null,null,null,null,null,null,null,null,null,null,null,null,null,null,null,"SI","SLOVENIA",null,null,null,null,null,null,null,null,null,null,null,null,null,null,null,null,null,null,null,null,null,null,null,null,null,null,null,null,null,null,null,null,null,null,null,null,null,null,null,null,null,null,null,null,null,null,null,null,null,null,null,null,null,null,null,null,null,null,null,null,null,null,null,null,null,null,null,null,null,null,null,null,null,null,null,null,null,null,null,"IMPORTS","_Z","_Z","_Z","_Z","_Z","SI",null,"_Z"]
["South Africa",136,null,null,null,null,"",0," ",null,null,null,null,null,null,null,null,null,null,null,null,null,null,null,null,null,null,null,null,null,null,null,null,null,null,null,null,null,null,null,null,null,null,"ZA","SOUTHAFRIC",null,null,null,null,null,null,null,null,null,null,null,null,null,null,null,null,null,null,null,null,null,null,null,null,null,null,null,null,null,null,null,null,null,null,null,null,null,null,null,null,null,null,null,null,null,null,null,null,null,null,null,null,null,null,null,null,null,null,null,null,null,null,null,null,null,null,null,null,null,null,null,null,null,null,null,null,null,null,null,"IMPORTS","_Z","_Z","_Z","_Z","_Z","ZA",null,"_Z"]
["South Sudan",137,null,null,null,null,"",0," ",null,null,null,null,null,null,null,null,null,null,null,null,null,null,null,null,null,null,null,null,null,null,null,null,null,null,null,null,null,null,null,null,null,null,"SS","SSUDAN",null,null,null,null,null,null,null,null,null,null,null,null,null,null,null,null,null,null,null,null,null,null,null,null,null,null,null,null,null,null,null,null,null,null,null,null,null,null,null,null,null,null,null,null,null,null,null,null,null,null,null,null,null,null,null,null,null,null,null,null,null,null,null,null,null,null,null,null,null,null,null,null,null,null,null,null,null,null,null,"IMPORTS","_Z","_Z","_Z","_Z","_Z","SS",null,"_Z"]
["Spain",138,null,null,null,null,"",0," ",null,null,null,null,null,null,null,null,null,null,null,null,null,null,null,null,null,null,null,null,null,null,null,null,null,null,null,null,null,null,null,null,null,null,"ES","SPAIN",null,null,null,null,null,null,null,null,null,null,null,null,null,null,null,null,null,null,null,null,null,null,null,null,null,null,null,null,null,null,null,null,null,null,null,null,null,null,null,null,null,null,null,null,null,null,null,null,null,null,null,null,null,null,null,null,null,null,null,null,null,null,null,null,null,null,null,null,null,null,null,null,null,null,null,null,null,null,null,"IMPORTS","_Z","_Z","_Z","_Z","_Z","ES",null,"_Z"]
["Sri Lanka",139,null,null,null,null,"",0," ",null,null,null,null,null,null,null,null,null,null,null,null,null,null,null,null,null,null,null,null,null,null,null,null,null,null,null,null,null,null,null,null,null,null,"LK","SRILANKA",null,null,null,null,null,null,null,null,null,null,null,null,null,null,null,null,null,null,null,null,null,null,null,null,null,null,null,null,null,null,null,null,null,null,null,null,null,null,null,null,null,null,null,null,null,null,null,null,null,null,null,null,null,null,null,null,null,null,null,null,null,null,null,null,null,null,null,null,null,null,null,null,null,null,null,null,null,null,null,"IMPORTS","_Z","_Z","_Z","_Z","_Z","LK",null,"_Z"]
["Sudan",140,null,null,null,null,"",0," ",null,null,null,null,null,null,null,null,null,null,null,null,null,null,null,null,null,null,null,null,null,null,null,null,null,null,null,null,null,null,null,null,null,null,"SD","SUDAN",null,null,null,null,null,null,null,null,null,null,null,null,null,null,null,null,null,null,null,null,null,null,null,null,null,null,null,null,null,null,null,null,null,null,null,null,null,null,null,null,null,null,null,null,null,null,null,null,null,null,null,null,null,null,null,null,null,null,null,null,null,null,null,null,null,null,null,null,null,null,null,null,null,null,null,null,null,null,null,"IMPORTS","_Z","_Z","_Z","_Z","_Z","SD",null,"_Z"]
["Sweden",141,null,null,null,null,"",0," ",null,null,null,null,null,null,null,null,null,null,null,null,null,null,null,null,null,null,null,null,null,null,null,null,null,null,null,null,null,null,null,null,null,null,"SE","SWEDEN",null,null,null,null,null,null,null,null,null,null,null,null,null,null,null,null,null,null,null,null,null,null,null,null,null,null,null,null,null,null,null,null,null,null,null,null,null,null,null,null,null,null,null,null,null,null,null,null,null,null,null,null,null,null,null,null,null,null,null,null,null,null,null,null,null,null,null,null,null,null,null,null,null,null,null,null,null,null,null,"IMPORTS","_Z","_Z","_Z","_Z","_Z","SE",null,"_Z"]
["Switzerland",142,null,null,null,null,"",0," ",null,null,null,null,null,null,null,null,null,null,null,null,null,null,null,null,null,null,null,null,null,null,null,null,null,null,null,null,null,null,null,null,null,null,"CH","SWITLAND",null,null,null,null,null,null,null,null,null,null,null,null,null,null,null,null,null,null,null,null,null,null,null,null,null,null,null,null,null,null,null,null,null,null,null,null,null,null,null,null,null,null,null,null,null,null,null,null,null,null,null,null,null,null,null,null,null,null,null,null,null,null,null,null,null,null,null,null,null,null,null,null,null,null,null,null,null,null,null,"IMPORTS","_Z","_Z","_Z","_Z","_Z","CH",null,"_Z"]
["Syrian Arab Republic",143,null,null,null,null,"",0," ",null,null,null,null,null,null,null,null,null,null,null,null,null,null,null,null,null,null,null,null,null,null,null,null,null,null,null,null,null,null,null,null,null,null,"SY","SYRIA",null,null,null,null,null,null,null,null,null,null,null,null,null,null,null,null,null,null,null,null,null,null,null,null,null,null,null,null,null,null,null,null,null,null,null,null,null,null,null,null,null,null,null,null,null,null,null,null,null,null,null,null,null,null,null,null,null,null,null,null,null,null,null,null,null,null,null,null,null,null,null,null,null,null,null,null,null,null,null,"IMPORTS","_Z","_Z","_Z","_Z","_Z","SY",null,"_Z"]
["Taiwan / Chinese Taipei",144,null,null,null,null,"",0," ",null,null,null,null,null,null,null,null,null,null,null,null,null,null,null,null,null,null,null,null,null,null,null,null,null,null,null,null,null,null,null,null,null,null,"TW","TAIPEI",null,null,null,null,null,null,null,null,null,null,null,null,null,null,null,null,null,null,null,null,null,null,null,null,null,null,null,null,null,null,null,null,null,null,null,null,null,null,null,null,null,null,null,null,null,null,null,null,null,null,null,null,null,null,null,null,null,null,null,null,null,null,null,null,null,null,null,null,null,null,null,null,null,null,null,null,null,null,null,"IMPORTS","_Z","_Z","_Z","_Z","_Z","TW",null,"_Z"]
["Tajikistan",145,null,null,null,null,"",0," ",null,null,null,null,null,null,null,null,null,null,null,null,null,null,null,null,null,null,null,null,null,null,null,null,null,null,null,null,null,null,null,null,null,null,"TJ","TAJIKISTAN",null,null,null,null,null,null,null,null,null,null,null,null,null,null,null,null,null,null,null,null,null,null,null,null,null,null,null,null,null,null,null,null,null,null,null,null,null,null,null,null,null,null,null,null,null,null,null,null,null,null,null,null,null,null,null,null,null,null,null,null,null,null,null,null,null,null,null,null,null,null,null,null,null,null,null,null,null,null,null,"IMPORTS","_Z","_Z","_Z","_Z","_Z","TJ",null,"_Z"]
["Tanzania, United Republic of",146,null,null,null,null,"",0," ",null,null,null,null,null,null,null,null,null,null,null,null,null,null,null,null,null,null,null,null,null,null,null,null,null,null,null,null,null,null,null,null,null,null,"TZ","TANZANIA",null,null,null,null,null,null,null,null,null,null,null,null,null,null,null,null,null,null,null,null,null,null,null,null,null,null,null,null,null,null,null,null,null,null,null,null,null,null,null,null,null,null,null,null,null,null,null,null,null,null,null,null,null,null,null,null,null,null,null,null,null,null,null,null,null,null,null,null,null,null,null,null,null,null,null,null,null,null,null,"IMPORTS","_Z","_Z","_Z","_Z","_Z","TZ",null,"_Z"]
["Thailand",147,null,null,null,null,"",0," ",null,null,null,null,null,null,null,null,null,null,null,null,null,null,null,null,null,null,null,null,null,null,null,null,null,null,null,null,null,null,null,null,null,null,"TH","THAILAND",null,null,null,null,null,null,null,null,null,null,null,null,null,null,null,null,null,null,null,null,null,null,null,null,null,null,null,null,null,null,null,null,null,null,null,null,null,null,null,null,null,null,null,null,null,null,null,null,null,null,null,null,null,null,null,null,null,null,null,null,null,null,null,null,null,null,null,null,null,null,null,null,null,null,null,null,null,null,null,"IMPORTS","_Z","_Z","_Z","_Z","_Z","TH",null,"_Z"]
["Timor-Leste",148,null,null,null,null,"",0," ",null,null,null,null,null,null,null,null,null,null,null,null,null,null,null,null,null,null,null,null,null,null,null,null,null,null,null,null,null,null,null,null,null,null,"TL","TIMORLESTE",null,null,null,null,null,null,null,null,null,null,null,null,null,null,null,null,null,null,null,null,null,null,null,null,null,null,null,null,null,null,null,null,null,null,null,null,null,null,null,null,null,null,null,null,null,null,null,null,null,null,null,null,null,null,null,null,null,null,null,null,null,null,null,null,null,null,null,null,null,null,null,null,null,null,null,null,null,null,null,"IMPORTS","_Z","_Z","_Z","_Z","_Z","TL",null,"_Z"]
["Togo",149,null,null,null,null,"",0," ",null,null,null,null,null,null,null,null,null,null,null,null,null,null,null,null,null,null,null,null,null,null,null,null,null,null,null,null,null,null,null,null,null,null,"TG","TOGO",null,null,null,null,null,null,null,null,null,null,null,null,null,null,null,null,null,null,null,null,null,null,null,null,null,null,null,null,null,null,null,null,null,null,null,null,null,null,null,null,null,null,null,null,null,null,null,null,null,null,null,null,null,null,null,null,null,null,null,null,null,null,null,null,null,null,null,null,null,null,null,null,null,null,null,null,null,null,null,"IMPORTS","_Z","_Z","_Z","_Z","_Z","TG",null,"_Z"]
["Trinidad and Tobago",150,null,null,null,null,"",0," ",null,null,null,null,null,null,null,null,null,null,null,null,null,null,null,null,null,null,null,null,null,null,null,null,null,null,null,null,null,null,null,null,null,null,"TT","TRINIDAD",null,null,null,null,null,null,null,null,null,null,null,null,null,null,null,null,null,null,null,null,null,null,null,null,null,null,null,null,null,null,null,null,null,null,null,null,null,null,null,null,null,null,null,null,null,null,null,null,null,null,null,null,null,null,null,null,null,null,null,null,null,null,null,null,null,null,null,null,null,null,null,null,null,null,null,null,null,null,null,"IMPORTS","_Z","_Z","_Z","_Z","_Z","TT",null,"_Z"]
["Tunisia",151,null,null,null,null,"",0," ",null,null,null,null,null,null,null,null,null,null,null,null,null,null,null,null,null,null,null,null,null,null,null,null,null,null,null,null,null,null,null,null,null,null,"TN","TUNISIA",null,null,null,null,null,null,null,null,null,null,null,null,null,null,null,null,null,null,null,null,null,null,null,null,null,null,null,null,null,null,null,null,null,null,null,null,null,null,null,null,null,null,null,null,null,null,null,null,null,null,null,null,null,null,null,null,null,null,null,null,null,null,null,null,null,null,null,null,null,null,null,null,null,null,null,null,null,null,null,"IMPORTS","_Z","_Z","_Z","_Z","_Z","TN",null,"_Z"]
["Turkey",152,null,null,null,null,"",0," ",null,null,null,null,null,null,null,null,null,null,null,null,null,null,null,null,null,null,null,null,null,null,null,null,null,null,null,null,null,null,null,null,null,null,"TR","TURKEY",null,null,null,null,null,null,null,null,null,null,null,null,null,null,null,null,null,null,null,null,null,null,null,null,null,null,null,null,null,null,null,null,null,null,null,null,null,null,null,null,null,null,null,null,null,null,null,null,null,null,null,null,null,null,null,null,null,null,null,null,null,null,null,null,null,null,null,null,null,null,null,null,null,null,null,null,null,null,null,"IMPORTS","_Z","_Z","_Z","_Z","_Z","TR",null,"_Z"]
["Turkmenistan",153,null,null,null,null,"",0," ",null,null,null,null,null,null,null,null,null,null,null,null,null,null,null,null,null,null,null,null,null,null,null,null,null,null,null,null,null,null,null,null,null,null,"TM","TURKMENIST",null,null,null,null,null,null,null,null,null,null,null,null,null,null,null,null,null,null,null,null,null,null,null,null,null,null,null,null,null,null,null,null,null,null,null,null,null,null,null,null,null,null,null,null,null,null,null,null,null,null,null,null,null,null,null,null,null,null,null,null,null,null,null,null,null,null,null,null,null,null,null,null,null,null,null,null,null,null,null,"IMPORTS","_Z","_Z","_Z","_Z","_Z","TM",null,"_Z"]
["Uganda",154,null,null,null,null,"",0," ",null,null,null,null,null,null,null,null,null,null,null,null,null,null,null,null,null,null,null,null,null,null,null,null,null,null,null,null,null,null,null,null,null,null,"UG","UGANDA",null,null,null,null,null,null,null,null,null,null,null,null,null,null,null,null,null,null,null,null,null,null,null,null,null,null,null,null,null,null,null,null,null,null,null,null,null,null,null,null,null,null,null,null,null,null,null,null,null,null,null,null,null,null,null,null,null,null,null,null,null,null,null,null,null,null,null,null,null,null,null,null,null,null,null,null,null,null,null,"IMPORTS","_Z","_Z","_Z","_Z","_Z","UG",null,"_Z"]
["Ukraine",155,null,null,null,null,"",0," ",null,null,null,null,null,null,null,null,null,null,null,null,null,null,null,null,null,null,null,null,null,null,null,null,null,null,null,null,null,null,null,null,null,null,"UA","UKRAINE",null,null,null,null,null,null,null,null,null,null,null,null,null,null,null,null,null,null,null,null,null,null,null,null,null,null,null,null,null,null,null,null,null,null,null,null,null,null,null,null,null,null,null,null,null,null,null,null,null,null,null,null,null,null,null,null,null,null,null,null,null,null,null,null,null,null,null,null,null,null,null,null,null,null,null,null,null,null,null,"IMPORTS","_Z","_Z","_Z","_Z","_Z","UA",null,"_Z"]
["United Arab Emirates",156,null,null,null,null,"",0," ",null,null,null,null,null,null,null,null,null,null,null,null,null,null,null,null,null,null,null,null,null,null,null,null,null,null,null,null,null,null,null,null,null,null,"AE","UAE",null,null,null,null,null,null,null,null,null,null,null,null,null,null,null,null,null,null,null,null,null,null,null,null,null,null,null,null,null,null,null,null,null,null,null,null,null,null,null,null,null,null,null,null,null,null,null,null,null,null,null,null,null,null,null,null,null,null,null,null,null,null,null,null,null,null,null,null,null,null,null,null,null,null,null,null,null,null,null,"IMPORTS","_Z","_Z","_Z","_Z","_Z","AE",null,"_Z"]
["United Kingdom",157,null,null,null,null,"",0," ",null,null,null,null,null,null,null,null,null,null,null,null,null,null,null,null,null,null,null,null,null,null,null,null,null,null,null,null,null,null,null,null,null,null,"GB","UK",null,null,null,null,null,null,null,null,null,null,null,null,null,null,null,null,null,null,null,null,null,null,null,null,null,null,null,null,null,null,null,null,null,null,null,null,null,null,null,null,null,null,null,null,null,null,null,null,null,null,null,null,null,null,null,null,null,null,null,null,null,null,null,null,null,null,null,null,null,null,null,null,null,null,null,null,null,null,null,"IMPORTS","_Z","_Z","_Z","_Z","_Z","GB",null,"_Z"]
["United States",158,null,null,null,null,"",0," ",null,null,null,null,null,null,null,null,null,null,null,null,null,null,null,null,null,null,null,null,null,null,null,null,null,null,null,null,null,null,null,null,null,null,"US","USA",null,null,null,null,null,null,null,null,null,null,null,null,null,null,null,null,null,null,null,null,null,null,null,null,null,null,null,null,null,null,null,null,null,null,null,null,null,null,null,null,null,null,null,null,null,null,null,null,null,null,null,null,null,null,null,null,null,null,null,null,null,null,null,null,null,null,null,null,null,null,null,null,null,null,null,null,null,null,null,"IMPORTS","_Z","_Z","_Z","_Z","_Z","US",null,"_Z"]
["Uruguay",159,null,null,null,null,"",0," ",null,null,null,null,null,null,null,null,null,null,null,null,null,null,null,null,null,null,null,null,null,null,null,null,null,null,null,null,null,null,null,null,null,null,"UY","URUGUAY",null,null,null,null,null,null,null,null,null,null,null,null,null,null,null,null,null,null,null,null,null,null,null,null,null,null,null,null,null,null,null,null,null,null,null,null,null,null,null,null,null,null,null,null,null,null,null,null,null,null,null,null,null,null,null,null,null,null,null,null,null,null,null,null,null,null,null,null,null,null,null,null,null,null,null,null,null,null,null,"IMPORTS","_Z","_Z","_Z","_Z","_Z","UY",null,"_Z"]
["Uzbekistan",160,null,null,null,null,"",0," ",null,null,null,null,null,null,null,null,null,null,null,null,null,null,null,null,null,null,null,null,null,null,null,null,null,null,null,null,null,null,null,null,null,null,"UZ","UZBEKISTAN",null,null,null,null,null,null,null,null,null,null,null,null,null,null,null,null,null,null,null,null,null,null,null,null,null,null,null,null,null,null,null,null,null,null,null,null,null,null,null,null,null,null,null,null,null,null,null,null,null,null,null,null,null,null,null,null,null,null,null,null,null,null,null,null,null,null,null,null,null,null,null,null,null,null,null,null,null,null,null,"IMPORTS","_Z","_Z","_Z","_Z","_Z","UZ",null,"_Z"]
["Venezuela, Bolivarian Republic",161,null,null,null,null,"",0," ",null,null,null,null,null,null,null,null,null,null,null,null,null,null,null,null,null,null,null,null,null,null,null,null,null,null,null,null,null,null,null,null,null,null,"VE","VENEZUELA",null,null,null,null,null,null,null,null,null,null,null,null,null,null,null,null,null,null,null,null,null,null,null,null,null,null,null,null,null,null,null,null,null,null,null,null,null,null,null,null,null,null,null,null,null,null,null,null,null,null,null,null,null,null,null,null,null,null,null,null,null,null,null,null,null,null,null,null,null,null,null,null,null,null,null,null,null,null,null,"IMPORTS","_Z","_Z","_Z","_Z","_Z","VE",null,"_Z"]
["Viet Nam",162,null,null,null,null,"",0," ",null,null,null,null,null,null,null,null,null,null,null,null,null,null,null,null,null,null,null,null,null,null,null,null,null,null,null,null,null,null,null,null,null,null,"VN","VIETNAM",null,null,null,null,null,null,null,null,null,null,null,null,null,null,null,null,null,null,null,null,null,null,null,null,null,null,null,null,null,null,null,null,null,null,null,null,null,null,null,null,null,null,null,null,null,null,null,null,null,null,null,null,null,null,null,null,null,null,null,null,null,null,null,null,null,null,null,null,null,null,null,null,null,null,null,null,null,null,null,"IMPORTS","_Z","_Z","_Z","_Z","_Z","VN",null,"_Z"]
["Yemen",163,null,null,null,null,"",0," ",null,null,null,null,null,null,null,null,null,null,null,null,null,null,null,null,null,null,null,null,null,null,null,null,null,null,null,null,null,null,null,null,null,null,"YE","YEMEN",null,null,null,null,null,null,null,null,null,null,null,null,null,null,null,null,null,null,null,null,null,null,null,null,null,null,null,null,null,null,null,null,null,null,null,null,null,null,null,null,null,null,null,null,null,null,null,null,null,null,null,null,null,null,null,null,null,null,null,null,null,null,null,null,null,null,null,null,null,null,null,null,null,null,null,null,null,null,null,"IMPORTS","_Z","_Z","_Z","_Z","_Z","YE",null,"_Z"]
["Not elsewhere specified",164,null,null,null,null,"",0," ",null,null,null,null,null,null,null,null,null,null,null,null,null,null,null,null,null,null,null,null,null,null,null,null,null,null,null,null,null,null,null,null,null,null,"Y3","NONSPEC",null,null,null,null,null,null,null,null,null,null,null,null,null,null,null,null,null,null,null,null,null,null,null,null,null,null,null,null,null,null,null,null,null,null,null,null,null,null,null,null,null,null,null,null,null,null,null,null,null,null,null,null,null,null,null,null,null,null,null,null,null,null,null,null,null,null,null,null,null,null,null,null,null,null,null,null,null,null,null,"IMPORTS","_Z","_Z","_Z","_Z","_Z","_X",null,"_Z"]
["Total Imports (Entries)1 2",165,{"$f":"ROUND(SUM(C8:C171),3)","v":0},{"$f":"ROUND(SUM(D8:D171),3)","v":0},{"$f":"ROUND(SUM(E8:E171),3)","v":0},{"$f":"ROUND(SUM(F8:F171),3)","v":0},{"$f":"IF(OR(E172=0,C172=0),\"\",ROUND((E172/C172)*1000,0))","v":""},{"$f":"IF(MIN(C172:F172)<0,1,0)+IF(OR(C172<D172,E172<F172),1,0)","v":0},{"$f":"IF(H172=0,\" \",IF(H172=1,\"Error: \",\"2 errors: \"))&IF(MIN(C172:F172)<0,\"Imports data should not be negative. \",\"\")&IF(OR(C172<D172,E172<F172),\"'Of which: LNG' greater than Total.\",\"\")","v":" "},null,null,null,null,null,null,null,null,null,null,null,null,null,null,null,null,null,null,null,null,null,null,null,null,null,null,null,null,null,null,null,null,null,null,"Y5","TOTENTST",null,null,null,null,null,null,null,null,null,null,null,null,null,null,null,null,null,null,null,null,null,null,null,null,null,null,null,null,null,null,null,null,null,null,null,null,null,null,null,null,null,null,null,null,null,null,null,null,null,null,null,null,null,null,null,null,null,null,null,null,null,null,null,null,null,null,null,null,null,null,null,null,null,null,null,null,null,null,null,"IMPORTS","_Z","_Z","_Z","_Z","_Z","_T",null,"_Z"]
[null,null,{"$f":"IF(MIN(C8:C172)<0,\"Negative number\",\"\")","v":""},{"$f":"IF(MIN(D8:D172)<0,\"Negative number\",\"\")","v":""},{"$f":"IF(MIN(E8:E172)<0,\"Negative number\",\"\")","v":""},{"$f":"IF(MIN(F8:F172)<0,\"Negative number\",\"\")","v":""}]
[]
["1. Total Imports (Entries) (references A165 and C165) should be equal to references A3 ",null,null,null,null,null,{"$f":"C172-'Table 10'!C9","v":0},{"$f":"IF(G175=0,\"OK\",\"Total Imports (Entries) in Mcm is not equal to Imports (Entries) in Table 10.\")","v":"OK"}]
["    and B3 in Table 10.",null,null,null,null,null,{"$f":"E172-'Table 10'!D9","v":0},{"$f":"IF(G176=0,\"OK\",\"Total Imports (Entries) in TJ is not equal to Imports (Entries) in Table 10.\")","v":"OK"}]
["2. Total Imports (Entries) should be equal to the sum of its components for cubic metres (column A)",null,null,null,null,null,{"$f":"C172-SUM(C8:C171)","v":0},{"$f":"IF(G177=0,\"OK\",\"Total Imports (Entries) in Mcm is not equal to the sum of its components.\")","v":"OK"}]
["    and in terajoules (column C).",null,null,null,null,null,{"$f":"E172-SUM(E8:E171)","v":0},{"$f":"IF(G178=0,\"OK\",\"Total Imports (Entries) in TJ is not equal to the sum of its components.\")","v":"OK"}]
["3. Total Imports (Entries) for LNG should be equal to the sum of its components for cubic metres (column B)",null,null,null,null,null,{"$f":"D172-SUM(D8:D171)","v":0},{"$f":"IF(G179=0,\"OK\",\"Total Imports (Entries) in Mcm for LNG is not equal to the sum of its components.\")","v":"OK"}]
["    and for terajoules (column D).",null,null,null,null,null,{"$f":"F172-SUM(F8:F171)","v":0},{"$f":"IF(G180=0,\"OK\",\"Total Imports (Entries) in TJ for LNG is not equal to the sum of its components.\")","v":"OK"}]
["* This designation is without prejudice to positions on status, and is line with UNSCR 1244 and the ICJ Opinion on the Kosovo declaration of independence."]
[]
[]
[]
[]
[]
[]
[]
[]
[]
[]
[]
[]
[]
[]
[]
[]
[]
[]
[]
[]
[]
[]
[]
[]
[]
[]
[]
[]
[]
[]
[]
["Products è",null,"NATGASCM","LNGCM","NGASTJOU","LNGTJ","NGASCV"]
[]
[]
[]
[]
[]
[]
[]
[]
[]
[]
[]
[]
[]
[]
[]
[]
[]
[]
[]
[]
[]
[]
[]
[]
[]
[]
[]
[]
[]
[]
[]
[]
[]
[]
[]
[]
[]
[]
[]
[]
[]
[]
[]
[]
[]
[]
[]
[]
[]
[]
[]
[]
[]
[]
[]
[]
[]
[]
[]
[]
[]
[]
[]
[]
[]
[]
[]
[]
[]
[]
[]
[]
[]
[]
[]
[]
[]
[]
[]
[]
[]
[]
[]
[]
[]
[]
[]
[]
[]
[]
[]
[]
[]
[]
[]
[]
[]
[]
[]
[]
[]
[]
[]
[]
[]
[]
[]
[]
[]
[]
[]
[]
[]
[]
[]
[]
[]
[]
[]
[]
[]
[]
[]
[]
[]
[]
[]
[]
[]
[]
[]
[]
[]
[]
[]
[]
[]
[]
[]
[]
[]
[]
[]
[]
[]
[]
[]
[]
[]
[]
[]
[]
[]
[]
[]
[]
[]
[]
[]
[]
[]
[]
[]
[]
[]
[]
[]
[]
[]
[]
[]
[]
[]
[]
[]
[]
[]
[]
[]
[]
[]
[]
[]
[]
[]
[]
[]
[]
[]
[]
[]
[]
[]
[]
[]
[]
[]
[]
[]
[]
[]
[]
[]
[]
[]
[]
[]
[]
[]
[]
[]
[]
[]
[]
[]
[]
[]
[]
[]
[]
[]
[]
[]
[]
[]
[]
[]
[]
[]
[]
[]
[]
[]
[]
[]
[]
[]
[]
[]
[]
[]
[]
[]
[]
[]
[]
[]
[]
[]
[]
[]
[]
[]
[]
[]
[]
[]
[]
[]
[]
[]
[]
[]
[]
[]
[]
[]
[]
[]
[]
[]
[]
[]
[]
[]
[]
[]
[]
[]
[]
[]
[]
[]
[]
[]
[]
[]
[]
[]
[]
[]
[]
[]
[]
[]
[]
[]
[]
[]
[]
[]
[]
[]
[]
[]
[]
[]
[]
[]
[]
[]
[]
[]
[]
[]
[]
[]
[]
[]
[]
[]
[]
[]
[]
[]
[]
[]
[]
[]
[]
[]
[]
[]
[]
[]
[]
[]
[]
[]
[]
[]
[]
[]
[]
[]
[]
[]
[]
[]
[]
[]
[]
[]
[]
[]
[]
[]
[]
[]
[]
[]
[]
[]
[]
[]
[]
[]
[]
[]
[]
[]
[]
[]
[]
[]
[]
[]
[]
[]
[]
[]
[]
[]
[]
[]
[]
[]
[]
[]
[]
[]
[]
[]
[]
[]
[]
[]
[]
[]
[]
[]
[]
[]
[]
[]
[]
[]
[]
[]
[]
[]
[]
[]
[]
[]
[]
[]
[]
[]
[]
[]
[]
[]
[]
[]
[]
[]
[]
[]
[]
[]
[]
[]
[]
[]
[]
[]
[]
[]
[]
[]
[]
[]
[]
[]
[]
[]
[]
[]
[]
[]
[]
[]
[]
[]
[]
[]
[]
[]
[]
[]
[]
[]
[]
[]
[]
[]
[]
[]
[]
[]
[]
[]
[]
[]
[]
[]
[]
[]
[]
[]
[]
[]
[]
[]
[]
[]
[]
[]
[]
[]
[]
[]
[]
[]
[]
[]
[]
[]
[]
[]
[]
[]
[]
[]
[]
[]
[]
[]
[]
[]
[]
[]
[]
[]
[]
[]
[]
[]
[]
[]
[]
[]
[]
[]
[]
[]
[]
[]
[]
[]
[]
[]
[]
[]
[]
[]
[]
[]
[]
[]
[]
[]
[]
[]
[]
[]
[]
[]
[]
[]
[]
[]
[]
[]
[]
[]
[]
[]
[]
[]
[]
[]
[]
[]
[]
[]
[]
[]
[]
[]
[]
[]
[]
[]
[]
[]
[]
[]
[]
[]
[]
[]
[]
[]
[]
[]
[]
[]
[]
[]
[]
[]
[]
[]
[]
[]
[]
[]
[]
[]
[]
[]
[]
[]
[]
[]
[]
[]
[]
[]
[]
[]
[]
[]
[]
[]
[]
[]
[]
[]
[]
[]
[]
[]
[]
[]
[]
[]
[]
[]
[]
[]
[]
[]
[]
[]
[]
[]
[]
[]
[]
[]
[]
[]
[]
[]
[]
[]
[]
[]
[]
[]
[]
[]
[]
[]
[]
[]
[]
[]
[]
[]
[]
[]
[]
[]
[]
[]
[]
[]
[]
[]
[]
[]
[]
[]
[]
[]
[]
[]
[]
[]
[]
[]
[]
[]
[]
[]
[]
[]
[]
[]
[]
[]
[]
[]
[]
[]
[]
[]
[]
[]
[]
[]
[]
[]
[]
[]
[]
[]
[]
[]
[]
[]
[]
[]
[]
[]
[]
[]
[]
[]
[]
[]
[]
[]
[]
[]
[]
[]
[]
[]
[]
[]
[]
[]
[]
[]
[]
[]
[]
[]
[]
[]
[]
[]
[]
[]
[]
[]
[]
[]
[]
[]
[]
[]
[]
[]
[]
[]
[]
[]
[]
[]
[]
[]
[]
[]
[]
[]
[]
[]
[]
[]
[]
[]
[]
[]
[]
[]
[]
[]
[]
[]
[]
["ENERGY_PRODUCT",null,"G3000","G3200","G3000","G3200","G3000"]
["MEASURE_VALUE_TYPE",null,"VOLUME","VOLUME","ENERGY","ENERGY","GCV"]
["UNIT_MEASURE",null,"MM3","MM3","TJ_GCV","TJ_GCV","KJ_M3"]

{"sheet":"Table 12","index":3,"n_rows":1002,"n_cols":135,"rows_kept":1002,"cut":false,"hidden":false,"merged":[[4,6,5,6],[4,2,5,2],[4,4,5,4],[4,8,5,8]]}
[{"$f":"Quest & \" QUESTIONNAIRE\"","v":"MOS GAS QUESTIONNAIRE"},null,null,null,null,null,null,null,null,null,null,null,null,null,null,null,null,null,null,null,null,null,null,null,null,null,null,null,null,null,null,null,null,null,null,null,null,null,null,null,null,null,null,null,"Datatype"]
["Table 12:  EXPORTS (EXITS) OF NATURAL GAS BY DESTINATION",null,null,null,null,null,null,null,null,null,null,null,null,null,null,null,null,null,null,null,null,null,null,null,null,null,null,null,null,null,null,null,null,null,null,null,null,null,null,null,null,null,null,null,"EXITS"]
[{"$f":"IF(Summary!F13=0,\"\",Summary!F13)","v":"(select country)"}]
[{"$f":"IF(Summary!F14=0,\"\",Summary!F14 & \" \" & QuestYear)","v":"January 2020"}]
[null,null,"Natural gas \nMillion m3 (at\n15°C, 760 mm Hg)",null,"Natural gas \nTerajoules\n(Gross calor. value)",null,"Natural gas\nGross calorific value\n(Calculated)",null,"Probate",null,null,null,null,null,null,null,null,null,null,null,null,null,null,null,null,null,null,null,null,null,null,null,null,null,null,null,null,null,null,null,null,null,null,null,null,null,null,null,null,null,null,null,null,null,null,null,null,null,null,null,null,null,null,null,null,null,null,null,null,null,null,null,null,null,null,null,null,null,null,null,null,null,null,null,null,null,null,null,null,null,null,null,null,null,null,null,null,null,null,null,null,null,null,null,null,null,null,null,null,null,null,null,null,null,null,null,null,null,null,null,null,null,"*** DSD codes ***"]
[null,null,null,"Of which:\nLNG",null,"Of which:\nLNG",null,null,null,null,null,null,null,null,null,null,null,null,null,null,null,null,null,null,null,null,null,null,null,null,null,null,null,null,null,null,null,null,null,null,null,null,null,null,null,null,null,null,null,null,null,null,null,null,null,null,null,null,null,null,null,null,null,null,null,null,null,null,null,null,null,null,null,null,null,null,null,null,null,null,null,null,null,null,null,null,null,null,null,null,null,null,null,null,null,null,null,null,null,null,null,null,null,null,null,null,null,null,null,null,null,null,null,null,null,null,null,null,null,null,null,null,"REF_AREA","ENERGY_PRODUCT","MAIN_FLOW","FLOW_BREAKDOWN","PLANT_TECH","PLANT_TYPE","STOCKS","INFRASTRUCTURE_IND","VIS_A_VIS_AREA","MEASURE_VALUE_TYPE","FACILITY_ID","UNIT_MEASURE","TIME_PERIOD"]
[null,null,"A","B","C","D","E",null,"F",null,null,null,null,null,null,null,null,null,null,null,null,null,null,null,null,null,null,null,null,null,null,null,null,null,null,null,null,null,null,null,null,null,null,null,"Item1 ê",null,null,null,null,null,null,null,null,null,null,null,null,null,null,null,null,null,null,null,null,null,null,null,null,null,null,null,null,null,null,null,null,null,null,null,null,null,null,null,null,null,null,null,null,null,null,null,null,null,null,null,null,null,null,null,null,null,null,null,null,null,null,null,null,null,null,null,null,null,null,null,null,null,null,null,null,null,{"$f":"VLOOKUP(CountryUser, Param!$C$9:$E$65, 3, 0)","v":{"$error":"#N/A"}},"Row 1000",null,null,null,null,null,null,null,"Row 1001",null,"Row 1002",{"$f":"QuestYear&\"-\"&TEXT(MATCH(FirstMonth, Param!C70:C81,0), \"00\")","v":"2020-01"}]
["Albania",1,null,null,null,null,{"$f":"IF(OR(E8=0,C8=0),\"\",ROUND((E8/C8)*1000,0))","v":""},{"$f":"IF(MIN(C8:F8)<0,1,0)+IF(OR(C8<D8,E8<F8),1,0)","v":0},{"$f":"IF(H8=0,\" \",IF(H8=1,\"Error: \",\"2 errors: \"))&IF(MIN(C8:F8)<0,\"Imports data should not be negative. \",\"\")&IF(OR(C8<D8,E8<F8),\"'Of which: LNG' greater than Total.\",\"\")","v":" "},null,null,null,null,null,null,null,null,null,null,null,null,null,null,null,null,null,null,null,null,null,null,null,null,null,null,null,null,null,null,null,null,null,null,"AL","ALBANIA",null,null,null,null,null,null,null,null,null,null,null,null,null,null,null,null,null,null,null,null,null,null,null,null,null,null,null,null,null,null,null,null,null,null,null,null,null,null,null,null,null,null,null,null,null,null,null,null,null,null,null,null,null,null,null,null,null,null,null,null,null,null,null,null,null,null,null,null,null,null,null,null,null,null,null,null,null,null,null,"EXPORTS","_Z","_Z","_Z","_Z","_Z","AL",null,"_Z"]
["Algeria",2,null,null,null,null,{"$f":"IF(OR(E9=0,C9=0),\"\",ROUND((E9/C9)*1000,0))","v":""},0," ",null,null,null,null,null,null,null,null,null,null,null,null,null,null,null,null,null,null,null,null,null,null,null,null,null,null,null,null,null,null,null,null,null,null,"DZ","ALGERIA",null,null,null,null,null,null,null,null,null,null,null,null,null,null,null,null,null,null,null,null,null,null,null,null,null,null,null,null,null,null,null,null,null,null,null,null,null,null,null,null,null,null,null,null,null,null,null,null,null,null,null,null,null,null,null,null,null,null,null,null,null,null,null,null,null,null,null,null,null,null,null,null,null,null,null,null,null,null,null,"EXPORTS","_Z","_Z","_Z","_Z","_Z","DZ",null,"_Z"]
["Andorra",3,null,null,null,null,"",0," ",null,null,null,null,null,null,null,null,null,null,null,null,null,null,null,null,null,null,null,null,null,null,null,null,null,null,null,null,null,null,null,null,null,null,"AD","ANDORRA",null,null,null,null,null,null,null,null,null,null,null,null,null,null,null,null,null,null,null,null,null,null,null,null,null,null,null,null,null,null,null,null,null,null,null,null,null,null,null,null,null,null,null,null,null,null,null,null,null,null,null,null,null,null,null,null,null,null,null,null,null,null,null,null,null,null,null,null,null,null,null,null,null,null,null,null,null,null,null,"EXPORTS","_Z","_Z","_Z","_Z","_Z","AD",null,"_Z"]
["Angola",4,null,null,null,null,"",0," ",null,null,null,null,null,null,null,null,null,null,null,null,null,null,null,null,null,null,null,null,null,null,null,null,null,null,null,null,null,null,null,null,null,null,"AO","ANGOLA",null,null,null,null,null,null,null,null,null,null,null,null,null,null,null,null,null,null,null,null,null,null,null,null,null,null,null,null,null,null,null,null,null,null,null,null,null,null,null,null,null,null,null,null,null,null,null,null,null,null,null,null,null,null,null,null,null,null,null,null,null,null,null,null,null,null,null,null,null,null,null,null,null,null,null,null,null,null,null,"EXPORTS","_Z","_Z","_Z","_Z","_Z","AO",null,"_Z"]
["Argentina",5,null,null,null,null,"",0," ",null,null,null,null,null,null,null,null,null,null,null,null,null,null,null,null,null,null,null,null,null,null,null,null,null,null,null,null,null,null,null,null,null,null,"AR","ARGENTINA",null,null,null,null,null,null,null,null,null,null,null,null,null,null,null,null,null,null,null,null,null,null,null,null,null,null,null,null,null,null,null,null,null,null,null,null,null,null,null,null,null,null,null,null,null,null,null,null,null,null,null,null,null,null,null,null,null,null,null,null,null,null,null,null,null,null,null,null,null,null,null,null,null,null,null,null,null,null,null,"EXPORTS","_Z","_Z","_Z","_Z","_Z","AR",null,"_Z"]
["Armenia",6,null,null,null,null,"",0," ",null,null,null,null,null,null,null,null,null,null,null,null,null,null,null,null,null,null,null,null,null,null,null,null,null,null,null,null,null,null,null,null,null,null,"AM","ARMENIA",null,null,null,null,null,null,null,null,null,null,null,null,null,null,null,null,null,null,null,null,null,null,null,null,null,null,null,null,null,null,null,null,null,null,null,null,null,null,null,null,null,null,null,null,null,null,null,null,null,null,null,null,null,null,null,null,null,null,null,null,null,null,null,null,null,null,null,null,null,null,null,null,null,null,null,null,null,null,null,"EXPORTS","_Z","_Z","_Z","_Z","_Z","AM",null,"_Z"]
["Aruba",7,null,null,null,null,"",0," ",null,null,null,null,null,null,null,null,null,null,null,null,null,null,null,null,null,null,null,null,null,null,null,null,null,null,null,null,null,null,null,null,null,null,"AW","ARUBA",null,null,null,null,null,null,null,null,null,null,null,null,null,null,null,null,null,null,null,null,null,null,null,null,null,null,null,null,null,null,null,null,null,null,null,null,null,null,null,null,null,null,null,null,null,null,null,null,null,null,null,null,null,null,null,null,null,null,null,null,null,null,null,null,null,null,null,null,null,null,null,null,null,null,null,null,null,null,null,"EXPORTS","_Z","_Z","_Z","_Z","_Z","AW",null,"_Z"]
["Australia",8,null,null,null,null,"",0," ",null,null,null,null,null,null,null,null,null,null,null,null,null,null,null,null,null,null,null,null,null,null,null,null,null,null,null,null,null,null,null,null,null,null,"AU","AUSTRALI",null,null,null,null,null,null,null,null,null,null,null,null,null,null,null,null,null,null,null,null,null,null,null,null,null,null,null,null,null,null,null,null,null,null,null,null,null,null,null,null,null,null,null,null,null,null,null,null,null,null,null,null,null,null,null,null,null,null,null,null,null,null,null,null,null,null,null,null,null,null,null,null,null,null,null,null,null,null,null,"EXPORTS","_Z","_Z","_Z","_Z","_Z","AU",null,"_Z"]
["Austria",9,null,null,null,null,"",0," ",null,null,null,null,null,null,null,null,null,null,null,null,null,null,null,null,null,null,null,null,null,null,null,null,null,null,null,null,null,null,null,null,null,null,"AT","AUSTRIA",null,null,null,null,null,null,null,null,null,null,null,null,null,null,null,null,null,null,null,null,null,null,null,null,null,null,null,null,null,null,null,null,null,null,null,null,null,null,null,null,null,null,null,null,null,null,null,null,null,null,null,null,null,null,null,null,null,null,null,null,null,null,null,null,null,null,null,null,null,null,null,null,null,null,null,null,null,null,null,"EXPORTS","_Z","_Z","_Z","_Z","_Z","AT",null,"_Z"]
["Azerbaijan",10,null,null,null,null,"",0," ",null,null,null,null,null,null,null,null,null,null,null,null,null,null,null,null,null,null,null,null,null,null,null,null,null,null,null,null,null,null,null,null,null,null,"AZ","AZERBAIJAN",null,null,null,null,null,null,null,null,null,null,null,null,null,null,null,null,null,null,null,null,null,null,null,null,null,null,null,null,null,null,null,null,null,null,null,null,null,null,null,null,null,null,null,null,null,null,null,null,null,null,null,null,null,null,null,null,null,null,null,null,null,null,null,null,null,null,null,null,null,null,null,null,null,null,null,null,null,null,null,"EXPORTS","_Z","_Z","_Z","_Z","_Z","AZ",null,"_Z"]
["Bahamas",11,null,null,null,null,"",0," ",null,null,null,null,null,null,null,null,null,null,null,null,null,null,null,null,null,null,null,null,null,null,null,null,null,null,null,null,null,null,null,null,null,null,"BS","BAHAMAS",null,null,null,null,null,null,null,null,null,null,null,null,null,null,null,null,null,null,null,null,null,null,null,null,null,null,null,null,null,null,null,null,null,null,null,null,null,null,null,null,null,null,null,null,null,null,null,null,null,null,null,null,null,null,null,null,null,null,null,null,null,null,null,null,null,null,null,null,null,null,null,null,null,null,null,null,null,null,null,"EXPORTS","_Z","_Z","_Z","_Z","_Z","BS",null,"_Z"]
["Bahrain",12,null,null,null,null,"",0," ",null,null,null,null,null,null,null,null,null,null,null,null,null,null,null,null,null,null,null,null,null,null,null,null,null,null,null,null,null,null,null,null,null,null,"BH","BAHRAIN",null,null,null,null,null,null,null,null,null,null,null,null,null,null,null,null,null,null,null,null,null,null,null,null,null,null,null,null,null,null,null,null,null,null,null,null,null,null,null,null,null,null,null,null,null,null,null,null,null,null,null,null,null,null,null,null,null,null,null,null,null,null,null,null,null,null,null,null,null,null,null,null,null,null,null,null,null,null,null,"EXPORTS","_Z","_Z","_Z","_Z","_Z","BH",null,"_Z"]
["Bangladesh",13,null,null,null,null,"",0," ",null,null,null,null,null,null,null,null,null,null,null,null,null,null,null,null,null,null,null,null,null,null,null,null,null,null,null,null,null,null,null,null,null,null,"BD","BANGLADESH",null,null,null,null,null,null,null,null,null,null,null,null,null,null,null,null,null,null,null,null,null,null,null,null,null,null,null,null,null,null,null,null,null,null,null,null,null,null,null,null,null,null,null,null,null,null,null,null,null,null,null,null,null,null,null,null,null,null,null,null,null,null,null,null,null,null,null,null,null,null,null,null,null,null,null,null,null,null,null,"EXPORTS","_Z","_Z","_Z","_Z","_Z","BD",null,"_Z"]
["Barbados",14,null,null,null,null,"",0," ",null,null,null,null,null,null,null,null,null,null,null,null,null,null,null,null,null,null,null,null,null,null,null,null,null,null,null,null,null,null,null,null,null,null,"BB","BARBADOS",null,null,null,null,null,null,null,null,null,null,null,null,null,null,null,null,null,null,null,null,null,null,null,null,null,null,null,null,null,null,null,null,null,null,null,null,null,null,null,null,null,null,null,null,null,null,null,null,null,null,null,null,null,null,null,null,null,null,null,null,null,null,null,null,null,null,null,null,null,null,null,null,null,null,null,null,null,null,null,"EXPORTS","_Z","_Z","_Z","_Z","_Z","BB",null,"_Z"]
["Belarus",15,null,null,null,null,"",0," ",null,null,null,null,null,null,null,null,null,null,null,null,null,null,null,null,null,null,null,null,null,null,null,null,null,null,null,null,null,null,null,null,null,null,"BY","BELARUS",null,null,null,null,null,null,null,null,null,null,null,null,null,null,null,null,null,null,null,null,null,null,null,null,null,null,null,null,null,null,null,null,null,null,null,null,null,null,null,null,null,null,null,null,null,null,null,null,null,null,null,null,null,null,null,null,null,null,null,null,null,null,null,null,null,null,null,null,null,null,null,null,null,null,null,null,null,null,null,"EXPORTS","_Z","_Z","_Z","_Z","_Z","BY",null,"_Z"]
["Belgium",16,null,null,null,null,"",0," ",null,null,null,null,null,null,null,null,null,null,null,null,null,null,null,null,null,null,null,null,null,null,null,null,null,null,null,null,null,null,null,null,null,null,"BE","BELGIUM",null,null,null,null,null,null,null,null,null,null,null,null,null,null,null,null,null,null,null,null,null,null,null,null,null,null,null,null,null,null,null,null,null,null,null,null,null,null,null,null,null,null,null,null,null,null,null,null,null,null,null,null,null,null,null,null,null,null,null,null,null,null,null,null,null,null,null,null,null,null,null,null,null,null,null,null,null,null,null,"EXPORTS","_Z","_Z","_Z","_Z","_Z","BE",null,"_Z"]
["Belize",17,null,null,null,null,"",0," ",null,null,null,null,null,null,null,null,null,null,null,null,null,null,null,null,null,null,null,null,null,null,null,null,null,null,null,null,null,null,null,null,null,null,"BZ","BELIZE",null,null,null,null,null,null,null,null,null,null,null,null,null,null,null,null,null,null,null,null,null,null,null,null,null,null,null,null,null,null,null,null,null,null,null,null,null,null,null,null,null,null,null,null,null,null,null,null,null,null,null,null,null,null,null,null,null,null,null,null,null,null,null,null,null,null,null,null,null,null,null,null,null,null,null,null,null,null,null,"EXPORTS","_Z","_Z","_Z","_Z","_Z","BZ",null,"_Z"]
["Benin",18,null,null,null,null,"",0," ",null,null,null,null,null,null,null,null,null,null,null,null,null,null,null,null,null,null,null,null,null,null,null,null,null,null,null,null,null,null,null,null,null,null,"BJ","BENIN",null,null,null,null,null,null,null,null,null,null,null,null,null,null,null,null,null,null,null,null,null,null,null,null,null,null,null,null,null,null,null,null,null,null,null,null,null,null,null,null,null,null,null,null,null,null,null,null,null,null,null,null,null,null,null,null,null,null,null,null,null,null,null,null,null,null,null,null,null,null,null,null,null,null,null,null,null,null,null,"EXPORTS","_Z","_Z","_Z","_Z","_Z","BJ",null,"_Z"]
["Bolivia",19,null,null,null,null,"",0," ",null,null,null,null,null,null,null,null,null,null,null,null,null,null,null,null,null,null,null,null,null,null,null,null,null,null,null,null,null,null,null,null,null,null,"BO","BOLIVIA",null,null,null,null,null,null,null,null,null,null,null,null,null,null,null,null,null,null,null,null,null,null,null,null,null,null,null,null,null,null,null,null,null,null,null,null,null,null,null,null,null,null,null,null,null,null,null,null,null,null,null,null,null,null,null,null,null,null,null,null,null,null,null,null,null,null,null,null,null,null,null,null,null,null,null,null,null,null,null,"EXPORTS","_Z","_Z","_Z","_Z","_Z","BO",null,"_Z"]
["Bosnia and Herzegovina",20,null,null,null,null,"",0," ",null,null,null,null,null,null,null,null,null,null,null,null,null,null,null,null,null,null,null,null,null,null,null,null,null,null,null,null,null,null,null,null,null,null,"BA","BOSNIAHERZ",null,null,null,null,null,null,null,null,null,null,null,null,null,null,null,null,null,null,null,null,null,null,null,null,null,null,null,null,null,null,null,null,null,null,null,null,null,null,null,null,null,null,null,null,null,null,null,null,null,null,null,null,null,null,null,null,null,null,null,null,null,null,null,null,null,null,null,null,null,null,null,null,null,null,null,null,null,null,null,"EXPORTS","_Z","_Z","_Z","_Z","_Z","BA",null,"_Z"]
["Brazil",21,null,null,null,null,"",0," ",null,null,null,null,null,null,null,null,null,null,null,null,null,null,null,null,null,null,null,null,null,null,null,null,null,null,null,null,null,null,null,null,null,null,"BR","BRAZIL",null,null,null,null,null,null,null,null,null,null,null,null,null,null,null,null,null,null,null,null,null,null,null,null,null,null,null,null,null,null,null,null,null,null,null,null,null,null,null,null,null,null,null,null,null,null,null,null,null,null,null,null,null,null,null,null,null,null,null,null,null,null,null,null,null,null,null,null,null,null,null,null,null,null,null,null,null,null,null,"EXPORTS","_Z","_Z","_Z","_Z","_Z","BR",null,"_Z"]
["British Virgin Islands",22,null,null,null,null,{"$f":"IF(OR(E29=0,C29=0),\"\",ROUND((E29/C29)*1000,0))","v":""},{"$f":"IF(MIN(C29:F29)<0,1,0)+IF(OR(C29<D29,E29<F29),1,0)","v":0},{"$f":"IF(H29=0,\" \",IF(H29=1,\"Error: \",\"2 errors: \"))&IF(MIN(C29:F29)<0,\"Imports data should not be negative. \",\"\")&IF(OR(C29<D29,E29<F29),\"'Of which: LNG' greater than Total.\",\"\")","v":" "},null,null,null,null,null,null,null,null,null,null,null,null,null,null,null,null,null,null,null,null,null,null,null,null,null,null,null,null,null,null,null,null,null,null,"VG","BRITVIRGIN",null,null,null,null,null,null,null,null,null,null,null,null,null,null,null,null,null,null,null,null,null,null,null,null,null,null,null,null,null,null,null,null,null,null,null,null,null,null,null,null,null,null,null,null,null,null,null,null,null,null,null,null,null,null,null,null,null,null,null,null,null,null,null,null,null,null,null,null,null,null,null,null,null,null,null,null,null,null,null,"EXPORTS","_Z","_Z","_Z","_Z","_Z","VG",null,"_Z"]
["Brunei Darussalam",23,null,null,null,null,"",0," ",null,null,null,null,null,null,null,null,null,null,null,null,null,null,null,null,null,null,null,null,null,null,null,null,null,null,null,null,null,null,null,null,null,null,"BN","BRUNEI",null,null,null,null,null,null,null,null,null,null,null,null,null,null,null,null,null,null,null,null,null,null,null,null,null,null,null,null,null,null,null,null,null,null,null,null,null,null,null,null,null,null,null,null,null,null,null,null,null,null,null,null,null,null,null,null,null,null,null,null,null,null,null,null,null,null,null,null,null,null,null,null,null,null,null,null,null,null,null,"EXPORTS","_Z","_Z","_Z","_Z","_Z","BN",null,"_Z"]
["Bulgaria",24,null,null,null,null,"",0," ",null,null,null,null,null,null,null,null,null,null,null,null,null,null,null,null,null,null,null,null,null,null,null,null,null,null,null,null,null,null,null,null,null,null,"BG","BULGARIA",null,null,null,null,null,null,null,null,null,null,null,null,null,null,null,null,null,null,null,null,null,null,null,null,null,null,null,null,null,null,null,null,null,null,null,null,null,null,null,null,null,null,null,null,null,null,null,null,null,null,null,null,null,null,null,null,null,null,null,null,null,null,null,null,null,null,null,null,null,null,null,null,null,null,null,null,null,null,null,"EXPORTS","_Z","_Z","_Z","_Z","_Z","BG",null,"_Z"]
["Cambodia",25,null,null,null,null,"",0," ",null,null,null,null,null,null,null,null,null,null,null,null,null,null,null,null,null,null,null,null,null,null,null,null,null,null,null,null,null,null,null,null,null,null,"KH","CAMBODIA",null,null,null,null,null,null,null,null,null,null,null,null,null,null,null,null,null,null,null,null,null,null,null,null,null,null,null,null,null,null,null,null,null,null,null,null,null,null,null,null,null,null,null,null,null,null,null,null,null,null,null,null,null,null,null,null,null,null,null,null,null,null,null,null,null,null,null,null,null,null,null,null,null,null,null,null,null,null,null,"EXPORTS","_Z","_Z","_Z","_Z","_Z","KH",null,"_Z"]
["Cameroon",26,null,null,null,null,"",0," ",null,null,null,null,null,null,null,null,null,null,null,null,null,null,null,null,null,null,null,null,null,null,null,null,null,null,null,null,null,null,null,null,null,null,"CM","CAMEROON",null,null,null,null,null,null,null,null,null,null,null,null,null,null,null,null,null,null,null,null,null,null,null,null,null,null,null,null,null,null,null,null,null,null,null,null,null,null,null,null,null,null,null,null,null,null,null,null,null,null,null,null,null,null,null,null,null,null,null,null,null,null,null,null,null,null,null,null,null,null,null,null,null,null,null,null,null,null,null,"EXPORTS","_Z","_Z","_Z","_Z","_Z","CM",null,"_Z"]
["Canada",27,null,null,null,null,"",0," ",null,null,null,null,null,null,null,null,null,null,null,null,null,null,null,null,null,null,null,null,null,null,null,null,null,null,null,null,null,null,null,null,null,null,"CA","CANADA",null,null,null,null,null,null,null,null,null,null,null,null,null,null,null,null,null,null,null,null,null,null,null,null,null,null,null,null,null,null,null,null,null,null,null,null,null,null,null,null,null,null,null,null,null,null,null,null,null,null,null,null,null,null,null,null,null,null,null,null,null,null,null,null,null,null,null,null,null,null,null,null,null,null,null,null,null,null,null,"EXPORTS","_Z","_Z","_Z","_Z","_Z","CA",null,"_Z"]
["Cape Verde / Cabo Verde",28,null,null,null,null,"",0," ",null,null,null,null,null,null,null,null,null,null,null,null,null,null,null,null,null,null,null,null,null,null,null,null,null,null,null,null,null,null,null,null,null,null,"CV","CABOVERDE",null,null,null,null,null,null,null,null,null,null,null,null,null,null,null,null,null,null,null,null,null,null,null,null,null,null,null,null,null,null,null,null,null,null,null,null,null,null,null,null,null,null,null,null,null,null,null,null,null,null,null,null,null,null,null,null,null,null,null,null,null,null,null,null,null,null,null,null,null,null,null,null,null,null,null,null,null,null,null,"EXPORTS","_Z","_Z","_Z","_Z","_Z","CV",null,"_Z"]
["Chile",29,null,null,null,null,"",0," ",null,null,null,null,null,null,null,null,null,null,null,null,null,null,null,null,null,null,null,null,null,null,null,null,null,null,null,null,null,null,null,null,null,null,"CL","CHILE",null,null,null,null,null,null,null,null,null,null,null,null,null,null,null,null,null,null,null,null,null,null,null,null,null,null,null,null,null,null,null,null,null,null,null,null,null,null,null,null,null,null,null,null,null,null,null,null,null,null,null,null,null,null,null,null,null,null,null,null,null,null,null,null,null,null,null,null,null,null,null,null,null,null,null,null,null,null,null,"EXPORTS","_Z","_Z","_Z","_Z","_Z","CL",null,"_Z"]
["China, People's Republic of",30,null,null,null,null,"",0," ",null,null,null,null,null,null,null,null,null,null,null,null,null,null,null,null,null,null,null,null,null,null,null,null,null,null,null,null,null,null,null,null,null,null,"CN","CHINA",null,null,null,null,null,null,null,null,null,null,null,null,null,null,null,null,null,null,null,null,null,null,null,null,null,null,null,null,null,null,null,null,null,null,null,null,null,null,null,null,null,null,null,null,null,null,null,null,null,null,null,null,null,null,null,null,null,null,null,null,null,null,null,null,null,null,null,null,null,null,null,null,null,null,null,null,null,null,null,"EXPORTS","_Z","_Z","_Z","_Z","_Z","CN",null,"_Z"]
["Colombia",31,null,null,null,null,"",0," ",null,null,null,null,null,null,null,null,null,null,null,null,null,null,null,null,null,null,null,null,null,null,null,null,null,null,null,null,null,null,null,null,null,null,"CO","COLOMBIA",null,null,null,null,null,null,null,null,null,null,null,null,null,null,null,null,null,null,null,null,null,null,null,null,null,null,null,null,null,null,null,null,null,null,null,null,null,null,null,null,null,null,null,null,null,null,null,null,null,null,null,null,null,null,null,null,null,null,null,null,null,null,null,null,null,null,null,null,null,null,null,null,null,null,null,null,null,null,null,"EXPORTS","_Z","_Z","_Z","_Z","_Z","CO",null,"_Z"]
["Congo",32,null,null,null,null,"",0," ",null,null,null,null,null,null,null,null,null,null,null,null,null,null,null,null,null,null,null,null,null,null,null,null,null,null,null,null,null,null,null,null,null,null,"CG","CONGO",null,null,null,null,null,null,null,null,null,null,null,null,null,null,null,null,null,null,null,null,null,null,null,null,null,null,null,null,null,null,null,null,null,null,null,null,null,null,null,null,null,null,null,null,null,null,null,null,null,null,null,null,null,null,null,null,null,null,null,null,null,null,null,null,null,null,null,null,null,null,null,null,null,null,null,null,null,null,null,"EXPORTS","_Z","_Z","_Z","_Z","_Z","CG",null,"_Z"]
["Costa Rica",33,null,null,null,null,"",0," ",null,null,null,null,null,null,null,null,null,null,null,null,null,null,null,null,null,null,null,null,null,null,null,null,null,null,null,null,null,null,null,null,null,null,"CR","COSTARICA",null,null,null,null,null,null,null,null,null,null,null,null,null,null,null,null,null,null,null,null,null,null,null,null,null,null,null,null,null,null,null,null,null,null,null,null,null,null,null,null,null,null,null,null,null,null,null,null,null,null,null,null,null,null,null,null,null,null,null,null,null,null,null,null,null,null,null,null,null,null,null,null,null,null,null,null,null,null,null,"EXPORTS","_Z","_Z","_Z","_Z","_Z","CR",null,"_Z"]
["Côte d’Ivoire",34,null,null,null,null,"",0," ",null,null,null,null,null,null,null,null,null,null,null,null,null,null,null,null,null,null,null,null,null,null,null,null,null,null,null,null,null,null,null,null,null,null,"CI","COTEIVOIRE",null,null,null,null,null,null,null,null,null,null,null,null,null,null,null,null,null,null,null,null,null,null,null,null,null,null,null,null,null,null,null,null,null,null,null,null,null,null,null,null,null,null,null,null,null,null,null,null,null,null,null,null,null,null,null,null,null,null,null,null,null,null,null,null,null,null,null,null,null,null,null,null,null,null,null,null,null,null,null,"EXPORTS","_Z","_Z","_Z","_Z","_Z","CI",null,"_Z"]
["Croatia",35,null,null,null,null,"",0," ",null,null,null,null,null,null,null,null,null,null,null,null,null,null,null,null,null,null,null,null,null,null,null,null,null,null,null,null,null,null,null,null,null,null,"HR","CROATIA",null,null,null,null,null,null,null,null,null,null,null,null,null,null,null,null,null,null,null,null,null,null,null,null,null,null,null,null,null,null,null,null,null,null,null,null,null,null,null,null,null,null,null,null,null,null,null,null,null,null,null,null,null,null,null,null,null,null,null,null,null,null,null,null,null,null,null,null,null,null,null,null,null,null,null,null,null,null,null,"EXPORTS","_Z","_Z","_Z","_Z","_Z","HR",null,"_Z"]
["Cuba",36,null,null,null,null,"",0," ",null,null,null,null,null,null,null,null,null,null,null,null,null,null,null,null,null,null,null,null,null,null,null,null,null,null,null,null,null,null,null,null,null,null,"CU","CUBA",null,null,null,null,null,null,null,null,null,null,null,null,null,null,null,null,null,null,null,null,null,null,null,null,null,null,null,null,null,null,null,null,null,null,null,null,null,null,null,null,null,null,null,null,null,null,null,null,null,null,null,null,null,null,null,null,null,null,null,null,null,null,null,null,null,null,null,null,null,null,null,null,null,null,null,null,null,null,null,"EXPORTS","_Z","_Z","_Z","_Z","_Z","CU",null,"_Z"]
["Curaçao",37,null,null,null,null,"",0," ",null,null,null,null,null,null,null,null,null,null,null,null,null,null,null,null,null,null,null,null,null,null,null,null,null,null,null,null,null,null,null,null,null,null,"CW","CURACAO",null,null,null,null,null,null,null,null,null,null,null,null,null,null,null,null,null,null,null,null,null,null,null,null,null,null,null,null,null,null,null,null,null,null,null,null,null,null,null,null,null,null,null,null,null,null,null,null,null,null,null,null,null,null,null,null,null,null,null,null,null,null,null,null,null,null,null,null,null,null,null,null,null,null,null,null,null,null,null,"EXPORTS","_Z","_Z","_Z","_Z","_Z","CW",null,"_Z"]
["Cyprus",38,null,null,null,null,"",0," ",null,null,null,null,null,null,null,null,null,null,null,null,null,null,null,null,null,null,null,null,null,null,null,null,null,null,null,null,null,null,null,null,null,null,"CY","CYPRUS",null,null,null,null,null,null,null,null,null,null,null,null,null,null,null,null,null,null,null,null,null,null,null,null,null,null,null,null,null,null,null,null,null,null,null,null,null,null,null,null,null,null,null,null,null,null,null,null,null,null,null,null,null,null,null,null,null,null,null,null,null,null,null,null,null,null,null,null,null,null,null,null,null,null,null,null,null,null,null,"EXPORTS","_Z","_Z","_Z","_Z","_Z","CY",null,"_Z"]
["Czech Republic",39,null,null,null,null,"",0," ",null,null,null,null,null,null,null,null,null,null,null,null,null,null,null,null,null,null,null,null,null,null,null,null,null,null,null,null,null,null,null,null,null,null,"CZ","CZECH",null,null,null,null,null,null,null,null,null,null,null,null,null,null,null,null,null,null,null,null,null,null,null,null,null,null,null,null,null,null,null,null,null,null,null,null,null,null,null,null,null,null,null,null,null,null,null,null,null,null,null,null,null,null,null,null,null,null,null,null,null,null,null,null,null,null,null,null,null,null,null,null,null,null,null,null,null,null,null,"EXPORTS","_Z","_Z","_Z","_Z","_Z","CZ",null,"_Z"]
["Korea, Democratic People's Republic of",40,null,null,null,null,"",0," ",null,null,null,null,null,null,null,null,null,null,null,null,null,null,null,null,null,null,null,null,null,null,null,null,null,null,null,null,null,null,null,null,null,null,"KP","KOREADPR",null,null,null,null,null,null,null,null,null,null,null,null,null,null,null,null,null,null,null,null,null,null,null,null,null,null,null,null,null,null,null,null,null,null,null,null,null,null,null,null,null,null,null,null,null,null,null,null,null,null,null,null,null,null,null,null,null,null,null,null,null,null,null,null,null,null,null,null,null,null,null,null,null,null,null,null,null,null,null,"EXPORTS","_Z","_Z","_Z","_Z","_Z","KP",null,"_Z"]
["Congo, Democratic Republic of the",41,null,null,null,null,"",0," ",null,null,null,null,null,null,null,null,null,null,null,null,null,null,null,null,null,null,null,null,null,null,null,null,null,null,null,null,null,null,null,null,null,null,"CD","CONGOREP",null,null,null,null,null,null,null,null,null,null,null,null,null,null,null,null,null,null,null,null,null,null,null,null,null,null,null,null,null,null,null,null,null,null,null,null,null,null,null,null,null,null,null,null,null,null,null,null,null,null,null,null,null,null,null,null,null,null,null,null,null,null,null,null,null,null,null,null,null,null,null,null,null,null,null,null,null,null,null,"EXPORTS","_Z","_Z","_Z","_Z","_Z","CD",null,"_Z"]
["Denmark",42,null,null,null,null,"",0," ",null,null,null,null,null,null,null,null,null,null,null,null,null,null,null,null,null,null,null,null,null,null,null,null,null,null,null,null,null,null,null,null,null,null,"DK","DENMARK",null,null,null,null,null,null,null,null,null,null,null,null,null,null,null,null,null,null,null,null,null,null,null,null,null,null,null,null,null,null,null,null,null,null,null,null,null,null,null,null,null,null,null,null,null,null,null,null,null,null,null,null,null,null,null,null,null,null,null,null,null,null,null,null,null,null,null,null,null,null,null,null,null,null,null,null,null,null,null,"EXPORTS","_Z","_Z","_Z","_Z","_Z","DK",null,"_Z"]
["Djibouti",43,null,null,null,null,"",0," ",null,null,null,null,null,null,null,null,null,null,null,null,null,null,null,null,null,null,null,null,null,null,null,null,null,null,null,null,null,null,null,null,null,null,"DJ","DJIBOUTI",null,null,null,null,null,null,null,null,null,null,null,null,null,null,null,null,null,null,null,null,null,null,null,null,null,null,null,null,null,null,null,null,null,null,null,null,null,null,null,null,null,null,null,null,null,null,null,null,null,null,null,null,null,null,null,null,null,null,null,null,null,null,null,null,null,null,null,null,null,null,null,null,null,null,null,null,null,null,null,"EXPORTS","_Z","_Z","_Z","_Z","_Z","DJ",null,"_Z"]
["Dominican Republic",44,null,null,null,null,"",0," ",null,null,null,null,null,null,null,null,null,null,null,null,null,null,null,null,null,null,null,null,null,null,null,null,null,null,null,null,null,null,null,null,null,null,"DO","DOMINICANR",null,null,null,null,null,null,null,null,null,null,null,null,null,null,null,null,null,null,null,null,null,null,null,null,null,null,null,null,null,null,null,null,null,null,null,null,null,null,null,null,null,null,null,null,null,null,null,null,null,null,null,null,null,null,null,null,null,null,null,null,null,null,null,null,null,null,null,null,null,null,null,null,null,null,null,null,null,null,null,"EXPORTS","_Z","_Z","_Z","_Z","_Z","DO",null,"_Z"]
["Ecuador",45,null,null,null,null,"",0," ",null,null,null,null,null,null,null,null,null,null,null,null,null,null,null,null,null,null,null,null,null,null,null,null,null,null,null,null,null,null,null,null,null,null,"EC","ECUADOR",null,null,null,null,null,null,null,null,null,null,null,null,null,null,null,null,null,null,null,null,null,null,null,null,null,null,null,null,null,null,null,null,null,null,null,null,null,null,null,null,null,null,null,null,null,null,null,null,null,null,null,null,null,null,null,null,null,null,null,null,null,null,null,null,null,null,null,null,null,null,null,null,null,null,null,null,null,null,null,"EXPORTS","_Z","_Z","_Z","_Z","_Z","EC",null,"_Z"]
["Egypt",46,null,null,null,null,"",0," ",null,null,null,null,null,null,null,null,null,null,null,null,null,null,null,null,null,null,null,null,null,null,null,null,null,null,null,null,null,null,null,null,null,null,"EG","EGYPT",null,null,null,null,null,null,null,null,null,null,null,null,null,null,null,null,null,null,null,null,null,null,null,null,null,null,null,null,null,null,null,null,null,null,null,null,null,null,null,null,null,null,null,null,null,null,null,null,null,null,null,null,null,null,null,null,null,null,null,null,null,null,null,null,null,null,null,null,null,null,null,null,null,null,null,null,null,null,null,"EXPORTS","_Z","_Z","_Z","_Z","_Z","EG",null,"_Z"]
["Equatorial Guinea",47,null,null,null,null,"",0," ",null,null,null,null,null,null,null,null,null,null,null,null,null,null,null,null,null,null,null,null,null,null,null,null,null,null,null,null,null,null,null,null,null,null,"GQ","EQGUINEA",null,null,null,null,null,null,null,null,null,null,null,null,null,null,null,null,null,null,null,null,null,null,null,null,null,null,null,null,null,null,null,null,null,null,null,null,null,null,null,null,null,null,null,null,null,null,null,null,null,null,null,null,null,null,null,null,null,null,null,null,null,null,null,null,null,null,null,null,null,null,null,null,null,null,null,null,null,null,null,"EXPORTS","_Z","_Z","_Z","_Z","_Z","GQ",null,"_Z"]
["Eritrea",48,null,null,null,null,"",0," ",null,null,null,null,null,null,null,null,null,null,null,null,null,null,null,null,null,null,null,null,null,null,null,null,null,null,null,null,null,null,null,null,null,null,"ER","ERITREA",null,null,null,null,null,null,null,null,null,null,null,null,null,null,null,null,null,null,null,null,null,null,null,null,null,null,null,null,null,null,null,null,null,null,null,null,null,null,null,null,null,null,null,null,null,null,null,null,null,null,null,null,null,null,null,null,null,null,null,null,null,null,null,null,null,null,null,null,null,null,null,null,null,null,null,null,null,null,null,"EXPORTS","_Z","_Z","_Z","_Z","_Z","ER",null,"_Z"]
["Estonia",49,null,null,null,null,"",0," ",null,null,null,null,null,null,null,null,null,null,null,null,null,null,null,null,null,null,null,null,null,null,null,null,null,null,null,null,null,null,null,null,null,null,"EE","ESTONIA",null,null,null,null,null,null,null,null,null,null,null,null,null,null,null,null,null,null,null,null,null,null,null,null,null,null,null,null,null,null,null,null,null,null,null,null,null,null,null,null,null,null,null,null,null,null,null,null,null,null,null,null,null,null,null,null,null,null,null,null,null,null,null,null,null,null,null,null,null,null,null,null,null,null,null,null,null,null,null,"EXPORTS","_Z","_Z","_Z","_Z","_Z","EE",null,"_Z"]
["Ethiopia",50,null,null,null,null,"",0," ",null,null,null,null,null,null,null,null,null,null,null,null,null,null,null,null,null,null,null,null,null,null,null,null,null,null,null,null,null,null,null,null,null,null,"ET","ETHIOPIA",null,null,null,null,null,null,null,null,null,null,null,null,null,null,null,null,null,null,null,null,null,null,null,null,null,null,null,null,null,null,null,null,null,null,null,null,null,null,null,null,null,null,null,null,null,null,null,null,null,null,null,null,null,null,null,null,null,null,null,null,null,null,null,null,null,null,null,null,null,null,null,null,null,null,null,null,null,null,null,"EXPORTS","_Z","_Z","_Z","_Z","_Z","ET",null,"_Z"]
["Finland",51,null,null,null,null,"",0," ",null,null,null,null,null,null,null,null,null,null,null,null,null,null,null,null,null,null,null,null,null,null,null,null,null,null,null,null,null,null,null,null,null,null,"FI","FINLAND",null,null,null,null,null,null,null,null,null,null,null,null,null,null,null,null,null,null,null,null,null,null,null,null,null,null,null,null,null,null,null,null,null,null,null,null,null,null,null,null,null,null,null,null,null,null,null,null,null,null,null,null,null,null,null,null,null,null,null,null,null,null,null,null,null,null,null,null,null,null,null,null,null,null,null,null,null,null,null,"EXPORTS","_Z","_Z","_Z","_Z","_Z","FI",null,"_Z"]
["France",52,null,null,null,null,"",0," ",null,null,null,null,null,null,null,null,null,null,null,null,null,null,null,null,null,null,null,null,null,null,null,null,null,null,null,null,null,null,null,null,null,null,"FR","FRANCE",null,null,null,null,null,null,null,null,null,null,null,null,null,null,null,null,null,null,null,null,null,null,null,null,null,null,null,null,null,null,null,null,null,null,null,null,null,null,null,null,null,null,null,null,null,null,null,null,null,null,null,null,null,null,null,null,null,null,null,null,null,null,null,null,null,null,null,null,null,null,null,null,null,null,null,null,null,null,null,"EXPORTS","_Z","_Z","_Z","_Z","_Z","FR",null,"_Z"]
["Gabon",53,null,null,null,null,"",0," ",null,null,null,null,null,null,null,null,null,null,null,null,null,null,null,null,null,null,null,null,null,null,null,null,null,null,null,null,null,null,null,null,null,null,"GA","GABON",null,null,null,null,null,null,null,null,null,null,null,null,null,null,null,null,null,null,null,null,null,null,null,null,null,null,null,null,null,null,null,null,null,null,null,null,null,null,null,null,null,null,null,null,null,null,null,null,null,null,null,null,null,null,null,null,null,null,null,null,null,null,null,null,null,null,null,null,null,null,null,null,null,null,null,null,null,null,null,"EXPORTS","_Z","_Z","_Z","_Z","_Z","GA",null,"_Z"]
["Georgia",54,null,null,null,null,"",0," ",null,null,null,null,null,null,null,null,null,null,null,null,null,null,null,null,null,null,null,null,null,null,null,null,null,null,null,null,null,null,null,null,null,null,"GE","GEORGIA",null,null,null,null,null,null,null,null,null,null,null,null,null,null,null,null,null,null,null,null,null,null,null,null,null,null,null,null,null,null,null,null,null,null,null,null,null,null,null,null,null,null,null,null,null,null,null,null,null,null,null,null,null,null,null,null,null,null,null,null,null,null,null,null,null,null,null,null,null,null,null,null,null,null,null,null,null,null,null,"EXPORTS","_Z","_Z","_Z","_Z","_Z","GE",null,"_Z"]
["Germany",55,null,null,null,null,"",0," ",null,null,null,null,null,null,null,null,null,null,null,null,null,null,null,null,null,null,null,null,null,null,null,null,null,null,null,null,null,null,null,null,null,null,"DE","GERMANY",null,null,null,null,null,null,null,null,null,null,null,null,null,null,null,null,null,null,null,null,null,null,null,null,null,null,null,null,null,null,null,null,null,null,null,null,null,null,null,null,null,null,null,null,null,null,null,null,null,null,null,null,null,null,null,null,null,null,null,null,null,null,null,null,null,null,null,null,null,null,null,null,null,null,null,null,null,null,null,"EXPORTS","_Z","_Z","_Z","_Z","_Z","DE",null,"_Z"]
["Ghana",56,null,null,null,null,"",0," ",null,null,null,null,null,null,null,null,null,null,null,null,null,null,null,null,null,null,null,null,null,null,null,null,null,null,null,null,null,null,null,null,null,null,"GH","GHANA",null,null,null,null,null,null,null,null,null,null,null,null,null,null,null,null,null,null,null,null,null,null,null,null,null,null,null,null,null,null,null,null,null,null,null,null,null,null,null,null,null,null,null,null,null,null,null,null,null,null,null,null,null,null,null,null,null,null,null,null,null,null,null,null,null,null,null,null,null,null,null,null,null,null,null,null,null,null,null,"EXPORTS","_Z","_Z","_Z","_Z","_Z","GH",null,"_Z"]
["Gibraltar",57,null,null,null,null,"",0," ",null,null,null,null,null,null,null,null,null,null,null,null,null,null,null,null,null,null,null,null,null,null,null,null,null,null,null,null,null,null,null,null,null,null,"GI","GIBRALTAR",null,null,null,null,null,null,null,null,null,null,null,null,null,null,null,null,null,null,null,null,null,null,null,null,null,null,null,null,null,null,null,null,null,null,null,null,null,null,null,null,null,null,null,null,null,null,null,null,null,null,null,null,null,null,null,null,null,null,null,null,null,null,null,null,null,null,null,null,null,null,null,null,null,null,null,null,null,null,null,"EXPORTS","_Z","_Z","_Z","_Z","_Z","GI",null,"_Z"]
["Greece",58,null,null,null,null,"",0," ",null,null,null,null,null,null,null,null,null,null,null,null,null,null,null,null,null,null,null,null,null,null,null,null,null,null,null,null,null,null,null,null,null,null,"GR","GREECE",null,null,null,null,null,null,null,null,null,null,null,null,null,null,null,null,null,null,null,null,null,null,null,null,null,null,null,null,null,null,null,null,null,null,null,null,null,null,null,null,null,null,null,null,null,null,null,null,null,null,null,null,null,null,null,null,null,null,null,null,null,null,null,null,null,null,null,null,null,null,null,null,null,null,null,null,null,null,null,"EXPORTS","_Z","_Z","_Z","_Z","_Z","GR",null,"_Z"]
["Guatemala",59,null,null,null,null,"",0," ",null,null,null,null,null,null,null,null,null,null,null,null,null,null,null,null,null,null,null,null,null,null,null,null,null,null,null,null,null,null,null,null,null,null,"GT","GUATEMALA",null,null,null,null,null,null,null,null,null,null,null,null,null,null,null,null,null,null,null,null,null,null,null,null,null,null,null,null,null,null,null,null,null,null,null,null,null,null,null,null,null,null,null,null,null,null,null,null,null,null,null,null,null,null,null,null,null,null,null,null,null,null,null,null,null,null,null,null,null,null,null,null,null,null,null,null,null,null,null,"EXPORTS","_Z","_Z","_Z","_Z","_Z","GT",null,"_Z"]
["Guinea-Bissau",60,null,null,null,null,"",0," ",null,null,null,null,null,null,null,null,null,null,null,null,null,null,null,null,null,null,null,null,null,null,null,null,null,null,null,null,null,null,null,null,null,null,"GW","GUINEABIS",null,null,null,null,null,null,null,null,null,null,null,null,null,null,null,null,null,null,null,null,null,null,null,null,null,null,null,null,null,null,null,null,null,null,null,null,null,null,null,null,null,null,null,null,null,null,null,null,null,null,null,null,null,null,null,null,null,null,null,null,null,null,null,null,null,null,null,null,null,null,null,null,null,null,null,null,null,null,null,"EXPORTS","_Z","_Z","_Z","_Z","_Z","GW",null,"_Z"]
["Honduras",61,null,null,null,null,"",0," ",null,null,null,null,null,null,null,null,null,null,null,null,null,null,null,null,null,null,null,null,null,null,null,null,null,null,null,null,null,null,null,null,null,null,"HN","HONDURAS",null,null,null,null,null,null,null,null,null,null,null,null,null,null,null,null,null,null,null,null,null,null,null,null,null,null,null,null,null,null,null,null,null,null,null,null,null,null,null,null,null,null,null,null,null,null,null,null,null,null,null,null,null,null,null,null,null,null,null,null,null,null,null,null,null,null,null,null,null,null,null,null,null,null,null,null,null,null,null,"EXPORTS","_Z","_Z","_Z","_Z","_Z","HN",null,"_Z"]
["Hong Kong, China",62,null,null,null,null,"",0," ",null,null,null,null,null,null,null,null,null,null,null,null,null,null,null,null,null,null,null,null,null,null,null,null,null,null,null,null,null,null,null,null,null,null,"HK","HONGKONG",null,null,null,null,null,null,null,null,null,null,null,null,null,null,null,null,null,null,null,null,null,null,null,null,null,null,null,null,null,null,null,null,null,null,null,null,null,null,null,null,null,null,null,null,null,null,null,null,null,null,null,null,null,null,null,null,null,null,null,null,null,null,null,null,null,null,null,null,null,null,null,null,null,null,null,null,null,null,null,"EXPORTS","_Z","_Z","_Z","_Z","_Z","HK",null,"_Z"]
["Hungary",63,null,null,null,null,"",0," ",null,null,null,null,null,null,null,null,null,null,null,null,null,null,null,null,null,null,null,null,null,null,null,null,null,null,null,null,null,null,null,null,null,null,"HU","HUNGARY",null,null,null,null,null,null,null,null,null,null,null,null,null,null,null,null,null,null,null,null,null,null,null,null,null,null,null,null,null,null,null,null,null,null,null,null,null,null,null,null,null,null,null,null,null,null,null,null,null,null,null,null,null,null,null,null,null,null,null,null,null,null,null,null,null,null,null,null,null,null,null,null,null,null,null,null,null,null,null,"EXPORTS","_Z","_Z","_Z","_Z","_Z","HU",null,"_Z"]
["Iceland",64,null,null,null,null,"",0," ",null,null,null,null,null,null,null,null,null,null,null,null,null,null,null,null,null,null,null,null,null,null,null,null,null,null,null,null,null,null,null,null,null,null,"IS","ICELAND",null,null,null,null,null,null,null,null,null,null,null,null,null,null,null,null,null,null,null,null,null,null,null,null,null,null,null,null,null,null,null,null,null,null,null,null,null,null,null,null,null,null,null,null,null,null,null,null,null,null,null,null,null,null,null,null,null,null,null,null,null,null,null,null,null,null,null,null,null,null,null,null,null,null,null,null,null,null,null,"EXPORTS","_Z","_Z","_Z","_Z","_Z","IS",null,"_Z"]
["India",65,null,null,null,null,"",0," ",null,null,null,null,null,null,null,null,null,null,null,null,null,null,null,null,null,null,null,null,null,null,null,null,null,null,null,null,null,null,null,null,null,null,"IN","INDIA",null,null,null,null,null,null,null,null,null,null,null,null,null,null,null,null,null,null,null,null,null,null,null,null,null,null,null,null,null,null,null,null,null,null,null,null,null,null,null,null,null,null,null,null,null,null,null,null,null,null,null,null,null,null,null,null,null,null,null,null,null,null,null,null,null,null,null,null,null,null,null,null,null,null,null,null,null,null,null,"EXPORTS","_Z","_Z","_Z","_Z","_Z","IN",null,"_Z"]
["Indonesia",66,null,null,null,null,{"$f":"IF(OR(E73=0,C73=0),\"\",ROUND((E73/C73)*1000,0))","v":""},{"$f":"IF(MIN(C73:F73)<0,1,0)+IF(OR(C73<D73,E73<F73),1,0)","v":0},{"$f":"IF(H73=0,\" \",IF(H73=1,\"Error: \",\"2 errors: \"))&IF(MIN(C73:F73)<0,\"Imports data should not be negative. \",\"\")&IF(OR(C73<D73,E73<F73),\"'Of which: LNG' greater than Total.\",\"\")","v":" "},null,null,null,null,null,null,null,null,null,null,null,null,null,null,null,null,null,null,null,null,null,null,null,null,null,null,null,null,null,null,null,null,null,null,"ID","INDONESIA",null,null,null,null,null,null,null,null,null,null,null,null,null,null,null,null,null,null,null,null,null,null,null,null,null,null,null,null,null,null,null,null,null,null,null,null,null,null,null,null,null,null,null,null,null,null,null,null,null,null,null,null,null,null,null,null,null,null,null,null,null,null,null,null,null,null,null,null,null,null,null,null,null,null,null,null,null,null,null,"EXPORTS","_Z","_Z","_Z","_Z","_Z","ID",null,"_Z"]
["Iran, Islamic Republic of",67,null,null,null,null,{"$f":"IF(OR(E74=0,C74=0),\"\",ROUND((E74/C74)*1000,0))","v":""},0," ",null,null,null,null,null,null,null,null,null,null,null,null,null,null,null,null,null,null,null,null,null,null,null,null,null,null,null,null,null,null,null,null,null,null,"IR","IRAN",null,null,null,null,null,null,null,null,null,null,null,null,null,null,null,null,null,null,null,null,null,null,null,null,null,null,null,null,null,null,null,null,null,null,null,null,null,null,null,null,null,null,null,null,null,null,null,null,null,null,null,null,null,null,null,null,null,null,null,null,null,null,null,null,null,null,null,null,null,null,null,null,null,null,null,null,null,null,null,"EXPORTS","_Z","_Z","_Z","_Z","_Z","IR",null,"_Z"]
["Iraq",68,null,null,null,null,"",0," ",null,null,null,null,null,null,null,null,null,null,null,null,null,null,null,null,null,null,null,null,null,null,null,null,null,null,null,null,null,null,null,null,null,null,"IQ","IRAQ",null,null,null,null,null,null,null,null,null,null,null,null,null,null,null,null,null,null,null,null,null,null,null,null,null,null,null,null,null,null,null,null,null,null,null,null,null,null,null,null,null,null,null,null,null,null,null,null,null,null,null,null,null,null,null,null,null,null,null,null,null,null,null,null,null,null,null,null,null,null,null,null,null,null,null,null,null,null,null,"EXPORTS","_Z","_Z","_Z","_Z","_Z","IQ",null,"_Z"]
["Ireland",69,null,null,null,null,"",0," ",null,null,null,null,null,null,null,null,null,null,null,null,null,null,null,null,null,null,null,null,null,null,null,null,null,null,null,null,null,null,null,null,null,null,"IE","IRELAND",null,null,null,null,null,null,null,null,null,null,null,null,null,null,null,null,null,null,null,null,null,null,null,null,null,null,null,null,null,null,null,null,null,null,null,null,null,null,null,null,null,null,null,null,null,null,null,null,null,null,null,null,null,null,null,null,null,null,null,null,null,null,null,null,null,null,null,null,null,null,null,null,null,null,null,null,null,null,null,"EXPORTS","_Z","_Z","_Z","_Z","_Z","IE",null,"_Z"]
["Israel",70,null,null,null,null,"",0," ",null,null,null,null,null,null,null,null,null,null,null,null,null,null,null,null,null,null,null,null,null,null,null,null,null,null,null,null,null,null,null,null,null,null,"IL","ISRAEL",null,null,null,null,null,null,null,null,null,null,null,null,null,null,null,null,null,null,null,null,null,null,null,null,null,null,null,null,null,null,null,null,null,null,null,null,null,null,null,null,null,null,null,null,null,null,null,null,null,null,null,null,null,null,null,null,null,null,null,null,null,null,null,null,null,null,null,null,null,null,null,null,null,null,null,null,null,null,null,"EXPORTS","_Z","_Z","_Z","_Z","_Z","IL",null,"_Z"]
["Italy",71,null,null,null,null,"",0," ",null,null,null,null,null,null,null,null,null,null,null,null,null,null,null,null,null,null,null,null,null,null,null,null,null,null,null,null,null,null,null,null,null,null,"IT","ITALY",null,null,null,null,null,null,null,null,null,null,null,null,null,null,null,null,null,null,null,null,null,null,null,null,null,null,null,null,null,null,null,null,null,null,null,null,null,null,null,null,null,null,null,null,null,null,null,null,null,null,null,null,null,null,null,null,null,null,null,null,null,null,null,null,null,null,null,null,null,null,null,null,null,null,null,null,null,null,null,"EXPORTS","_Z","_Z","_Z","_Z","_Z","IT",null,"_Z"]
["Jamaica",72,null,null,null,null,"",0," ",null,null,null,null,null,null,null,null,null,null,null,null,null,null,null,null,null,null,null,null,null,null,null,null,null,null,null,null,null,null,null,null,null,null,"JM","JAMAICA",null,null,null,null,null,null,null,null,null,null,null,null,null,null,null,null,null,null,null,null,null,null,null,null,null,null,null,null,null,null,null,null,null,null,null,null,null,null,null,null,null,null,null,null,null,null,null,null,null,null,null,null,null,null,null,null,null,null,null,null,null,null,null,null,null,null,null,null,null,null,null,null,null,null,null,null,null,null,null,"EXPORTS","_Z","_Z","_Z","_Z","_Z","JM",null,"_Z"]
["Japan",73,null,null,null,null,"",0," ",null,null,null,null,null,null,null,null,null,null,null,null,null,null,null,null,null,null,null,null,null,null,null,null,null,null,null,null,null,null,null,null,null,null,"JP","JAPAN",null,null,null,null,null,null,null,null,null,null,null,null,null,null,null,null,null,null,null,null,null,null,null,null,null,null,null,null,null,null,null,null,null,null,null,null,null,null,null,null,null,null,null,null,null,null,null,null,null,null,null,null,null,null,null,null,null,null,null,null,null,null,null,null,null,null,null,null,null,null,null,null,null,null,null,null,null,null,null,"EXPORTS","_Z","_Z","_Z","_Z","_Z","JP",null,"_Z"]
["Jordan",74,null,null,null,null,"",0," ",null,null,null,null,null,null,null,null,null,null,null,null,null,null,null,null,null,null,null,null,null,null,null,null,null,null,null,null,null,null,null,null,null,null,"JO","JORDAN",null,null,null,null,null,null,null,null,null,null,null,null,null,null,null,null,null,null,null,null,null,null,null,null,null,null,null,null,null,null,null,null,null,null,null,null,null,null,null,null,null,null,null,null,null,null,null,null,null,null,null,null,null,null,null,null,null,null,null,null,null,null,null,null,null,null,null,null,null,null,null,null,null,null,null,null,null,null,null,"EXPORTS","_Z","_Z","_Z","_Z","_Z","JO",null,"_Z"]
["Kazakhstan",75,null,null,null,null,"",0," ",null,null,null,null,null,null,null,null,null,null,null,null,null,null,null,null,null,null,null,null,null,null,null,null,null,null,null,null,null,null,null,null,null,null,"KZ","KAZAKHSTAN",null,null,null,null,null,null,null,null,null,null,null,null,null,null,null,null,null,null,null,null,null,null,null,null,null,null,null,null,null,null,null,null,null,null,null,null,null,null,null,null,null,null,null,null,null,null,null,null,null,null,null,null,null,null,null,null,null,null,null,null,null,null,null,null,null,null,null,null,null,null,null,null,null,null,null,null,null,null,null,"EXPORTS","_Z","_Z","_Z","_Z","_Z","KZ",null,"_Z"]
["Kenya",76,null,null,null,null,"",0," ",null,null,null,null,null,null,null,null,null,null,null,null,null,null,null,null,null,null,null,null,null,null,null,null,null,null,null,null,null,null,null,null,null,null,"KE","KENYA",null,null,null,null,null,null,null,null,null,null,null,null,null,null,null,null,null,null,null,null,null,null,null,null,null,null,null,null,null,null,null,null,null,null,null,null,null,null,null,null,null,null,null,null,null,null,null,null,null,null,null,null,null,null,null,null,null,null,null,null,null,null,null,null,null,null,null,null,null,null,null,null,null,null,null,null,null,null,null,"EXPORTS","_Z","_Z","_Z","_Z","_Z","KE",null,"_Z"]
["Korea",77,null,null,null,null,"",0," ",null,null,null,null,null,null,null,null,null,null,null,null,null,null,null,null,null,null,null,null,null,null,null,null,null,null,null,null,null,null,null,null,null,null,"KR","KOREA",null,null,null,null,null,null,null,null,null,null,null,null,null,null,null,null,null,null,null,null,null,null,null,null,null,null,null,null,null,null,null,null,null,null,null,null,null,null,null,null,null,null,null,null,null,null,null,null,null,null,null,null,null,null,null,null,null,null,null,null,null,null,null,null,null,null,null,null,null,null,null,null,null,null,null,null,null,null,null,"EXPORTS","_Z","_Z","_Z","_Z","_Z","KR",null,"_Z"]
["Kosovo*",78,null,null,null,null,"",0," ",null,null,null,null,null,null,null,null,null,null,null,null,null,null,null,null,null,null,null,null,null,null,null,null,null,null,null,null,null,null,null,null,null,null,"XK","KOSOVO",null,null,null,null,null,null,null,null,null,null,null,null,null,null,null,null,null,null,null,null,null,null,null,null,null,null,null,null,null,null,null,null,null,null,null,null,null,null,null,null,null,null,null,null,null,null,null,null,null,null,null,null,null,null,null,null,null,null,null,null,null,null,null,null,null,null,null,null,null,null,null,null,null,null,null,null,null,null,null,"EXPORTS","_Z","_Z","_Z","_Z","_Z","XK",null,"_Z"]
["Kuwait",79,null,null,null,null,"",0," ",null,null,null,null,null,null,null,null,null,null,null,null,null,null,null,null,null,null,null,null,null,null,null,null,null,null,null,null,null,null,null,null,null,null,"KW","KUWAIT",null,null,null,null,null,null,null,null,null,null,null,null,null,null,null,null,null,null,null,null,null,null,null,null,null,null,null,null,null,null,null,null,null,null,null,null,null,null,null,null,null,null,null,null,null,null,null,null,null,null,null,null,null,null,null,null,null,null,null,null,null,null,null,null,null,null,null,null,null,null,null,null,null,null,null,null,null,null,null,"EXPORTS","_Z","_Z","_Z","_Z","_Z","KW",null,"_Z"]
["Kyrgyzstan",80,null,null,null,null,"",0," ",null,null,null,null,null,null,null,null,null,null,null,null,null,null,null,null,null,null,null,null,null,null,null,null,null,null,null,null,null,null,null,null,null,null,"KG","KYRGYZSTAN",null,null,null,null,null,null,null,null,null,null,null,null,null,null,null,null,null,null,null,null,null,null,null,null,null,null,null,null,null,null,null,null,null,null,null,null,null,null,null,null,null,null,null,null,null,null,null,null,null,null,null,null,null,null,null,null,null,null,null,null,null,null,null,null,null,null,null,null,null,null,null,null,null,null,null,null,null,null,null,"EXPORTS","_Z","_Z","_Z","_Z","_Z","KG",null,"_Z"]
["Lao People's Democratic Republic",81,null,null,null,null,"",0," ",null,null,null,null,null,null,null,null,null,null,null,null,null,null,null,null,null,null,null,null,null,null,null,null,null,null,null,null,null,null,null,null,null,null,"LA","LAO",null,null,null,null,null,null,null,null,null,null,null,null,null,null,null,null,null,null,null,null,null,null,null,null,null,null,null,null,null,null,null,null,null,null,null,null,null,null,null,null,null,null,null,null,null,null,null,null,null,null,null,null,null,null,null,null,null,null,null,null,null,null,null,null,null,null,null,null,null,null,null,null,null,null,null,null,null,null,null,"EXPORTS","_Z","_Z","_Z","_Z","_Z","LA",null,"_Z"]
["Latvia",82,null,null,null,null,"",0," ",null,null,null,null,null,null,null,null,null,null,null,null,null,null,null,null,null,null,null,null,null,null,null,null,null,null,null,null,null,null,null,null,null,null,"LV","LATVIA",null,null,null,null,null,null,null,null,null,null,null,null,null,null,null,null,null,null,null,null,null,null,null,null,null,null,null,null,null,null,null,null,null,null,null,null,null,null,null,null,null,null,null,null,null,null,null,null,null,null,null,null,null,null,null,null,null,null,null,null,null,null,null,null,null,null,null,null,null,null,null,null,null,null,null,null,null,null,null,"EXPORTS","_Z","_Z","_Z","_Z","_Z","LV",null,"_Z"]
["Lebanon",83,null,null,null,null,"",0," ",null,null,null,null,null,null,null,null,null,null,null,null,null,null,null,null,null,null,null,null,null,null,null,null,null,null,null,null,null,null,null,null,null,null,"LB","LEBANON",null,null,null,null,null,null,null,null,null,null,null,null,null,null,null,null,null,null,null,null,null,null,null,null,null,null,null,null,null,null,null,null,null,null,null,null,null,null,null,null,null,null,null,null,null,null,null,null,null,null,null,null,null,null,null,null,null,null,null,null,null,null,null,null,null,null,null,null,null,null,null,null,null,null,null,null,null,null,null,"EXPORTS","_Z","_Z","_Z","_Z","_Z","LB",null,"_Z"]
["Liberia",84,null,null,null,null,"",0," ",null,null,null,null,null,null,null,null,null,null,null,null,null,null,null,null,null,null,null,null,null,null,null,null,null,null,null,null,null,null,null,null,null,null,"LR","LIBERIA",null,null,null,null,null,null,null,null,null,null,null,null,null,null,null,null,null,null,null,null,null,null,null,null,null,null,null,null,null,null,null,null,null,null,null,null,null,null,null,null,null,null,null,null,null,null,null,null,null,null,null,null,null,null,null,null,null,null,null,null,null,null,null,null,null,null,null,null,null,null,null,null,null,null,null,null,null,null,null,"EXPORTS","_Z","_Z","_Z","_Z","_Z","LR",null,"_Z"]
["Libya",85,null,null,null,null,"",0," ",null,null,null,null,null,null,null,null,null,null,null,null,null,null,null,null,null,null,null,null,null,null,null,null,null,null,null,null,null,null,null,null,null,null,"LY","LIBYA",null,null,null,null,null,null,null,null,null,null,null,null,null,null,null,null,null,null,null,null,null,null,null,null,null,null,null,null,null,null,null,null,null,null,null,null,null,null,null,null,null,null,null,null,null,null,null,null,null,null,null,null,null,null,null,null,null,null,null,null,null,null,null,null,null,null,null,null,null,null,null,null,null,null,null,null,null,null,null,"EXPORTS","_Z","_Z","_Z","_Z","_Z","LY",null,"_Z"]
["Liechtenstein",86,null,null,null,null,"",0," ",null,null,null,null,null,null,null,null,null,null,null,null,null,null,null,null,null,null,null,null,null,null,null,null,null,null,null,null,null,null,null,null,null,null,"LI","LIECHTENST",null,null,null,null,null,null,null,null,null,null,null,null,null,null,null,null,null,null,null,null,null,null,null,null,null,null,null,null,null,null,null,null,null,null,null,null,null,null,null,null,null,null,null,null,null,null,null,null,null,null,null,null,null,null,null,null,null,null,null,null,null,null,null,null,null,null,null,null,null,null,null,null,null,null,null,null,null,null,null,"EXPORTS","_Z","_Z","_Z","_Z","_Z","LI",null,"_Z"]
["Lithuania",87,null,null,null,null,{"$f":"IF(OR(E94=0,C94=0),\"\",ROUND((E94/C94)*1000,0))","v":""},{"$f":"IF(MIN(C94:F94)<0,1,0)+IF(OR(C94<D94,E94<F94),1,0)","v":0},{"$f":"IF(H94=0,\" \",IF(H94=1,\"Error: \",\"2 errors: \"))&IF(MIN(C94:F94)<0,\"Imports data should not be negative. \",\"\")&IF(OR(C94<D94,E94<F94),\"'Of which: LNG' greater than Total.\",\"\")","v":" "},null,null,null,null,null,null,null,null,null,null,null,null,null,null,null,null,null,null,null,null,null,null,null,null,null,null,null,null,null,null,null,null,null,null,"LT","LITHUANIA",null,null,null,null,null,null,null,null,null,null,null,null,null,null,null,null,null,null,null,null,null,null,null,null,null,null,null,null,null,null,null,null,null,null,null,null,null,null,null,null,null,null,null,null,null,null,null,null,null,null,null,null,null,null,null,null,null,null,null,null,null,null,null,null,null,null,null,null,null,null,null,null,null,null,null,null,null,null,null,"EXPORTS","_Z","_Z","_Z","_Z","_Z","LT",null,"_Z"]
["Luxembourg",88,null,null,null,null,{"$f":"IF(OR(E95=0,C95=0),\"\",ROUND((E95/C95)*1000,0))","v":""},{"$f":"IF(MIN(C95:F95)<0,1,0)+IF(OR(C95<D95,E95<F95),1,0)","v":0},{"$f":"IF(H95=0,\" \",IF(H95=1,\"Error: \",\"2 errors: \"))&IF(MIN(C95:F95)<0,\"Imports data should not be negative. \",\"\")&IF(OR(C95<D95,E95<F95),\"'Of which: LNG' greater than Total.\",\"\")","v":" "},null,null,null,null,null,null,null,null,null,null,null,null,null,null,null,null,null,null,null,null,null,null,null,null,null,null,null,null,null,null,null,null,null,null,"LU","LUXEMBOU",null,null,null,null,null,null,null,null,null,null,null,null,null,null,null,null,null,null,null,null,null,null,null,null,null,null,null,null,null,null,null,null,null,null,null,null,null,null,null,null,null,null,null,null,null,null,null,null,null,null,null,null,null,null,null,null,null,null,null,null,null,null,null,null,null,null,null,null,null,null,null,null,null,null,null,null,null,null,null,"EXPORTS","_Z","_Z","_Z","_Z","_Z","LU",null,"_Z"]
["Madagascar",89,null,null,null,null,"",0," ",null,null,null,null,null,null,null,null,null,null,null,null,null,null,null,null,null,null,null,null,null,null,null,null,null,null,null,null,null,null,null,null,null,null,"MG","MADAGASCAR",null,null,null,null,null,null,null,null,null,null,null,null,null,null,null,null,null,null,null,null,null,null,null,null,null,null,null,null,null,null,null,null,null,null,null,null,null,null,null,null,null,null,null,null,null,null,null,null,null,null,null,null,null,null,null,null,null,null,null,null,null,null,null,null,null,null,null,null,null,null,null,null,null,null,null,null,null,null,null,"EXPORTS","_Z","_Z","_Z","_Z","_Z","MG",null,"_Z"]
["Malaysia",90,null,null,null,null,"",0," ",null,null,null,null,null,null,null,null,null,null,null,null,null,null,null,null,null,null,null,null,null,null,null,null,null,null,null,null,null,null,null,null,null,null,"MY","MALAYSIA",null,null,null,null,null,null,null,null,null,null,null,null,null,null,null,null,null,null,null,null,null,null,null,null,null,null,null,null,null,null,null,null,null,null,null,null,null,null,null,null,null,null,null,null,null,null,null,null,null,null,null,null,null,null,null,null,null,null,null,null,null,null,null,null,null,null,null,null,null,null,null,null,null,null,null,null,null,null,null,"EXPORTS","_Z","_Z","_Z","_Z","_Z","MY",null,"_Z"]
["Malta",91,null,null,null,null,"",0," ",null,null,null,null,null,null,null,null,null,null,null,null,null,null,null,null,null,null,null,null,null,null,null,null,null,null,null,null,null,null,null,null,null,null,"MT","MALTA",null,null,null,null,null,null,null,null,null,null,null,null,null,null,null,null,null,null,null,null,null,null,null,null,null,null,null,null,null,null,null,null,null,null,null,null,null,null,null,null,null,null,null,null,null,null,null,null,null,null,null,null,null,null,null,null,null,null,null,null,null,null,null,null,null,null,null,null,null,null,null,null,null,null,null,null,null,null,null,"EXPORTS","_Z","_Z","_Z","_Z","_Z","MT",null,"_Z"]
["Marshall Islands",92,null,null,null,null,"",0," ",null,null,null,null,null,null,null,null,null,null,null,null,null,null,null,null,null,null,null,null,null,null,null,null,null,null,null,null,null,null,null,null,null,null,"MH","MARSHALL",null,null,null,null,null,null,null,null,null,null,null,null,null,null,null,null,null,null,null,null,null,null,null,null,null,null,null,null,null,null,null,null,null,null,null,null,null,null,null,null,null,null,null,null,null,null,null,null,null,null,null,null,null,null,null,null,null,null,null,null,null,null,null,null,null,null,null,null,null,null,null,null,null,null,null,null,null,null,null,"EXPORTS","_Z","_Z","_Z","_Z","_Z","MH",null,"_Z"]
["Mauritania",93,null,null,null,null,"",0," ",null,null,null,null,null,null,null,null,null,null,null,null,null,null,null,null,null,null,null,null,null,null,null,null,null,null,null,null,null,null,null,null,null,null,"MR","MAURITANIA",null,null,null,null,null,null,null,null,null,null,null,null,null,null,null,null,null,null,null,null,null,null,null,null,null,null,null,null,null,null,null,null,null,null,null,null,null,null,null,null,null,null,null,null,null,null,null,null,null,null,null,null,null,null,null,null,null,null,null,null,null,null,null,null,null,null,null,null,null,null,null,null,null,null,null,null,null,null,null,"EXPORTS","_Z","_Z","_Z","_Z","_Z","MR",null,"_Z"]
["Mauritius",94,null,null,null,null,"",0," ",null,null,null,null,null,null,null,null,null,null,null,null,null,null,null,null,null,null,null,null,null,null,null,null,null,null,null,null,null,null,null,null,null,null,"MU","MAURITIUS",null,null,null,null,null,null,null,null,null,null,null,null,null,null,null,null,null,null,null,null,null,null,null,null,null,null,null,null,null,null,null,null,null,null,null,null,null,null,null,null,null,null,null,null,null,null,null,null,null,null,null,null,null,null,null,null,null,null,null,null,null,null,null,null,null,null,null,null,null,null,null,null,null,null,null,null,null,null,null,"EXPORTS","_Z","_Z","_Z","_Z","_Z","MU",null,"_Z"]
["Mexico",95,null,null,null,null,"",0," ",null,null,null,null,null,null,null,null,null,null,null,null,null,null,null,null,null,null,null,null,null,null,null,null,null,null,null,null,null,null,null,null,null,null,"MX","MEXICO",null,null,null,null,null,null,null,null,null,null,null,null,null,null,null,null,null,null,null,null,null,null,null,null,null,null,null,null,null,null,null,null,null,null,null,null,null,null,null,null,null,null,null,null,null,null,null,null,null,null,null,null,null,null,null,null,null,null,null,null,null,null,null,null,null,null,null,null,null,null,null,null,null,null,null,null,null,null,null,"EXPORTS","_Z","_Z","_Z","_Z","_Z","MX",null,"_Z"]
["Moldova, Republic of",96,null,null,null,null,"",0," ",null,null,null,null,null,null,null,null,null,null,null,null,null,null,null,null,null,null,null,null,null,null,null,null,null,null,null,null,null,null,null,null,null,null,"MD","MOLDOVA",null,null,null,null,null,null,null,null,null,null,null,null,null,null,null,null,null,null,null,null,null,null,null,null,null,null,null,null,null,null,null,null,null,null,null,null,null,null,null,null,null,null,null,null,null,null,null,null,null,null,null,null,null,null,null,null,null,null,null,null,null,null,null,null,null,null,null,null,null,null,null,null,null,null,null,null,null,null,null,"EXPORTS","_Z","_Z","_Z","_Z","_Z","MD",null,"_Z"]
["Mongolia",97,null,null,null,null,"",0," ",null,null,null,null,null,null,null,null,null,null,null,null,null,null,null,null,null,null,null,null,null,null,null,null,null,null,null,null,null,null,null,null,null,null,"MN","MONGOLIA",null,null,null,null,null,null,null,null,null,null,null,null,null,null,null,null,null,null,null,null,null,null,null,null,null,null,null,null,null,null,null,null,null,null,null,null,null,null,null,null,null,null,null,null,null,null,null,null,null,null,null,null,null,null,null,null,null,null,null,null,null,null,null,null,null,null,null,null,null,null,null,null,null,null,null,null,null,null,null,"EXPORTS","_Z","_Z","_Z","_Z","_Z","MN",null,"_Z"]
["Montenegro",98,null,null,null,null,"",0," ",null,null,null,null,null,null,null,null,null,null,null,null,null,null,null,null,null,null,null,null,null,null,null,null,null,null,null,null,null,null,null,null,null,null,"ME","MONTENEGRO",null,null,null,null,null,null,null,null,null,null,null,null,null,null,null,null,null,null,null,null,null,null,null,null,null,null,null,null,null,null,null,null,null,null,null,null,null,null,null,null,null,null,null,null,null,null,null,null,null,null,null,null,null,null,null,null,null,null,null,null,null,null,null,null,null,null,null,null,null,null,null,null,null,null,null,null,null,null,null,"EXPORTS","_Z","_Z","_Z","_Z","_Z","ME",null,"_Z"]
["Morocco",99,null,null,null,null,"",0," ",null,null,null,null,null,null,null,null,null,null,null,null,null,null,null,null,null,null,null,null,null,null,null,null,null,null,null,null,null,null,null,null,null,null,"MA","MOROCCO",null,null,null,null,null,null,null,null,null,null,null,null,null,null,null,null,null,null,null,null,null,null,null,null,null,null,null,null,null,null,null,null,null,null,null,null,null,null,null,null,null,null,null,null,null,null,null,null,null,null,null,null,null,null,null,null,null,null,null,null,null,null,null,null,null,null,null,null,null,null,null,null,null,null,null,null,null,null,null,"EXPORTS","_Z","_Z","_Z","_Z","_Z","MA",null,"_Z"]
["Mozambique",100,null,null,null,null,"",0," ",null,null,null,null,null,null,null,null,null,null,null,null,null,null,null,null,null,null,null,null,null,null,null,null,null,null,null,null,null,null,null,null,null,null,"MZ","MOZAMBIQUE",null,null,null,null,null,null,null,null,null,null,null,null,null,null,null,null,null,null,null,null,null,null,null,null,null,null,null,null,null,null,null,null,null,null,null,null,null,null,null,null,null,null,null,null,null,null,null,null,null,null,null,null,null,null,null,null,null,null,null,null,null,null,null,null,null,null,null,null,null,null,null,null,null,null,null,null,null,null,null,"EXPORTS","_Z","_Z","_Z","_Z","_Z","MZ",null,"_Z"]
["Myanmar",101,null,null,null,null,"",0," ",null,null,null,null,null,null,null,null,null,null,null,null,null,null,null,null,null,null,null,null,null,null,null,null,null,null,null,null,null,null,null,null,null,null,"MM","MYANMAR",null,null,null,null,null,null,null,null,null,null,null,null,null,null,null,null,null,null,null,null,null,null,null,null,null,null,null,null,null,null,null,null,null,null,null,null,null,null,null,null,null,null,null,null,null,null,null,null,null,null,null,null,null,null,null,null,null,null,null,null,null,null,null,null,null,null,null,null,null,null,null,null,null,null,null,null,null,null,null,"EXPORTS","_Z","_Z","_Z","_Z","_Z","MM",null,"_Z"]
["Namibia",102,null,null,null,null,"",0," ",null,null,null,null,null,null,null,null,null,null,null,null,null,null,null,null,null,null,null,null,null,null,null,null,null,null,null,null,null,null,null,null,null,null,"NA","NAMIBIA",null,null,null,null,null,null,null,null,null,null,null,null,null,null,null,null,null,null,null,null,null,null,null,null,null,null,null,null,null,null,null,null,null,null,null,null,null,null,null,null,null,null,null,null,null,null,null,null,null,null,null,null,null,null,null,null,null,null,null,null,null,null,null,null,null,null,null,null,null,null,null,null,null,null,null,null,null,null,null,"EXPORTS","_Z","_Z","_Z","_Z","_Z","NA",null,"_Z"]
["Nepal",103,null,null,null,null,"",0," ",null,null,null,null,null,null,null,null,null,null,null,null,null,null,null,null,null,null,null,null,null,null,null,null,null,null,null,null,null,null,null,null,null,null,"NP","NEPAL",null,null,null,null,null,null,null,null,null,null,null,null,null,null,null,null,null,null,null,null,null,null,null,null,null,null,null,null,null,null,null,null,null,null,null,null,null,null,null,null,null,null,null,null,null,null,null,null,null,null,null,null,null,null,null,null,null,null,null,null,null,null,null,null,null,null,null,null,null,null,null,null,null,null,null,null,null,null,null,"EXPORTS","_Z","_Z","_Z","_Z","_Z","NP",null,"_Z"]
["Netherlands",104,null,null,null,null,"",0," ",null,null,null,null,null,null,null,null,null,null,null,null,null,null,null,null,null,null,null,null,null,null,null,null,null,null,null,null,null,null,null,null,null,null,"NL","NETHLAND",null,null,null,null,null,null,null,null,null,null,null,null,null,null,null,null,null,null,null,null,null,null,null,null,null,null,null,null,null,null,null,null,null,null,null,null,null,null,null,null,null,null,null,null,null,null,null,null,null,null,null,null,null,null,null,null,null,null,null,null,null,null,null,null,null,null,null,null,null,null,null,null,null,null,null,null,null,null,null,"EXPORTS","_Z","_Z","_Z","_Z","_Z","NL",null,"_Z"]
["New Caledonia",105,null,null,null,null,"",0," ",null,null,null,null,null,null,null,null,null,null,null,null,null,null,null,null,null,null,null,null,null,null,null,null,null,null,null,null,null,null,null,null,null,null,"NC","NEWCALEDON",null,null,null,null,null,null,null,null,null,null,null,null,null,null,null,null,null,null,null,null,null,null,null,null,null,null,null,null,null,null,null,null,null,null,null,null,null,null,null,null,null,null,null,null,null,null,null,null,null,null,null,null,null,null,null,null,null,null,null,null,null,null,null,null,null,null,null,null,null,null,null,null,null,null,null,null,null,null,null,"EXPORTS","_Z","_Z","_Z","_Z","_Z","NC",null,"_Z"]
["New Zealand",106,null,null,null,null,"",0," ",null,null,null,null,null,null,null,null,null,null,null,null,null,null,null,null,null,null,null,null,null,null,null,null,null,null,null,null,null,null,null,null,null,null,"NZ","NZ",null,null,null,null,null,null,null,null,null,null,null,null,null,null,null,null,null,null,null,null,null,null,null,null,null,null,null,null,null,null,null,null,null,null,null,null,null,null,null,null,null,null,null,null,null,null,null,null,null,null,null,null,null,null,null,null,null,null,null,null,null,null,null,null,null,null,null,null,null,null,null,null,null,null,null,null,null,null,null,"EXPORTS","_Z","_Z","_Z","_Z","_Z","NZ",null,"_Z"]
["Niger",107,null,null,null,null,"",null," ",null,null,null,null,null,null,null,null,null,null,null,null,null,null,null,null,null,null,null,null,null,null,null,null,null,null,null,null,null,null,null,null,null,null,"NE","NIGER",null,null,null,null,null,null,null,null,null,null,null,null,null,null,null,null,null,null,null,null,null,null,null,null,null,null,null,null,null,null,null,null,null,null,null,null,null,null,null,null,null,null,null,null,null,null,null,null,null,null,null,null,null,null,null,null,null,null,null,null,null,null,null,null,null,null,null,null,null,null,null,null,null,null,null,null,null,null,null,"EXPORTS","_Z","_Z","_Z","_Z","_Z","NE",null,"_Z"]
["Nigeria",108,null,null,null,null,"",0," ",null,null,null,null,null,null,null,null,null,null,null,null,null,null,null,null,null,null,null,null,null,null,null,null,null,null,null,null,null,null,null,null,null,null,"NG","NIGERIA",null,null,null,null,null,null,null,null,null,null,null,null,null,null,null,null,null,null,null,null,null,null,null,null,null,null,null,null,null,null,null,null,null,null,null,null,null,null,null,null,null,null,null,null,null,null,null,null,null,null,null,null,null,null,null,null,null,null,null,null,null,null,null,null,null,null,null,null,null,null,null,null,null,null,null,null,null,null,null,"EXPORTS","_Z","_Z","_Z","_Z","_Z","NG",null,"_Z"]
["North Macedonia",109,null,null,null,null,{"$f":"IF(OR(E116=0,C116=0),\"\",ROUND((E116/C116)*1000,0))","v":""},{"$f":"IF(MIN(C116:F116)<0,1,0)+IF(OR(C116<D116,E116<F116),1,0)","v":0},{"$f":"IF(H116=0,\" \",IF(H116=1,\"Error: \",\"2 errors: \"))&IF(MIN(C116:F116)<0,\"Imports data should not be negative. \",\"\")&IF(OR(C116<D116,E116<F116),\"'Of which: LNG' greater than Total.\",\"\")","v":" "},null,null,null,null,null,null,null,null,null,null,null,null,null,null,null,null,null,null,null,null,null,null,null,null,null,null,null,null,null,null,null,null,null,null,"MK","NORTHMACED",null,null,null,null,null,null,null,null,null,null,null,null,null,null,null,null,null,null,null,null,null,null,null,null,null,null,null,null,null,null,null,null,null,null,null,null,null,null,null,null,null,null,null,null,null,null,null,null,null,null,null,null,null,null,null,null,null,null,null,null,null,null,null,null,null,null,null,null,null,null,null,null,null,null,null,null,null,null,null,"EXPORTS","_Z","_Z","_Z","_Z","_Z","MK",null,"_Z"]
["Norway",110,null,null,null,null,"",0," ",null,null,null,null,null,null,null,null,null,null,null,null,null,null,null,null,null,null,null,null,null,null,null,null,null,null,null,null,null,null,null,null,null,null,"NO","NORWAY",null,null,null,null,null,null,null,null,null,null,null,null,null,null,null,null,null,null,null,null,null,null,null,null,null,null,null,null,null,null,null,null,null,null,null,null,null,null,null,null,null,null,null,null,null,null,null,null,null,null,null,null,null,null,null,null,null,null,null,null,null,null,null,null,null,null,null,null,null,null,null,null,null,null,null,null,null,null,null,"EXPORTS","_Z","_Z","_Z","_Z","_Z","NO",null,"_Z"]
["Oman",111,null,null,null,null,"",0," ",null,null,null,null,null,null,null,null,null,null,null,null,null,null,null,null,null,null,null,null,null,null,null,null,null,null,null,null,null,null,null,null,null,null,"OM","OMAN",null,null,null,null,null,null,null,null,null,null,null,null,null,null,null,null,null,null,null,null,null,null,null,null,null,null,null,null,null,null,null,null,null,null,null,null,null,null,null,null,null,null,null,null,null,null,null,null,null,null,null,null,null,null,null,null,null,null,null,null,null,null,null,null,null,null,null,null,null,null,null,null,null,null,null,null,null,null,null,"EXPORTS","_Z","_Z","_Z","_Z","_Z","OM",null,"_Z"]
["Other Africa",112,null,null,null,null,"",0," ",null,null,null,null,null,null,null,null,null,null,null,null,null,null,null,null,null,null,null,null,null,null,null,null,null,null,null,null,null,null,null,null,null,null,"O1","OTHERAFRIC",null,null,null,null,null,null,null,null,null,null,null,null,null,null,null,null,null,null,null,null,null,null,null,null,null,null,null,null,null,null,null,null,null,null,null,null,null,null,null,null,null,null,null,null,null,null,null,null,null,null,null,null,null,null,null,null,null,null,null,null,null,null,null,null,null,null,null,null,null,null,null,null,null,null,null,null,null,null,null,"EXPORTS","_Z","_Z","_Z","_Z","_Z","OX1",null,"_Z"]
["Other Asia Oceania",113,null,null,null,null,"",0," ",null,null,null,null,null,null,null,null,null,null,null,null,null,null,null,null,null,null,null,null,null,null,null,null,null,null,null,null,null,null,null,null,null,null,"O4","OTHERASIA",null,null,null,null,null,null,null,null,null,null,null,null,null,null,null,null,null,null,null,null,null,null,null,null,null,null,null,null,null,null,null,null,null,null,null,null,null,null,null,null,null,null,null,null,null,null,null,null,null,null,null,null,null,null,null,null,null,null,null,null,null,null,null,null,null,null,null,null,null,null,null,null,null,null,null,null,null,null,null,"EXPORTS","_Z","_Z","_Z","_Z","_Z","OX2",null,"_Z"]
["Other Europe",114,null,null,null,null,"",0," ",null,null,null,null,null,null,null,null,null,null,null,null,null,null,null,null,null,null,null,null,null,null,null,null,null,null,null,null,null,null,null,null,null,null,"O8","OTHEREUROP",null,null,null,null,null,null,null,null,null,null,null,null,null,null,null,null,null,null,null,null,null,null,null,null,null,null,null,null,null,null,null,null,null,null,null,null,null,null,null,null,null,null,null,null,null,null,null,null,null,null,null,null,null,null,null,null,null,null,null,null,null,null,null,null,null,null,null,null,null,null,null,null,null,null,null,null,null,null,null,"EXPORTS","_Z","_Z","_Z","_Z","_Z","OX3",null,"_Z"]
["Other Former Soviet Union",115,null,null,null,null,"",0," ",null,null,null,null,null,null,null,null,null,null,null,null,null,null,null,null,null,null,null,null,null,null,null,null,null,null,null,null,null,null,null,null,null,null,"P8","OTHFUSSR",null,null,null,null,null,null,null,null,null,null,null,null,null,null,null,null,null,null,null,null,null,null,null,null,null,null,null,null,null,null,null,null,null,null,null,null,null,null,null,null,null,null,null,null,null,null,null,null,null,null,null,null,null,null,null,null,null,null,null,null,null,null,null,null,null,null,null,null,null,null,null,null,null,null,null,null,null,null,null,"EXPORTS","_Z","_Z","_Z","_Z","_Z","OX4",null,"_Z"]
["Other Near and Middle East",116,null,null,null,null,"",0," ",null,null,null,null,null,null,null,null,null,null,null,null,null,null,null,null,null,null,null,null,null,null,null,null,null,null,null,null,null,null,null,null,null,null,"P4","OTHERNEARM",null,null,null,null,null,null,null,null,null,null,null,null,null,null,null,null,null,null,null,null,null,null,null,null,null,null,null,null,null,null,null,null,null,null,null,null,null,null,null,null,null,null,null,null,null,null,null,null,null,null,null,null,null,null,null,null,null,null,null,null,null,null,null,null,null,null,null,null,null,null,null,null,null,null,null,null,null,null,null,"EXPORTS","_Z","_Z","_Z","_Z","_Z","OX5",null,"_Z"]
["Other Non-OECD Americas",117,null,null,null,null,"",0," ",null,null,null,null,null,null,null,null,null,null,null,null,null,null,null,null,null,null,null,null,null,null,null,null,null,null,null,null,null,null,null,null,null,null,"P1","OTHERLATIN",null,null,null,null,null,null,null,null,null,null,null,null,null,null,null,null,null,null,null,null,null,null,null,null,null,null,null,null,null,null,null,null,null,null,null,null,null,null,null,null,null,null,null,null,null,null,null,null,null,null,null,null,null,null,null,null,null,null,null,null,null,null,null,null,null,null,null,null,null,null,null,null,null,null,null,null,null,null,null,"EXPORTS","_Z","_Z","_Z","_Z","_Z","OX6",null,"_Z"]
["Pakistan",118,null,null,null,null,"",0," ",null,null,null,null,null,null,null,null,null,null,null,null,null,null,null,null,null,null,null,null,null,null,null,null,null,null,null,null,null,null,null,null,null,null,"PK","PAKISTAN",null,null,null,null,null,null,null,null,null,null,null,null,null,null,null,null,null,null,null,null,null,null,null,null,null,null,null,null,null,null,null,null,null,null,null,null,null,null,null,null,null,null,null,null,null,null,null,null,null,null,null,null,null,null,null,null,null,null,null,null,null,null,null,null,null,null,null,null,null,null,null,null,null,null,null,null,null,null,null,"EXPORTS","_Z","_Z","_Z","_Z","_Z","PK",null,"_Z"]
["Panama",119,null,null,null,null,"",0," ",null,null,null,null,null,null,null,null,null,null,null,null,null,null,null,null,null,null,null,null,null,null,null,null,null,null,null,null,null,null,null,null,null,null,"PA","PANAMA",null,null,null,null,null,null,null,null,null,null,null,null,null,null,null,null,null,null,null,null,null,null,null,null,null,null,null,null,null,null,null,null,null,null,null,null,null,null,null,null,null,null,null,null,null,null,null,null,null,null,null,null,null,null,null,null,null,null,null,null,null,null,null,null,null,null,null,null,null,null,null,null,null,null,null,null,null,null,null,"EXPORTS","_Z","_Z","_Z","_Z","_Z","PA",null,"_Z"]
["Papua New Guinea",120,null,null,null,null,"",0," ",null,null,null,null,null,null,null,null,null,null,null,null,null,null,null,null,null,null,null,null,null,null,null,null,null,null,null,null,null,null,null,null,null,null,"PG","PAPUANEWGU",null,null,null,null,null,null,null,null,null,null,null,null,null,null,null,null,null,null,null,null,null,null,null,null,null,null,null,null,null,null,null,null,null,null,null,null,null,null,null,null,null,null,null,null,null,null,null,null,null,null,null,null,null,null,null,null,null,null,null,null,null,null,null,null,null,null,null,null,null,null,null,null,null,null,null,null,null,null,null,"EXPORTS","_Z","_Z","_Z","_Z","_Z","PG",null,"_Z"]
["Peru",121,null,null,null,null,"",0," ",null,null,null,null,null,null,null,null,null,null,null,null,null,null,null,null,null,null,null,null,null,null,null,null,null,null,null,null,null,null,null,null,null,null,"PE","PERU",null,null,null,null,null,null,null,null,null,null,null,null,null,null,null,null,null,null,null,null,null,null,null,null,null,null,null,null,null,null,null,null,null,null,null,null,null,null,null,null,null,null,null,null,null,null,null,null,null,null,null,null,null,null,null,null,null,null,null,null,null,null,null,null,null,null,null,null,null,null,null,null,null,null,null,null,null,null,null,"EXPORTS","_Z","_Z","_Z","_Z","_Z","PE",null,"_Z"]
["Philippines",122,null,null,null,null,"",0," ",null,null,null,null,null,null,null,null,null,null,null,null,null,null,null,null,null,null,null,null,null,null,null,null,null,null,null,null,null,null,null,null,null,null,"PH","PHILIPPINE",null,null,null,null,null,null,null,null,null,null,null,null,null,null,null,null,null,null,null,null,null,null,null,null,null,null,null,null,null,null,null,null,null,null,null,null,null,null,null,null,null,null,null,null,null,null,null,null,null,null,null,null,null,null,null,null,null,null,null,null,null,null,null,null,null,null,null,null,null,null,null,null,null,null,null,null,null,null,null,"EXPORTS","_Z","_Z","_Z","_Z","_Z","PH",null,"_Z"]
["Poland",123,null,null,null,null,"",0," ",null,null,null,null,null,null,null,null,null,null,null,null,null,null,null,null,null,null,null,null,null,null,null,null,null,null,null,null,null,null,null,null,null,null,"PL","POLAND",null,null,null,null,null,null,null,null,null,null,null,null,null,null,null,null,null,null,null,null,null,null,null,null,null,null,null,null,null,null,null,null,null,null,null,null,null,null,null,null,null,null,null,null,null,null,null,null,null,null,null,null,null,null,null,null,null,null,null,null,null,null,null,null,null,null,null,null,null,null,null,null,null,null,null,null,null,null,null,"EXPORTS","_Z","_Z","_Z","_Z","_Z","PL",null,"_Z"]
["Portugal",124,null,null,null,null,"",0," ",null,null,null,null,null,null,null,null,null,null,null,null,null,null,null,null,null,null,null,null,null,null,null,null,null,null,null,null,null,null,null,null,null,null,"PT","PORTUGAL",null,null,null,null,null,null,null,null,null,null,null,null,null,null,null,null,null,null,null,null,null,null,null,null,null,null,null,null,null,null,null,null,null,null,null,null,null,null,null,null,null,null,null,null,null,null,null,null,null,null,null,null,null,null,null,null,null,null,null,null,null,null,null,null,null,null,null,null,null,null,null,null,null,null,null,null,null,null,null,"EXPORTS","_Z","_Z","_Z","_Z","_Z","PT",null,"_Z"]
["Qatar",125,null,null,null,null,"",0," ",null,null,null,null,null,null,null,null,null,null,null,null,null,null,null,null,null,null,null,null,null,null,null,null,null,null,null,null,null,null,null,null,null,null,"QA","QATAR",null,null,null,null,null,null,null,null,null,null,null,null,null,null,null,null,null,null,null,null,null,null,null,null,null,null,null,null,null,null,null,null,null,null,null,null,null,null,null,null,null,null,null,null,null,null,null,null,null,null,null,null,null,null,null,null,null,null,null,null,null,null,null,null,null,null,null,null,null,null,null,null,null,null,null,null,null,null,null,"EXPORTS","_Z","_Z","_Z","_Z","_Z","QA",null,"_Z"]
["Romania",126,null,null,null,null,"",0," ",null,null,null,null,null,null,null,null,null,null,null,null,null,null,null,null,null,null,null,null,null,null,null,null,null,null,null,null,null,null,null,null,null,null,"RO","ROMANIA",null,null,null,null,null,null,null,null,null,null,null,null,null,null,null,null,null,null,null,null,null,null,null,null,null,null,null,null,null,null,null,null,null,null,null,null,null,null,null,null,null,null,null,null,null,null,null,null,null,null,null,null,null,null,null,null,null,null,null,null,null,null,null,null,null,null,null,null,null,null,null,null,null,null,null,null,null,null,null,"EXPORTS","_Z","_Z","_Z","_Z","_Z","RO",null,"_Z"]
["Russian Federation",127,null,null,null,null,"",0," ",null,null,null,null,null,null,null,null,null,null,null,null,null,null,null,null,null,null,null,null,null,null,null,null,null,null,null,null,null,null,null,null,null,null,"RU","RUSSIA",null,null,null,null,null,null,null,null,null,null,null,null,null,null,null,null,null,null,null,null,null,null,null,null,null,null,null,null,null,null,null,null,null,null,null,null,null,null,null,null,null,null,null,null,null,null,null,null,null,null,null,null,null,null,null,null,null,null,null,null,null,null,null,null,null,null,null,null,null,null,null,null,null,null,null,null,null,null,null,"EXPORTS","_Z","_Z","_Z","_Z","_Z","RU",null,"_Z"]
["Sao Tome and Principe",128,null,null,null,null,"",0," ",null,null,null,null,null,null,null,null,null,null,null,null,null,null,null,null,null,null,null,null,null,null,null,null,null,null,null,null,null,null,null,null,null,null,"ST","SAOTOME",null,null,null,null,null,null,null,null,null,null,null,null,null,null,null,null,null,null,null,null,null,null,null,null,null,null,null,null,null,null,null,null,null,null,null,null,null,null,null,null,null,null,null,null,null,null,null,null,null,null,null,null,null,null,null,null,null,null,null,null,null,null,null,null,null,null,null,null,null,null,null,null,null,null,null,null,null,null,null,"EXPORTS","_Z","_Z","_Z","_Z","_Z","ST",null,"_Z"]
["Saudi Arabia",129,null,null,null,null,"",0," ",null,null,null,null,null,null,null,null,null,null,null,null,null,null,null,null,null,null,null,null,null,null,null,null,null,null,null,null,null,null,null,null,null,null,"SA","SAUDIARABI",null,null,null,null,null,null,null,null,null,null,null,null,null,null,null,null,null,null,null,null,null,null,null,null,null,null,null,null,null,null,null,null,null,null,null,null,null,null,null,null,null,null,null,null,null,null,null,null,null,null,null,null,null,null,null,null,null,null,null,null,null,null,null,null,null,null,null,null,null,null,null,null,null,null,null,null,null,null,null,"EXPORTS","_Z","_Z","_Z","_Z","_Z","SA",null,"_Z"]
["Senegal",130,null,null,null,null,"",0," ",null,null,null,null,null,null,null,null,null,null,null,null,null,null,null,null,null,null,null,null,null,null,null,null,null,null,null,null,null,null,null,null,null,null,"SN","SENEGAL",null,null,null,null,null,null,null,null,null,null,null,null,null,null,null,null,null,null,null,null,null,null,null,null,null,null,null,null,null,null,null,null,null,null,null,null,null,null,null,null,null,null,null,null,null,null,null,null,null,null,null,null,null,null,null,null,null,null,null,null,null,null,null,null,null,null,null,null,null,null,null,null,null,null,null,null,null,null,null,"EXPORTS","_Z","_Z","_Z","_Z","_Z","SN",null,"_Z"]
["Serbia",131,null,null,null,null,"",0," ",null,null,null,null,null,null,null,null,null,null,null,null,null,null,null,null,null,null,null,null,null,null,null,null,null,null,null,null,null,null,null,null,null,null,"RS","SERBIA",null,null,null,null,null,null,null,null,null,null,null,null,null,null,null,null,null,null,null,null,null,null,null,null,null,null,null,null,null,null,null,null,null,null,null,null,null,null,null,null,null,null,null,null,null,null,null,null,null,null,null,null,null,null,null,null,null,null,null,null,null,null,null,null,null,null,null,null,null,null,null,null,null,null,null,null,null,null,null,"EXPORTS","_Z","_Z","_Z","_Z","_Z","RS",null,"_Z"]
["Sierra Leone",132,null,null,null,null,"",0," ",null,null,null,null,null,null,null,null,null,null,null,null,null,null,null,null,null,null,null,null,null,null,null,null,null,null,null,null,null,null,null,null,null,null,"SL","SIERRALEON",null,null,null,null,null,null,null,null,null,null,null,null,null,null,null,null,null,null,null,null,null,null,null,null,null,null,null,null,null,null,null,null,null,null,null,null,null,null,null,null,null,null,null,null,null,null,null,null,null,null,null,null,null,null,null,null,null,null,null,null,null,null,null,null,null,null,null,null,null,null,null,null,null,null,null,null,null,null,null,"EXPORTS","_Z","_Z","_Z","_Z","_Z","SL",null,"_Z"]
["Singapore",133,null,null,null,null,"",0," ",null,null,null,null,null,null,null,null,null,null,null,null,null,null,null,null,null,null,null,null,null,null,null,null,null,null,null,null,null,null,null,null,null,null,"SG","SINGAPORE",null,null,null,null,null,null,null,null,null,null,null,null,null,null,null,null,null,null,null,null,null,null,null,null,null,null,null,null,null,null,null,null,null,null,null,null,null,null,null,null,null,null,null,null,null,null,null,null,null,null,null,null,null,null,null,null,null,null,null,null,null,null,null,null,null,null,null,null,null,null,null,null,null,null,null,null,null,null,null,"EXPORTS","_Z","_Z","_Z","_Z","_Z","SG",null,"_Z"]
["Slovak Republic",134,null,null,null,null,{"$f":"IF(OR(E141=0,C141=0),\"\",ROUND((E141/C141)*1000,0))","v":""},0," ",null,null,null,null,null,null,null,null,null,null,null,null,null,null,null,null,null,null,null,null,null,null,null,null,null,null,null,null,null,null,null,null,null,null,"SK","SLOVAKIA",null,null,null,null,null,null,null,null,null,null,null,null,null,null,null,null,null,null,null,null,null,null,null,null,null,null,null,null,null,null,null,null,null,null,null,null,null,null,null,null,null,null,null,null,null,null,null,null,null,null,null,null,null,null,null,null,null,null,null,null,null,null,null,null,null,null,null,null,null,null,null,null,null,null,null,null,null,null,null,"EXPORTS","_Z","_Z","_Z","_Z","_Z","SK",null,"_Z"]
["Slovenia",135,null,null,null,null,{"$f":"IF(OR(E142=0,C142=0),\"\",ROUND((E142/C142)*1000,0))","v":""},0," ",null,null,null,null,null,null,null,null,null,null,null,null,null,null,null,null,null,null,null,null,null,null,null,null,null,null,null,null,null,null,null,null,null,null,"SI","SLOVENIA",null,null,null,null,null,null,null,null,null,null,null,null,null,null,null,null,null,null,null,null,null,null,null,null,null,null,null,null,null,null,null,null,null,null,null,null,null,null,null,null,null,null,null,null,null,null,null,null,null,null,null,null,null,null,null,null,null,null,null,null,null,null,null,null,null,null,null,null,null,null,null,null,null,null,null,null,null,null,null,"EXPORTS","_Z","_Z","_Z","_Z","_Z","SI",null,"_Z"]
["South Africa",136,null,null,null,null,"",0," ",null,null,null,null,null,null,null,null,null,null,null,null,null,null,null,null,null,null,null,null,null,null,null,null,null,null,null,null,null,null,null,null,null,null,"ZA","SOUTHAFRIC",null,null,null,null,null,null,null,null,null,null,null,null,null,null,null,null,null,null,null,null,null,null,null,null,null,null,null,null,null,null,null,null,null,null,null,null,null,null,null,null,null,null,null,null,null,null,null,null,null,null,null,null,null,null,null,null,null,null,null,null,null,null,null,null,null,null,null,null,null,null,null,null,null,null,null,null,null,null,null,"EXPORTS","_Z","_Z","_Z","_Z","_Z","ZA",null,"_Z"]
["South Sudan",137,null,null,null,null,"",0," ",null,null,null,null,null,null,null,null,null,null,null,null,null,null,null,null,null,null,null,null,null,null,null,null,null,null,null,null,null,null,null,null,null,null,"SS","SSUDAN",null,null,null,null,null,null,null,null,null,null,null,null,null,null,null,null,null,null,null,null,null,null,null,null,null,null,null,null,null,null,null,null,null,null,null,null,null,null,null,null,null,null,null,null,null,null,null,null,null,null,null,null,null,null,null,null,null,null,null,null,null,null,null,null,null,null,null,null,null,null,null,null,null,null,null,null,null,null,null,"EXPORTS","_Z","_Z","_Z","_Z","_Z","SS",null,"_Z"]
["Spain",138,null,null,null,null,"",0," ",null,null,null,null,null,null,null,null,null,null,null,null,null,null,null,null,null,null,null,null,null,null,null,null,null,null,null,null,null,null,null,null,null,null,"ES","SPAIN",null,null,null,null,null,null,null,null,null,null,null,null,null,null,null,null,null,null,null,null,null,null,null,null,null,null,null,null,null,null,null,null,null,null,null,null,null,null,null,null,null,null,null,null,null,null,null,null,null,null,null,null,null,null,null,null,null,null,null,null,null,null,null,null,null,null,null,null,null,null,null,null,null,null,null,null,null,null,null,"EXPORTS","_Z","_Z","_Z","_Z","_Z","ES",null,"_Z"]
["Sri Lanka",139,null,null,null,null,"",0," ",null,null,null,null,null,null,null,null,null,null,null,null,null,null,null,null,null,null,null,null,null,null,null,null,null,null,null,null,null,null,null,null,null,null,"LK","SRILANKA",null,null,null,null,null,null,null,null,null,null,null,null,null,null,null,null,null,null,null,null,null,null,null,null,null,null,null,null,null,null,null,null,null,null,null,null,null,null,null,null,null,null,null,null,null,null,null,null,null,null,null,null,null,null,null,null,null,null,null,null,null,null,null,null,null,null,null,null,null,null,null,null,null,null,null,null,null,null,null,"EXPORTS","_Z","_Z","_Z","_Z","_Z","LK",null,"_Z"]
["Sudan",140,null,null,null,null,"",0," ",null,null,null,null,null,null,null,null,null,null,null,null,null,null,null,null,null,null,null,null,null,null,null,null,null,null,null,null,null,null,null,null,null,null,"SD","SUDAN",null,null,null,null,null,null,null,null,null,null,null,null,null,null,null,null,null,null,null,null,null,null,null,null,null,null,null,null,null,null,null,null,null,null,null,null,null,null,null,null,null,null,null,null,null,null,null,null,null,null,null,null,null,null,null,null,null,null,null,null,null,null,null,null,null,null,null,null,null,null,null,null,null,null,null,null,null,null,null,"EXPORTS","_Z","_Z","_Z","_Z","_Z","SD",null,"_Z"]
["Sweden",141,null,null,null,null,"",0," ",null,null,null,null,null,null,null,null,null,null,null,null,null,null,null,null,null,null,null,null,null,null,null,null,null,null,null,null,null,null,null,null,null,null,"SE","SWEDEN",null,null,null,null,null,null,null,null,null,null,null,null,null,null,null,null,null,null,null,null,null,null,null,null,null,null,null,null,null,null,null,null,null,null,null,null,null,null,null,null,null,null,null,null,null,null,null,null,null,null,null,null,null,null,null,null,null,null,null,null,null,null,null,null,null,null,null,null,null,null,null,null,null,null,null,null,null,null,null,"EXPORTS","_Z","_Z","_Z","_Z","_Z","SE",null,"_Z"]
["Switzerland",142,null,null,null,null,"",0," ",null,null,null,null,null,null,null,null,null,null,null,null,null,null,null,null,null,null,null,null,null,null,null,null,null,null,null,null,null,null,null,null,null,null,"CH","SWITLAND",null,null,null,null,null,null,null,null,null,null,null,null,null,null,null,null,null,null,null,null,null,null,null,null,null,null,null,null,null,null,null,null,null,null,null,null,null,null,null,null,null,null,null,null,null,null,null,null,null,null,null,null,null,null,null,null,null,null,null,null,null,null,null,null,null,null,null,null,null,null,null,null,null,null,null,null,null,null,null,"EXPORTS","_Z","_Z","_Z","_Z","_Z","CH",null,"_Z"]
["Syrian Arab Republic",143,null,null,null,null,"",0," ",null,null,null,null,null,null,null,null,null,null,null,null,null,null,null,null,null,null,null,null,null,null,null,null,null,null,null,null,null,null,null,null,null,null,"SY","SYRIA",null,null,null,null,null,null,null,null,null,null,null,null,null,null,null,null,null,null,null,null,null,null,null,null,null,null,null,null,null,null,null,null,null,null,null,null,null,null,null,null,null,null,null,null,null,null,null,null,null,null,null,null,null,null,null,null,null,null,null,null,null,null,null,null,null,null,null,null,null,null,null,null,null,null,null,null,null,null,null,"EXPORTS","_Z","_Z","_Z","_Z","_Z","SY",null,"_Z"]
["Taiwan / Chinese Taipei",144,null,null,null,null,"",0," ",null,null,null,null,null,null,null,null,null,null,null,null,null,null,null,null,null,null,null,null,null,null,null,null,null,null,null,null,null,null,null,null,null,null,"TW","TAIPEI",null,null,null,null,null,null,null,null,null,null,null,null,null,null,null,null,null,null,null,null,null,null,null,null,null,null,null,null,null,null,null,null,null,null,null,null,null,null,null,null,null,null,null,null,null,null,null,null,null,null,null,null,null,null,null,null,null,null,null,null,null,null,null,null,null,null,null,null,null,null,null,null,null,null,null,null,null,null,null,"EXPORTS","_Z","_Z","_Z","_Z","_Z","TW",null,"_Z"]
["Tajikistan",145,null,null,null,null,"",0," ",null,null,null,null,null,null,null,null,null,null,null,null,null,null,null,null,null,null,null,null,null,null,null,null,null,null,null,null,null,null,null,null,null,null,"TJ","TAJIKISTAN",null,null,null,null,null,null,null,null,null,null,null,null,null,null,null,null,null,null,null,null,null,null,null,null,null,null,null,null,null,null,null,null,null,null,null,null,null,null,null,null,null,null,null,null,null,null,null,null,null,null,null,null,null,null,null,null,null,null,null,null,null,null,null,null,null,null,null,null,null,null,null,null,null,null,null,null,null,null,null,"EXPORTS","_Z","_Z","_Z","_Z","_Z","TJ",null,"_Z"]
["Tanzania, United Republic of",146,null,null,null,null,"",0," ",null,null,null,null,null,null,null,null,null,null,null,null,null,null,null,null,null,null,null,null,null,null,null,null,null,null,null,null,null,null,null,null,null,null,"TZ","TANZANIA",null,null,null,null,null,null,null,null,null,null,null,null,null,null,null,null,null,null,null,null,null,null,null,null,null,null,null,null,null,null,null,null,null,null,null,null,null,null,null,null,null,null,null,null,null,null,null,null,null,null,null,null,null,null,null,null,null,null,null,null,null,null,null,null,null,null,null,null,null,null,null,null,null,null,null,null,null,null,null,"EXPORTS","_Z","_Z","_Z","_Z","_Z","TZ",null,"_Z"]
["Thailand",147,null,null,null,null,"",0," ",null,null,null,null,null,null,null,null,null,null,null,null,null,null,null,null,null,null,null,null,null,null,null,null,null,null,null,null,null,null,null,null,null,null,"TH","THAILAND",null,null,null,null,null,null,null,null,null,null,null,null,null,null,null,null,null,null,null,null,null,null,null,null,null,null,null,null,null,null,null,null,null,null,null,null,null,null,null,null,null,null,null,null,null,null,null,null,null,null,null,null,null,null,null,null,null,null,null,null,null,null,null,null,null,null,null,null,null,null,null,null,null,null,null,null,null,null,null,"EXPORTS","_Z","_Z","_Z","_Z","_Z","TH",null,"_Z"]
["Timor-Leste",148,null,null,null,null,{"$f":"IF(OR(E155=0,C155=0),\"\",ROUND((E155/C155)*1000,0))","v":""},{"$f":"IF(MIN(C155:F155)<0,1,0)+IF(OR(C155<D155,E155<F155),1,0)","v":0},{"$f":"IF(H155=0,\" \",IF(H155=1,\"Error: \",\"2 errors: \"))&IF(MIN(C155:F155)<0,\"Imports data should not be negative. \",\"\")&IF(OR(C155<D155,E155<F155),\"'Of which: LNG' greater than Total.\",\"\")","v":" "},null,null,null,null,null,null,null,null,null,null,null,null,null,null,null,null,null,null,null,null,null,null,null,null,null,null,null,null,null,null,null,null,null,null,"TL","TIMORLESTE",null,null,null,null,null,null,null,null,null,null,null,null,null,null,null,null,null,null,null,null,null,null,null,null,null,null,null,null,null,null,null,null,null,null,null,null,null,null,null,null,null,null,null,null,null,null,null,null,null,null,null,null,null,null,null,null,null,null,null,null,null,null,null,null,null,null,null,null,null,null,null,null,null,null,null,null,null,null,null,"EXPORTS","_Z","_Z","_Z","_Z","_Z","TL",null,"_Z"]
["Togo",149,null,null,null,null,"",0," ",null,null,null,null,null,null,null,null,null,null,null,null,null,null,null,null,null,null,null,null,null,null,null,null,null,null,null,null,null,null,null,null,null,null,"TG","TOGO",null,null,null,null,null,null,null,null,null,null,null,null,null,null,null,null,null,null,null,null,null,null,null,null,null,null,null,null,null,null,null,null,null,null,null,null,null,null,null,null,null,null,null,null,null,null,null,null,null,null,null,null,null,null,null,null,null,null,null,null,null,null,null,null,null,null,null,null,null,null,null,null,null,null,null,null,null,null,null,"EXPORTS","_Z","_Z","_Z","_Z","_Z","TG",null,"_Z"]
["Trinidad and Tobago",150,null,null,null,null,"",0," ",null,null,null,null,null,null,null,null,null,null,null,null,null,null,null,null,null,null,null,null,null,null,null,null,null,null,null,null,null,null,null,null,null,null,"TT","TRINIDAD",null,null,null,null,null,null,null,null,null,null,null,null,null,null,null,null,null,null,null,null,null,null,null,null,null,null,null,null,null,null,null,null,null,null,null,null,null,null,null,null,null,null,null,null,null,null,null,null,null,null,null,null,null,null,null,null,null,null,null,null,null,null,null,null,null,null,null,null,null,null,null,null,null,null,null,null,null,null,null,"EXPORTS","_Z","_Z","_Z","_Z","_Z","TT",null,"_Z"]
["Tunisia",151,null,null,null,null,"",0," ",null,null,null,null,null,null,null,null,null,null,null,null,null,null,null,null,null,null,null,null,null,null,null,null,null,null,null,null,null,null,null,null,null,null,"TN","TUNISIA",null,null,null,null,null,null,null,null,null,null,null,null,null,null,null,null,null,null,null,null,null,null,null,null,null,null,null,null,null,null,null,null,null,null,null,null,null,null,null,null,null,null,null,null,null,null,null,null,null,null,null,null,null,null,null,null,null,null,null,null,null,null,null,null,null,null,null,null,null,null,null,null,null,null,null,null,null,null,null,"EXPORTS","_Z","_Z","_Z","_Z","_Z","TN",null,"_Z"]
["Turkey",152,null,null,null,null,"",0," ",null,null,null,null,null,null,null,null,null,null,null,null,null,null,null,null,null,null,null,null,null,null,null,null,null,null,null,null,null,null,null,null,null,null,"TR","TURKEY",null,null,null,null,null,null,null,null,null,null,null,null,null,null,null,null,null,null,null,null,null,null,null,null,null,null,null,null,null,null,null,null,null,null,null,null,null,null,null,null,null,null,null,null,null,null,null,null,null,null,null,null,null,null,null,null,null,null,null,null,null,null,null,null,null,null,null,null,null,null,null,null,null,null,null,null,null,null,null,"EXPORTS","_Z","_Z","_Z","_Z","_Z","TR",null,"_Z"]
["Turkmenistan",153,null,null,null,null,"",0," ",null,null,null,null,null,null,null,null,null,null,null,null,null,null,null,null,null,null,null,null,null,null,null,null,null,null,null,null,null,null,null,null,null,null,"TM","TURKMENIST",null,null,null,null,null,null,null,null,null,null,null,null,null,null,null,null,null,null,null,null,null,null,null,null,null,null,null,null,null,null,null,null,null,null,null,null,null,null,null,null,null,null,null,null,null,null,null,null,null,null,null,null,null,null,null,null,null,null,null,null,null,null,null,null,null,null,null,null,null,null,null,null,null,null,null,null,null,null,null,"EXPORTS","_Z","_Z","_Z","_Z","_Z","TM",null,"_Z"]
["Uganda",154,null,null,null,null,"",0," ",null,null,null,null,null,null,null,null,null,null,null,null,null,null,null,null,null,null,null,null,null,null,null,null,null,null,null,null,null,null,null,null,null,null,"UG","UGANDA",null,null,null,null,null,null,null,null,null,null,null,null,null,null,null,null,null,null,null,null,null,null,null,null,null,null,null,null,null,null,null,null,null,null,null,null,null,null,null,null,null,null,null,null,null,null,null,null,null,null,null,null,null,null,null,null,null,null,null,null,null,null,null,null,null,null,null,null,null,null,null,null,null,null,null,null,null,null,null,"EXPORTS","_Z","_Z","_Z","_Z","_Z","UG",null,"_Z"]
["Ukraine",155,null,null,null,null,{"$f":"IF(OR(E162=0,C162=0),\"\",ROUND((E162/C162)*1000,0))","v":""},0," ",null,null,null,null,null,null,null,null,null,null,null,null,null,null,null,null,null,null,null,null,null,null,null,null,null,null,null,null,null,null,null,null,null,null,"UA","UKRAINE",null,null,null,null,null,null,null,null,null,null,null,null,null,null,null,null,null,null,null,null,null,null,null,null,null,null,null,null,null,null,null,null,null,null,null,null,null,null,null,null,null,null,null,null,null,null,null,null,null,null,null,null,null,null,null,null,null,null,null,null,null,null,null,null,null,null,null,null,null,null,null,null,null,null,null,null,null,null,null,"EXPORTS","_Z","_Z","_Z","_Z","_Z","UA",null,"_Z"]
["United Arab Emirates",156,null,null,null,null,{"$f":"IF(OR(E163=0,C163=0),\"\",ROUND((E163/C163)*1000,0))","v":""},0," ",null,null,null,null,null,null,null,null,null,null,null,null,null,null,null,null,null,null,null,null,null,null,null,null,null,null,null,null,null,null,null,null,null,null,"AE","UAE",null,null,null,null,null,null,null,null,null,null,null,null,null,null,null,null,null,null,null,null,null,null,null,null,null,null,null,null,null,null,null,null,null,null,null,null,null,null,null,null,null,null,null,null,null,null,null,null,null,null,null,null,null,null,null,null,null,null,null,null,null,null,null,null,null,null,null,null,null,null,null,null,null,null,null,null,null,null,null,"EXPORTS","_Z","_Z","_Z","_Z","_Z","AE",null,"_Z"]
["United Kingdom",157,null,null,null,null,"",0," ",null,null,null,null,null,null,null,null,null,null,null,null,null,null,null,null,null,null,null,null,null,null,null,null,null,null,null,null,null,null,null,null,null,null,"GB","UK",null,null,null,null,null,null,null,null,null,null,null,null,null,null,null,null,null,null,null,null,null,null,null,null,null,null,null,null,null,null,null,null,null,null,null,null,null,null,null,null,null,null,null,null,null,null,null,null,null,null,null,null,null,null,null,null,null,null,null,null,null,null,null,null,null,null,null,null,null,null,null,null,null,null,null,null,null,null,null,"EXPORTS","_Z","_Z","_Z","_Z","_Z","GB",null,"_Z"]
["United States",158,null,null,null,null,"",0," ",null,null,null,null,null,null,null,null,null,null,null,null,null,null,null,null,null,null,null,null,null,null,null,null,null,null,null,null,null,null,null,null,null,null,"US","USA",null,null,null,null,null,null,null,null,null,null,null,null,null,null,null,null,null,null,null,null,null,null,null,null,null,null,null,null,null,null,null,null,null,null,null,null,null,null,null,null,null,null,null,null,null,null,null,null,null,null,null,null,null,null,null,null,null,null,null,null,null,null,null,null,null,null,null,null,null,null,null,null,null,null,null,null,null,null,null,"EXPORTS","_Z","_Z","_Z","_Z","_Z","US",null,"_Z"]
["Uruguay",159,null,null,null,null,"",0," ",null,null,null,null,null,null,null,null,null,null,null,null,null,null,null,null,null,null,null,null,null,null,null,null,null,null,null,null,null,null,null,null,null,null,"UY","URUGUAY",null,null,null,null,null,null,null,null,null,null,null,null,null,null,null,null,null,null,null,null,null,null,null,null,null,null,null,null,null,null,null,null,null,null,null,null,null,null,null,null,null,null,null,null,null,null,null,null,null,null,null,null,null,null,null,null,null,null,null,null,null,null,null,null,null,null,null,null,null,null,null,null,null,null,null,null,null,null,null,"EXPORTS","_Z","_Z","_Z","_Z","_Z","UY",null,"_Z"]
["Uzbekistan",160,null,null,null,null,"",0," ",null,null,null,null,null,null,null,null,null,null,null,null,null,null,null,null,null,null,null,null,null,null,null,null,null,null,null,null,null,null,null,null,null,null,"UZ","UZBEKISTAN",null,null,null,null,null,null,null,null,null,null,null,null,null,null,null,null,null,null,null,null,null,null,null,null,null,null,null,null,null,null,null,null,null,null,null,null,null,null,null,null,null,null,null,null,null,null,null,null,null,null,null,null,null,null,null,null,null,null,null,null,null,null,null,null,null,null,null,null,null,null,null,null,null,null,null,null,null,null,null,"EXPORTS","_Z","_Z","_Z","_Z","_Z","UZ",null,"_Z"]
["Venezuela, Bolivarian Republic",161,null,null,null,null,"",0," ",null,null,null,null,null,null,null,null,null,null,null,null,null,null,null,null,null,null,null,null,null,null,null,null,null,null,null,null,null,null,null,null,null,null,"VE","VENEZUELA",null,null,null,null,null,null,null,null,null,null,null,null,null,null,null,null,null,null,null,null,null,null,null,null,null,null,null,null,null,null,null,null,null,null,null,null,null,null,null,null,null,null,null,null,null,null,null,null,null,null,null,null,null,null,null,null,null,null,null,null,null,null,null,null,null,null,null,null,null,null,null,null,null,null,null,null,null,null,null,"EXPORTS","_Z","_Z","_Z","_Z","_Z","VE",null,"_Z"]
["Viet Nam",162,null,null,null,null,"",0," ",null,null,null,null,null,null,null,null,null,null,null,null,null,null,null,null,null,null,null,null,null,null,null,null,null,null,null,null,null,null,null,null,null,null,"VN","VIETNAM",null,null,null,null,null,null,null,null,null,null,null,null,null,null,null,null,null,null,null,null,null,null,null,null,null,null,null,null,null,null,null,null,null,null,null,null,null,null,null,null,null,null,null,null,null,null,null,null,null,null,null,null,null,null,null,null,null,null,null,null,null,null,null,null,null,null,null,null,null,null,null,null,null,null,null,null,null,null,null,"EXPORTS","_Z","_Z","_Z","_Z","_Z","VN",null,"_Z"]
["Yemen",163,null,null,null,null,"",0," ",null,null,null,null,null,null,null,null,null,null,null,null,null,null,null,null,null,null,null,null,null,null,null,null,null,null,null,null,null,null,null,null,null,null,"YE","YEMEN",null,null,null,null,null,null,null,null,null,null,null,null,null,null,null,null,null,null,null,null,null,null,null,null,null,null,null,null,null,null,null,null,null,null,null,null,null,null,null,null,null,null,null,null,null,null,null,null,null,null,null,null,null,null,null,null,null,null,null,null,null,null,null,null,null,null,null,null,null,null,null,null,null,null,null,null,null,null,null,"EXPORTS","_Z","_Z","_Z","_Z","_Z","YE",null,"_Z"]
["Not elsewhere specified",164,null,null,null,null,"",0," ",null,null,null,null,null,null,null,null,null,null,null,null,null,null,null,null,null,null,null,null,null,null,null,null,null,null,null,null,null,null,null,null,null,null,"Y3","NONSPEC",null,null,null,null,null,null,null,null,null,null,null,null,null,null,null,null,null,null,null,null,null,null,null,null,null,null,null,null,null,null,null,null,null,null,null,null,null,null,null,null,null,null,null,null,null,null,null,null,null,null,null,null,null,null,null,null,null,null,null,null,null,null,null,null,null,null,null,null,null,null,null,null,null,null,null,null,null,null,null,"EXPORTS","_Z","_Z","_Z","_Z","_Z","_X",null,"_Z"]
["Total Exports (Exits)1 2 ",165,{"$f":"ROUND(SUM(C8:C171),3)","v":0},{"$f":"ROUND(SUM(D8:D171),3)","v":0},{"$f":"ROUND(SUM(E8:E171),3)","v":0},{"$f":"ROUND(SUM(F8:F171),3)","v":0},{"$f":"IF(OR(E172=0,C172=0),\"\",ROUND((E172/C172)*1000,0))","v":""},0," ",null,null,null,null,null,null,null,null,null,null,null,null,null,null,null,null,null,null,null,null,null,null,null,null,null,null,null,null,null,null,null,null,null,null,"Y6","TOTEXTST",null,null,null,null,null,null,null,null,null,null,null,null,null,null,null,null,null,null,null,null,null,null,null,null,null,null,null,null,null,null,null,null,null,null,null,null,null,null,null,null,null,null,null,null,null,null,null,null,null,null,null,null,null,null,null,null,null,null,null,null,null,null,null,null,null,null,null,null,null,null,null,null,null,null,null,null,null,null,null,"EXPORTS","_Z","_Z","_Z","_Z","_Z","_T",null,"_Z"]
[null,null,{"$f":"IF(MIN(C8:C172)<0,\"Negative number\",\"\")","v":""},{"$f":"IF(MIN(D8:D172)<0,\"Negative number\",\"\")","v":""},{"$f":"IF(MIN(E8:E172)<0,\"Negative number\",\"\")","v":""},{"$f":"IF(MIN(F8:F172)<0,\"Negative number\",\"\")","v":""},null,null,{"$f":"IF(OR(C173<D173,E173<F173),\"Of which: LNG greater than Total\",\"\")","v":""}]
[]
[]
["1. Total Exports (Exits) (references A165 and C165) should be equal to references A4",null,null,null,null,null,{"$f":"C172-'Table 10'!C10","v":0},{"$f":"IF(G176=0,\"OK\",\"Total Exports (Exits) in Mcm is not equal to Exports (Exits) in Table 10.\")","v":"OK"}]
["    and B4 in Table 10.",null,null,null,null,null,{"$f":"E172-'Table 10'!D10","v":0},{"$f":"IF(G177=0,\"OK\",\"Total Exports (Exits) in TJ is not equal to Exports (Exits) in Table 10.\")","v":"OK"}]
["2. Total Exports (Exits) should be equal to the sum of its components in cubic metres (column A) ",null,null,null,null,null,{"$f":"C172-SUM(C8:C171)","v":0},{"$f":"IF(G178=0,\"OK\",\"Total Exports (Exits) in Mcm is not equal to the sum of its components.\")","v":"OK"}]
["    and for terajoules (column C).",null,null,null,null,null,{"$f":"E172-SUM(E8:E171)","v":0},{"$f":"IF(G179=0,\"OK\",\"Total Exports (Exits) in TJ is not equal to the sum of its components.\")","v":"OK"}]
["3. Total Exports (Exits) for LNG should be equal to the sum of its components for cubic metres (column B) ",null,null,null,null,null,{"$f":"D172-SUM(D8:D171)","v":0},{"$f":"IF(G180=0,\"OK\",\"Total Exports (Exits) in Mcm for LNG is not equal to the sum of its components.\")","v":"OK"}]
["    and for terajoules (column D).",null,null,null,null,null,{"$f":"F172-SUM(F8:F171)","v":0},{"$f":"IF(G181=0,\"OK\",\"Total Exports (Exits) in TJ for LNG is not equal to the sum of its components.\")","v":"OK"}]
["* This designation is without prejudice to positions on status, and is line with UNSCR 1244 and the ICJ Opinion on the Kosovo declaration of independence."]
[]
[]
[]
[]
[]
[]
[]
[]
[]
[]
[]
[]
[]
[]
[]
[]
[]
[]
[]
[]
[]
[]
[]
[]
[]
[]
[]
[]
[]
[]
[]
[]
[]
[]
[]
[]
[]
[]
[]
[]
[]
[]
[]
[]
["Products è",null,"NATGASCM","LNGCM","NGASTJOU","LNGTJ","NGASCV"]
[]
[]
[]
[]
[]
[]
[]
[]
[]
[]
[]
[]
[]
[]
[]
[]
[]
[]
[]
[]
[]
[]
[]
[]
[]
[]
[]
[]
[]
[]
[]
[]
[]
[]
[]
[]
[]
[]
[]
[]
[]
[]
[]
[]
[]
[]
[]
[]
[]
[]
[]
[]
[]
[]
[]
[]
[]
[]
[]
[]
[]
[]
[]
[]
[]
[]
[]
[]
[]
[]
[]
[]
[]
[]
[]
[]
[]
[]
[]
[]
[]
[]
[]
[]
[]
[]
[]
[]
[]
[]
[]
[]
[]
[]
[]
[]
[]
[]
[]
[]
[]
[]
[]
[]
[]
[]
[]
[]
[]
[]
[]
[]
[]
[]
[]
[]
[]
[]
[]
[]
[]
[]
[]
[]
[]
[]
[]
[]
[]
[]
[]
[]
[]
[]
[]
[]
[]
[]
[]
[]
[]
[]
[]
[]
[]
[]
[]
[]
[]
[]
[]
[]
[]
[]
[]
[]
[]
[]
[]
[]
[]
[]
[]
[]
[]
[]
[]
[]
[]
[]
[]
[]
[]
[]
[]
[]
[]
[]
[]
[]
[]
[]
[]
[]
[]
[]
[]
[]
[]
[]
[]
[]
[]
[]
[]
[]
[]
[]
[]
[]
[]
[]
[]
[]
[]
[]
[]
[]
[]
[]
[]
[]
[]
[]
[]
[]
[]
[]
[]
[]
[]
[]
[]
[]
[]
[]
[]
[]
[]
[]
[]
[]
[]
[]
[]
[]
[]
[]
[]
[]
[]
[]
[]
[]
[]
[]
[]
[]
[]
[]
[]
[]
[]
[]
[]
[]
[]
[]
[]
[]
[]
[]
[]
[]
[]
[]
[]
[]
[]
[]
[]
[]
[]
[]
[]
[]
[]
[]
[]
[]
[]
[]
[]
[]
[]
[]
[]
[]
[]
[]
[]
[]
[]
[]
[]
[]
[]
[]
[]
[]
[]
[]
[]
[]
[]
[]
[]
[]
[]
[]
[]
[]
[]
[]
[]
[]
[]
[]
[]
[]
[]
[]
[]
[]
[]
[]
[]
[]
[]
[]
[]
[]
[]
[]
[]
[]
[]
[]
[]
[]
[]
[]
[]
[]
[]
[]
[]
[]
[]
[]
[]
[]
[]
[]
[]
[]
[]
[]
[]
[]
[]
[]
[]
[]
[]
[]
[]
[]
[]
[]
[]
[]
[]
[]
[]
[]
[]
[]
[]
[]
[]
[]
[]
[]
[]
[]
[]
[]
[]
[]
[]
[]
[]
[]
[]
[]
[]
[]
[]
[]
[]
[]
[]
[]
[]
[]
[]
[]
[]
[]
[]
[]
[]
[]
[]
[]
[]
[]
[]
[]
[]
[]
[]
[]
[]
[]
[]
[]
[]
[]
[]
[]
[]
[]
[]
[]
[]
[]
[]
[]
[]
[]
[]
[]
[]
[]
[]
[]
[]
[]
[]
[]
[]
[]
[]
[]
[]
[]
[]
[]
[]
[]
[]
[]
[]
[]
[]
[]
[]
[]
[]
[]
[]
[]
[]
[]
[]
[]
[]
[]
[]
[]
[]
[]
[]
[]
[]
[]
[]
[]
[]
[]
[]
[]
[]
[]
[]
[]
[]
[]
[]
[]
[]
[]
[]
[]
[]
[]
[]
[]
[]
[]
[]
[]
[]
[]
[]
[]
[]
[]
[]
[]
[]
[]
[]
[]
[]
[]
[]
[]
[]
[]
[]
[]
[]
[]
[]
[]
[]
[]
[]
[]
[]
[]
[]
[]
[]
[]
[]
[]
[]
[]
[]
[]
[]
[]
[]
[]
[]
[]
[]
[]
[]
[]
[]
[]
[]
[]
[]
[]
[]
[]
[]
[]
[]
[]
[]
[]
[]
[]
[]
[]
[]
[]
[]
[]
[]
[]
[]
[]
[]
[]
[]
[]
[]
[]
[]
[]
[]
[]
[]
[]
[]
[]
[]
[]
[]
[]
[]
[]
[]
[]
[]
[]
[]
[]
[]
[]
[]
[]
[]
[]
[]
[]
[]
[]
[]
[]
[]
[]
[]
[]
[]
[]
[]
[]
[]
[]
[]
[]
[]
[]
[]
[]
[]
[]
[]
[]
[]
[]
[]
[]
[]
[]
[]
[]
[]
[]
[]
[]
[]
[]
[]
[]
[]
[]
[]
[]
[]
[]
[]
[]
[]
[]
[]
[]
[]
[]
[]
[]
[]
[]
[]
[]
[]
[]
[]
[]
[]
[]
[]
[]
[]
[]
[]
[]
[]
[]
[]
[]
[]
[]
[]
[]
[]
[]
[]
[]
[]
[]
[]
[]
[]
[]
[]
[]
[]
[]
[]
[]
[]
[]
[]
[]
[]
[]
[]
[]
[]
[]
[]
[]
[]
[]
[]
[]
[]
[]
[]
[]
[]
[]
[]
[]
[]
[]
[]
[]
[]
[]
[]
[]
[]
[]
[]
[]
[]
[]
[]
[]
[]
[]
[]
[]
[]
[]
[]
[]
[]
[]
[]
[]
["ENERGY_PRODUCT",null,"G3000","G3200","G3000","G3200","G3000"]
["MEASURE_VALUE_TYPE",null,"VOLUME","VOLUME","ENERGY","ENERGY","GCV"]
["UNIT_MEASURE",null,"MM3","MM3","TJ_GCV","TJ_GCV","KJ_M3"]

{"sheet":"Remarks","index":4,"n_rows":43,"n_cols":35,"rows_kept":43,"cut":false,"hidden":false,"merged":[]}
[null,null,null,null,null,null,null,null,null,null,null,null,null,null,null,null,null,null,null,null,null,null,null,null,null,null,null,null,null,null,null,null,null,null,"Datatype"]
[null,null,{"$f":"IF(ChosenQuest=\"MOSG\",Quest & \" Remarks\",Quest & \" Remarks\")","v":"MOS GAS Remarks"},null,null,null,null,null,null,null,null,null,null,null,null,null,null,null,null,null,null,null,null,null,null,null,null,null,null,null,null,null,null,null,"REMARKS"]
[null,null,null,null,null,null,null,null,null,null,null,null,null,null,null,null,null,null,null,null,null,null,null,null,null,null,null,null,null,null,null,null,null,null,"Item1 ê"]
[null,null,null,null,null,null,null,null,null,null,null,null,null,null,null,null,null,null,null,null,null,null,null,null,null,null,null,null,null,null,null,null,null,null,"REMROW01"]
[null,null,null,null,null,null,null,null,null,null,null,null,null,null,null,null,null,null,null,null,null,null,null,null,null,null,null,null,null,null,null,null,null,null,"REMROW02"]
[null,null,null,null,null,null,null,null,null,null,null,null,null,null,null,null,null,null,null,null,null,null,null,null,null,null,null,null,null,null,null,null,null,null,"REMROW03"]
[null,null,null,null,null,null,null,null,null,null,null,null,null,null,null,null,null,null,null,null,null,null,null,null,null,null,null,null,null,null,null,null,null,null,"REMROW04"]
[null,null,null,null,null,null,null,null,null,null,null,null,null,null,null,null,null,null,null,null,null,null,null,null,null,null,null,null,null,null,null,null,null,null,"REMROW05"]
[null,null,null,null,null,null,null,null,null,null,null,null,null,null,null,null,null,null,null,null,null,null,null,null,null,null,null,null,null,null,null,null,null,null,"REMROW06"]
[null,null,null,null,null,null,null,null,null,null,null,null,null,null,null,null,null,null,null,null,null,null,null,null,null,null,null,null,null,null,null,null,null,null,"REMROW07"]
[null,null,null,null,null,null,null,null,null,null,null,null,null,null,null,null,null,null,null,null,null,null,null,null,null,null,null,null,null,null,null,null,null,null,"REMROW08"]
[null,null,null,null,null,null,null,null,null,null,null,null,null,null,null,null,null,null,null,null,null,null,null,null,null,null,null,null,null,null,null,null,null,null,"REMROW09"]
[null,null,null,null,null,null,null,null,null,null,null,null,null,null,null,null,null,null,null,null,null,null,null,null,null,null,null,null,null,null,null,null,null,null,"REMROW10"]
[null,null,null,null,null,null,null,null,null,null,null,null,null,null,null,null,null,null,null,null,null,null,null,null,null,null,null,null,null,null,null,null,null,null,"REMROW11"]
[null,null,null,null,null,null,null,null,null,null,null,null,null,null,null,null,null,null,null,null,null,null,null,null,null,null,null,null,null,null,null,null,null,null,"REMROW12"]
[null,null,null,null,null,null,null,null,null,null,null,null,null,null,null,null,null,null,null,null,null,null,null,null,null,null,null,null,null,null,null,null,null,null,"REMROW13"]
[null,null,null,null,null,null,null,null,null,null,null,null,null,null,null,null,null,null,null,null,null,null,null,null,null,null,null,null,null,null,null,null,null,null,"REMROW14"]
[null,null,null,null,null,null,null,null,null,null,null,null,null,null,null,null,null,null,null,null,null,null,null,null,null,null,null,null,null,null,null,null,null,null,"REMROW15"]
[null,null,null,null,null,null,null,null,null,null,null,null,null,null,null,null,null,null,null,null,null,null,null,null,null,null,null,null,null,null,null,null,null,null,"REMROW16"]
[null,null,null,null,null,null,null,null,null,null,null,null,null,null,null,null,null,null,null,null,null,null,null,null,null,null,null,null,null,null,null,null,null,null,"REMROW17"]
[null,null,null,null,null,null,null,null,null,null,null,null,null,null,null,null,null,null,null,null,null,null,null,null,null,null,null,null,null,null,null,null,null,null,"REMROW18"]
[null,null,null,null,null,null,null,null,null,null,null,null,null,null,null,null,null,null,null,null,null,null,null,null,null,null,null,null,null,null,null,null,null,null,"REMROW19"]
[null,null,null,null,null,null,null,null,null,null,null,null,null,null,null,null,null,null,null,null,null,null,null,null,null,null,null,null,null,null,null,null,null,null,"REMROW20"]
[null,null,null,null,null,null,null,null,null,null,null,null,null,null,null,null,null,null,null,null,null,null,null,null,null,null,null,null,null,null,null,null,null,null,"REMROW21"]
[null,null,null,null,null,null,null,null,null,null,null,null,null,null,null,null,null,null,null,null,null,null,null,null,null,null,null,null,null,null,null,null,null,null,"REMROW22"]
[null,null,null,null,null,null,null,null,null,null,null,null,null,null,null,null,null,null,null,null,null,null,null,null,null,null,null,null,null,null,null,null,null,null,"REMROW23"]
[null,null,null,null,null,null,null,null,null,null,null,null,null,null,null,null,null,null,null,null,null,null,null,null,null,null,null,null,null,null,null,null,null,null,"REMROW24"]
[null,null,null,null,null,null,null,null,null,null,null,null,null,null,null,null,null,null,null,null,null,null,null,null,null,null,null,null,null,null,null,null,null,null,"REMROW25"]
[null,null,null,null,null,null,null,null,null,null,null,null,null,null,null,null,null,null,null,null,null,null,null,null,null,null,null,null,null,null,null,null,null,null,"REMROW26"]
[null,null,null,null,null,null,null,null,null,null,null,null,null,null,null,null,null,null,null,null,null,null,null,null,null,null,null,null,null,null,null,null,null,null,"REMROW27"]
[null,null,null,null,null,null,null,null,null,null,null,null,null,null,null,null,null,null,null,null,null,null,null,null,null,null,null,null,null,null,null,null,null,null,"REMROW28"]
[null,null,null,null,null,null,null,null,null,null,null,null,null,null,null,null,null,null,null,null,null,null,null,null,null,null,null,null,null,null,null,null,null,null,"REMROW29"]
[null,null,null,null,null,null,null,null,null,null,null,null,null,null,null,null,null,null,null,null,null,null,null,null,null,null,null,null,null,null,null,null,null,null,"REMROW30"]
[null,null,null,null,null,null,null,null,null,null,null,null,null,null,null,null,null,null,null,null,null,null,null,null,null,null,null,null,null,null,null,null,null,null,"REMROW31"]
[null,null,null,null,null,null,null,null,null,null,null,null,null,null,null,null,null,null,null,null,null,null,null,null,null,null,null,null,null,null,null,null,null,null,"REMROW32"]
[null,null,null,null,null,null,null,null,null,null,null,null,null,null,null,null,null,null,null,null,null,null,null,null,null,null,null,null,null,null,null,null,null,null,"REMROW33"]
[null,null,null,null,null,null,null,null,null,null,null,null,null,null,null,null,null,null,null,null,null,null,null,null,null,null,null,null,null,null,null,null,null,null,"REMROW34"]
[null,null,null,null,null,null,null,null,null,null,null,null,null,null,null,null,null,null,null,null,null,null,null,null,null,null,null,null,null,null,null,null,null,null,"REMROW35"]
[null,null,null,null,null,null,null,null,null,null,null,null,null,null,null,null,null,null,null,null,null,null,null,null,null,null,null,null,null,null,null,null,null,null,"REMROW36"]
[null,null,null,null,null,null,null,null,null,null,null,null,null,null,null,null,null,null,null,null,null,null,null,null,null,null,null,null,null,null,null,null,null,null,"REMROW37"]
[null,null,null,null,null,null,null,null,null,null,null,null,null,null,null,null,null,null,null,null,null,null,null,null,null,null,null,null,null,null,null,null,null,null,"REMROW38"]
[null,null,null,null,null,null,null,null,null,null,null,null,null,null,null,null,null,null,null,null,null,null,null,null,null,null,null,null,null,null,null,null,null,null,"REMROW39"]
[null,null,null,null,null,null,null,null,null,null,null,null,null,null,null,null,null,null,null,null,null,null,null,null,null,null,null,null,null,null,null,null,null,null,"REMROW40"]

{"sheet":"Param","index":5,"n_rows":124,"n_cols":11,"rows_kept":124,"cut":false,"hidden":true,"merged":[[1,1,1,3]]}
[]
[null,"SETTINGS"]
[]
[]
[]
[]
[null,null,"ParamCountry / CountryList"]
[null,null,"(select country)","SELECT","00"]
[null,null,"Albania","ALBANIA","AL"]
[null,null,"Armenia","ARMENIA","AM"]
[null,null,"Australia","AUSTRALI","AU"]
[null,null,"Austria","AUSTRIA","AT"]
[null,null,"Belarus","BELARUS","BY"]
[null,null,"Belgium","BELGIUM","BE"]
[null,null,"Bosnia and Herzegovina","BOSNIAHERZ","BA"]
[null,null,"Bulgaria","BULGARIA","BG"]
[null,null,"Canada","CANADA","CA"]
[null,null,"Chile","CHILE","CL"]
[null,null,"Colombia","COLOMBIA","CO"]
[null,null,"Costa Rica","COSTARICA","CR"]
[null,null,"Croatia","CROATIA","HR"]
[null,null,"Cyprus","CYPRUS","CY"]
[null,null,"Czech Republic","CZECH","CZ"]
[null,null,"Denmark","DENMARK","DK"]
[null,null,"Estonia","ESTONIA","EE"]
[null,null,"Finland","FINLAND","FI"]
[null,null,"France","FRANCE","FR"]
[null,null,"Georgia","GEORGIA","GE"]
[null,null,"Germany","GERMANY","DE"]
[null,null,"Greece","GREECE","GR"]
[null,null,"Hungary","HUNGARY","HU"]
[null,null,"Iceland","ICELAND","IS"]
[null,null,"Ireland","IRELAND","IE"]
[null,null,"Israel","ISRAEL","IL"]
[null,null,"Italy","ITALY","IT"]
[null,null,"Japan","JAPAN","JP"]
[null,null,"Korea","KOREA","KR"]
[null,null,"Kosovo* (under UNSCR 1244/99)","KOSOVO","XK"]
[null,null,"Latvia","LATVIA","LV"]
[null,null,"Liechtenstein","LIECHTEN","LI"]
[null,null,"Lithuania","LITHUANIA","LT"]
[null,null,"Luxembourg","LUXEMBOU","LU"]
[null,null,"Malta","MALTA","MT"]
[null,null,"Mexico","MEXICO","MX"]
[null,null,"Moldova","MOLDOVA","MD"]
[null,null,"Montenegro","MONTENEGRO","ME"]
[null,null,"Netherlands","NETHLAND","NL"]
[null,null,"New Zealand","NZ","NZ"]
[null,null,"North Macedonia","NORTHMACED","MK"]
[null,null,"Norway","NORWAY","NO"]
[null,null,"Poland","POLAND","PL"]
[null,null,"Portugal","PORTUGAL","PT"]
[null,null,"Romania","ROMANIA","RO"]
[null,null,"Russia","RUSSIA","RU"]
[null,null,"Serbia","SERBIA","RS"]
[null,null,"Slovak Republic","SLOVAKIA","SK"]
[null,null,"Slovenia","SLOVENIA","SI"]
[null,null,"Spain","SPAIN","ES"]
[null,null,"Sweden","SWEDEN","SE"]
[null,null,"Switzerland","SWITLAND","CH"]
[null,null,"Turkey","TURKEY","TR"]
[null,null,"Ukraine","UKRAINE","UA"]
[null,null,"United Kingdom","UK","GB"]
[null,null,"United States","USA","US"]
[null,null,"United States (Barrels)","USABBL","T4"]
[]
[]
[]
[null,null,"ParamMonth / MonthList / MonthCodes"]
[null,null,"January","JAN"]
[null,null,"February","FEB"]
[null,null,"March","MAR"]
[null,null,"April","APR"]
[null,null,"May","MAY"]
[null,null,"June","JUN"]
[null,null,"July","JUL"]
[null,null,"August","AUG"]
[null,null,"September","SEP"]
[null,null,"October","OCT"]
[null,null,"November","NOV"]
[null,null,"December","DEC"]
[null,null,null,null,null,"ê","DO NOT TOUCH!",null,null,null,"ê"]
[]
[null,null,"ParamQuest / QuestList / QuestCodes"]
[null,null,"(select quest.)","00"]
[null,null,"MOS GAS","MOSG"]
[null,null,"JODI GAS","JODIG"]
[]
[]
[null,null,"MsgAfterRounding: ",true]
[]
[]
[null,"CALCULATIONS"]
[]
[]
[]
[null,null,"MonthIndex: ",{"$f":"MATCH(FirstMonth,MonthList,0)","v":1}]
[]
[null,null,"QuestMonth: ",{"$f":"INDEX(ParamMonth,MonthIndex,2)","v":"JAN"}]
[]
[null,null,"CountryIndex: ",{"$f":"IF(CountryUser=0,1,MATCH(CountryUser,CountryList,0))","v":1}]
[]
[null,null,"QuestCountry: ",{"$f":"INDEX(ParamCountry,D101,3)","v":"00"}]
[null,null,"CountryCode: ",{"$f":"INDEX(ParamCountry,D101,2)","v":"SELECT"}]
[]
[null,null,"CsvMonth: ","JAN","Paste by VBA"]
[null,null,"CsvYear: ",2020,"Paste by VBA"]
[null,null,"PosiMonth: ",{"$f":"IF(ISERROR(MATCH(D106,MonthCodes,0)),100,MATCH(D106,MonthCodes,0))","v":1}]
[]
[null,null,"CsvCountry:","NORTHMACED","Paste by VBA"]
[null,null,null,{"$f":"IF(ISERROR(MATCH(CsvCountry,CountryIeaList,0))=FALSE,MATCH(CsvCountry,CountryIeaList,0),IF(ISERROR(MATCH(CsvCountry,CountryIsoList,0))=FALSE,MATCH(CsvCountry,CountryIsoList,0),0))","v":42}]
[null,null,"CsvCountryName:",{"$f":"IF(ISERROR(INDEX(ParamCountry,D111,1)),\"UNKNOWN\",INDEX(ParamCountry,D111,1))","v":"North Macedonia"},"Read by VBA"]
[null,null,"CsvMonthName:",{"$f":"INDEX(MonthList,PosiMonth1,1)","v":"January"},"Read by VBA"]
[]
[null,null,"SumGas : ",{"$f":"SUM(DataT10)+SUM(DataT11)+SUM(DataT12)","v":0}]
[]
[null,null,"QuestChosen : ",1]
[null,null,"Quest : ",{"$f":"INDEX(QuestList,QuestChosen+1,1)","v":"MOS GAS"},"This cell was before on the Summary page"]
[null,null,"QuestIndex : ",{"$f":"IF(ISERROR(MATCH(Quest,QuestList,0)),1,MATCH(Quest,QuestList,0))","v":2}]
[null,null,"ChosenQuest : ",{"$f":"INDEX(ParamQuest,QuestIndex,2)","v":"MOSG"}]
[]
[null,null,"CsvQuest : ","MOSG","Paste by VBA"]
[null,null,"CsvQuestName : ",{"$f":"INDEX(QuestList,MATCH(CsvQuest,QuestCodes,0),1)","v":"MOS GAS"},"Read by VBA"]
[null,null,"CsvQuestNum : ",{"$f":"MATCH(CsvQuest,QuestCodes,0)-1","v":1},"Read by VBA"]

{"sheet":"Formulas","index":6,"n_rows":374,"n_cols":8,"rows_kept":374,"cut":false,"hidden":true,"merged":[[33,4,34,4],[33,6,34,6]]}
[]
[null,"Formulas backup for forms"]
[]
[null,"This sheet has been done in order to facilitate the maintenance of the formulas the user could erase: you must do it in this current sheet."]
[]
[]
[]
[null,null,"Table 10: SUPPLY OF NATURAL GAS"]
[null,null,null,null,"Natural gas \nMillion m3 (at\n15°C, 760 mm Hg)","Natural gas \nTerajoules\n(Gross calor. value)"]
[null,null,null,null,"A","B"]
[null,null,"Indigenous production",1]
[null,null,"Receipts from other sources",2]
[null,null,"Imports (Entries)1",3]
[null,null,"Exports (Exits)2",4]
[null,null,"International marine bunkers",5]
[null,null,"Stock changes (National territory)3",6]
[null,null,"Gross inland deliveries (Calculated)",7,{"$f":"ROUND(E11+E12+E13-E14-E15-E16,3)","v":0},{"$f":"ROUND(F11+F12+F13-F14-F15-F16,3)","v":0}]
[null,null,"Statistical difference",8,{"$f":"ROUND(E17-E19,3)","v":0},{"$f":"ROUND(F17-F19,3)","v":0}]
[null,null,"Gross inland deliveries (Observed)",9]
[null,null,"Opening stock level (National territory)4",10]
[null,null,"Closing stock level (National territory)",11]
[null,null,"Opening stock level (Held abroad)5",12]
[null,null,"Closing stock level (Held abroad)",13]
[null,null,"Own use and losses of the natural gas industry",14]
[null,null,"Deliveries to power generation6",15]
[]
[null,null,"Memo:"]
[null,null,"Gas vented",16]
[null,null,"Gas flared",17]
[]
[]
[]
[null,null,"Table 11: IMPORTS OF NATURAL GAS BY ORIGIN"]
[null,null,null,null,"Natural gas \nMillion m3 (at\n15°C, 760 mm Hg)",null,"Natural gas \nTerajoules\n(Gross calor. value)"]
[null,null,null,null,null,"Of which: LNG",null,"Of which: LNG"]
[null,null,null,null,"A","B","C","D"]
[null,null,"Albania",1]
[null,null,"Algeria",2]
[null,null,"Andorra",3]
[null,null,"Angola",4]
[null,null,"Argentina",5]
[null,null,"Armenia",6]
[null,null,"Aruba",7]
[null,null,"Australia",8]
[null,null,"Austria",9]
[null,null,"Azerbaijan",10]
[null,null,"Bahamas",11]
[null,null,"Bahrain",12]
[null,null,"Bangladesh",13]
[null,null,"Barbados",14]
[null,null,"Belarus",15]
[null,null,"Belgium",16]
[null,null,"Belize",17]
[null,null,"Benin",18]
[null,null,"Bolivia",19]
[null,null,"Bosnia and Herzegovina",20]
[null,null,"Brazil",21]
[null,null,"British Virgin Islands",22]
[null,null,"Brunei Darussalam",23]
[null,null,"Bulgaria",24]
[null,null,"Cambodia",25]
[null,null,"Cameroon",26]
[null,null,"Canada",27]
[null,null,"Cape Verde / Cabo Verde",28]
[null,null,"Chile",29]
[null,null,"China, People's Republic of",30]
[null,null,"Colombia",31]
[null,null,"Congo",32]
[null,null,"Costa Rica",33]
[null,null,"Côte d’Ivoire",34]
[null,null,"Croatia",35]
[null,null,"Cuba",36]
[null,null,"Curaçao",37]
[null,null,"Cyprus",38]
[null,null,"Czech Republic",39]
[null,null,"Korea, Democratic People's Republic of",40]
[null,null,"Congo, Democratic Republic of the",41]
[null,null,"Denmark",42]
[null,null,"Djibouti",43]
[null,null,"Dominican Republic",44]
[null,null,"Ecuador",45]
[null,null,"Egypt",46]
[null,null,"Equatorial Guinea",47]
[null,null,"Eritrea",48]
[null,null,"Estonia",49]
[null,null,"Ethiopia",50]
[null,null,"Finland",51]
[null,null,"France",52]
[null,null,"Gabon",53]
[null,null,"Georgia",54]
[null,null,"Germany",55]
[null,null,"Ghana",56]
[null,null,"Gibraltar",57]
[null,null,"Greece",58]
[null,null,"Guatemala",59]
[null,null,"Guinea-Bissau",60]
[null,null,"Honduras",61]
[null,null,"Hong Kong, China",62]
[null,null,"Hungary",63]
[null,null,"Iceland",64]
[null,null,"India",65]
[null,null,"Indonesia",66]
[null,null,"Iran, Islamic Republic of",67]
[null,null,"Iraq",68]
[null,null,"Ireland",69]
[null,null,"Israel",70]
[null,null,"Italy",71]
[null,null,"Jamaica",72]
[null,null,"Japan",73]
[null,null,"Jordan",74]
[null,null,"Kazakhstan",75]
[null,null,"Kenya",76]
[null,null,"Korea",77]
[null,null,"Kosovo*",78]
[null,null,"Kuwait",79]
[null,null,"Kyrgyzstan",80]
[null,null,"Lao People's Democratic Republic",81]
[null,null,"Latvia",82]
[null,null,"Lebanon",83]
[null,null,"Liberia",84]
[null,null,"Libya",85]
[null,null,"Liechtenstein",86]
[null,null,"Lithuania",87]
[null,null,"Luxembourg",88]
[null,null,"Madagascar",89]
[null,null,"Malaysia",90]
[null,null,"Malta",91]
[null,null,"Marshall Islands",92]
[null,null,"Mauritania",93]
[null,null,"Mauritius",94]
[null,null,"Mexico",95]
[null,null,"Moldova, Republic of",96]
[null,null,"Mongolia",97]
[null,null,"Montenegro",98]
[null,null,"Morocco",99]
[null,null,"Mozambique",100]
[null,null,"Myanmar",101]
[null,null,"Namibia",102]
[null,null,"Nepal",103]
[null,null,"Netherlands",104]
[null,null,"New Caledonia",105]
[null,null,"New Zealand",106]
[null,null,"Niger",107]
[null,null,"Nigeria",108]
[null,null,"North Macedonia",109]
[null,null,"Norway",110]
[null,null,"Oman",111]
[null,null,"Other Africa",112]
[null,null,"Other Asia Oceania",113]
[null,null,"Other Europe",114]
[null,null,"Other Former Soviet Union",115]
[null,null,"Other Near and Middle East",116]
[null,null,"Other Non-OECD Americas",117]
[null,null,"Pakistan",118]
[null,null,"Panama",119]
[null,null,"Papua New Guinea",120]
[null,null,"Peru",121]
[null,null,"Philippines",122]
[null,null,"Poland",123]
[null,null,"Portugal",124]
[null,null,"Qatar",125]
[null,null,"Romania",126]
[null,null,"Russian Federation",127]
[null,null,"Sao Tome and Principe",128]
[null,null,"Saudi Arabia",129]
[null,null,"Senegal",130]
[null,null,"Serbia",131]
[null,null,"Sierra Leone",132]
[null,null,"Singapore",133]
[null,null,"Slovak Republic",134]
[null,null,"Slovenia",135]
[null,null,"South Africa",136]
[null,null,"South Sudan",137]
[null,null,"Spain",138]
[null,null,"Sri Lanka",139]
[null,null,"Sudan",140]
[null,null,"Sweden",141]
[null,null,"Switzerland",142]
[null,null,"Syrian Arab Republic",143]
[null,null,"Taiwan / Chinese Taipei",144]
[null,null,"Tajikistan",145]
[null,null,"Tanzania, United Republic of",146]
[null,null,"Thailand",147]
[null,null,"Timor-Leste",148]
[null,null,"Togo",149]
[null,null,"Trinidad and Tobago",150]
[null,null,"Tunisia",151]
[null,null,"Turkey",152]
[null,null,"Turkmenistan",153]
[null,null,"Uganda",154]
[null,null,"Ukraine",155]
[null,null,"United Arab Emirates",156]
[null,null,"United Kingdom",157]
[null,null,"United States",158]
[null,null,"Uruguay",159]
[null,null,"Uzbekistan",160]
[null,null,"Venezuela, Bolivarian Republic",161]
[null,null,"Viet Nam",162]
[null,null,"Yemen",163]
[null,null,"Not elsewhere specified",164]
[null,null,"Total Imports (Entries)1 2",165,{"$f":"ROUND(SUM(E37:E200),3)","v":0},{"$f":"ROUND(SUM(F37:F200),3)","v":0},{"$f":"ROUND(SUM(G37:G200),3)","v":0},{"$f":"ROUND(SUM(H37:H200),3)","v":0}]
[]
[]
[]
[]
[]
[null,null,"Table 12:  EXPORTS OF NATURAL GAS BY DESTINATION"]
[null,null,null,null,"Natural Gas \nMillion cubic metres","Of which: LNG","Natural Gas \nTerajoules","Of which: LNG"]
[null,null,null,null,"A","B","C","D"]
[null,null,"Albania",1]
[null,null,"Algeria",2]
[null,null,"Andorra",3]
[null,null,"Angola",4]
[null,null,"Argentina",5]
[null,null,"Armenia",6]
[null,null,"Aruba",7]
[null,null,"Australia",8]
[null,null,"Austria",9]
[null,null,"Azerbaijan",10]
[null,null,"Bahamas",11]
[null,null,"Bahrain",12]
[null,null,"Bangladesh",13]
[null,null,"Barbados",14]
[null,null,"Belarus",15]
[null,null,"Belgium",16]
[null,null,"Belize",17]
[null,null,"Benin",18]
[null,null,"Bolivia",19]
[null,null,"Bosnia and Herzegovina",20]
[null,null,"Brazil",21]
[null,null,"British Virgin Islands",22]
[null,null,"Brunei Darussalam",23]
[null,null,"Bulgaria",24]
[null,null,"Cambodia",25]
[null,null,"Cameroon",26]
[null,null,"Canada",27]
[null,null,"Cape Verde / Cabo Verde",28]
[null,null,"Chile",29]
[null,null,"China, People's Republic of",30]
[null,null,"Colombia",31]
[null,null,"Congo",32]
[null,null,"Costa Rica",33]
[null,null,"Côte d’Ivoire",34]
[null,null,"Croatia",35]
[null,null,"Cuba",36]
[null,null,"Curaçao",37]
[null,null,"Cyprus",38]
[null,null,"Czech Republic",39]
[null,null,"Korea, Democratic People's Republic of",40]
[null,null,"Congo, Democratic Republic of the",41]
[null,null,"Denmark",42]
[null,null,"Djibouti",43]
[null,null,"Dominican Republic",44]
[null,null,"Ecuador",45]
[null,null,"Egypt",46]
[null,null,"Equatorial Guinea",47]
[null,null,"Eritrea",48]
[null,null,"Estonia",49]
[null,null,"Ethiopia",50]
[null,null,"Finland",51]
[null,null,"France",52]
[null,null,"Gabon",53]
[null,null,"Georgia",54]
[null,null,"Germany",55]
[null,null,"Ghana",56]
[null,null,"Gibraltar",57]
[null,null,"Greece",58]
[null,null,"Guatemala",59]
[null,null,"Guinea-Bissau",60]
[null,null,"Honduras",61]
[null,null,"Hong Kong, China",62]
[null,null,"Hungary",63]
[null,null,"Iceland",64]
[null,null,"India",65]
[null,null,"Indonesia",66]
[null,null,"Iran, Islamic Republic of",67]
[null,null,"Iraq",68]
[null,null,"Ireland",69]
[null,null,"Israel",70]
[null,null,"Italy",71]
[null,null,"Jamaica",72]
[null,null,"Japan",73]
[null,null,"Jordan",74]
[null,null,"Kazakhstan",75]
[null,null,"Kenya",76]
[null,null,"Korea",77]
[null,null,"Kosovo*",78]
[null,null,"Kuwait",79]
[null,null,"Kyrgyzstan",80]
[null,null,"Lao People's Democratic Republic",81]
[null,null,"Latvia",82]
[null,null,"Lebanon",83]
[null,null,"Liberia",84]
[null,null,"Libya",85]
[null,null,"Liechtenstein",86]
[null,null,"Lithuania",87]
[null,null,"Luxembourg",88]
[null,null,"Madagascar",89]
[null,null,"Malaysia",90]
[null,null,"Malta",91]
[null,null,"Marshall Islands",92]
[null,null,"Mauritania",93]
[null,null,"Mauritius",94]
[null,null,"Mexico",95]
[null,null,"Moldova, Republic of",96]
[null,null,"Mongolia",97]
[null,null,"Montenegro",98]
[null,null,"Morocco",99]
[null,null,"Mozambique",100]
[null,null,"Myanmar",101]
[null,null,"Namibia",102]
[null,null,"Nepal",103]
[null,null,"Netherlands",104]
[null,null,"New Caledonia",105]
[null,null,"New Zealand",106]
[null,null,"Niger",107]
[null,null,"Nigeria",108]
[null,null,"North Macedonia",109]
[null,null,"Norway",110]
[null,null,"Oman",111]
[null,null,"Other Africa",112]
[null,null,"Other Asia Oceania",113]
[null,null,"Other Europe",114]
[null,null,"Other Former Soviet Union",115]
[null,null,"Other Near and Middle East",116]
[null,null,"Other Non-OECD Americas",117]
[null,null,"Pakistan",118]
[null,null,"Panama",119]
[null,null,"Papua New Guinea",120]
[null,null,"Peru",121]
[null,null,"Philippines",122]
[null,null,"Poland",123]
[null,null,"Portugal",124]
[null,null,"Qatar",125]
[null,null,"Romania",126]
[null,null,"Russian Federation",127]
[null,null,"Sao Tome and Principe",128]
[null,null,"Saudi Arabia",129]
[null,null,"Senegal",130]
[null,null,"Serbia",131]
[null,null,"Sierra Leone",132]
[null,null,"Singapore",133]
[null,null,"Slovak Republic",134]
[null,null,"Slovenia",135]
[null,null,"South Africa",136]
[null,null,"South Sudan",137]
[null,null,"Spain",138]
[null,null,"Sri Lanka",139]
[null,null,"Sudan",140]
[null,null,"Sweden",141]
[null,null,"Switzerland",142]
[null,null,"Syrian Arab Republic",143]
[null,null,"Taiwan / Chinese Taipei",144]
[null,null,"Tajikistan",145]
[null,null,"Tanzania, United Republic of",146]
[null,null,"Thailand",147]
[null,null,"Timor-Leste",148]
[null,null,"Togo",149]
[null,null,"Trinidad and Tobago",150]
[null,null,"Tunisia",151]
[null,null,"Turkey",152]
[null,null,"Turkmenistan",153]
[null,null,"Uganda",154]
[null,null,"Ukraine",155]
[null,null,"United Arab Emirates",156]
[null,null,"United Kingdom",157]
[null,null,"United States",158]
[null,null,"Uruguay",159]
[null,null,"Uzbekistan",160]
[null,null,"Venezuela, Bolivarian Republic",161]
[null,null,"Viet Nam",162]
[null,null,"Yemen",163]
[null,null,"Not elsewhere specified",164]
[null,null,"Total Exports (Exits)1 2 ",165,{"$f":"ROUND(SUM(E210:E373),3)","v":0},{"$f":"ROUND(SUM(F210:F373),3)","v":0},{"$f":"ROUND(SUM(G210:G373),3)","v":0},{"$f":"ROUND(SUM(H210:H373),3)","v":0}]

{"sheet":"Parameter_mapping","index":7,"n_rows":4,"n_cols":2,"rows_kept":4,"cut":false,"hidden":true,"merged":[]}
["Data sheet","Parameter sheet"]
["Table 10","Parameters"]
["Table 11","Parameters"]
["Table 12","Parameters"]

{"sheet":"Parameters","index":8,"n_rows":21,"n_cols":7,"rows_kept":21,"cut":false,"hidden":true,"merged":[]}
["Element","Type","PosType","Position",null,"DataStart","C7"]
["QUEST_SOURCE","DIM","FIX","M_NATGAS",null,"DataEnd","G172"]
["FREQ","DIM","FIX","M",null,"SkipIncompleteKeys","true"]
["REF_AREA","DIM","CELL","DS7",null,"SkipObservationWithValue",0]
["ENERGY_PRODUCT","DIM","ROW",1000]
["MAIN_FLOW","DIM","COLUMN","DU"]
["FLOW_BREAKDOWN","DIM","COLUMN","DV"]
["PLANT_TECH","DIM","COLUMN","DW"]
["PLANT_TYPE","DIM","COLUMN","DX"]
["STOCKS","DIM","COLUMN","DY"]
["INFRASTRUCTURE_IND","DIM","COLUMN","DZ"]
["VIS_A_VIS_AREA","DIM","COLUMN","EA"]
["MEASURE_VALUE_TYPE","DIM","ROW",1001]
["TIME_PERIOD","DIM","CELL","EE7"]
["FACILITY_ID","DIM","COLUMN","EC"]
["UNIT_MEASURE","ATT","ROW",1002]
["OBS_STATUS","ATT","SKIP"]
["CONF_STATUS","ATT","SKIP"]
["COMMENT_OBS","ATT","SKIP"]
["FACILITY_TYPE","ATT","SKIP"]
["FACILITY_NAME","ATT","SKIP"]